Workbook

Sheet START
F11: =INDIRECT("START!I25") -> START | I11: =INDIRECT("START!K25") -> Описание методологии финмодели
I13: лист | K13: описание листа/столбца/строки/ячейки/блока ячеек
D14: =INDIRECT("Cntrl!M17") -> 0 | E14: =SUM($F14:$PL14) -> 0 | F14: =IFERROR(_xlfn.SHEET($A$1)-SUMIFS(Cntrl!O$15:O$100000,Cntrl!I$15:I$100000,$F$11),1) -> 0
A15: =ROW() -> 15 | I15: разработка финмоделей: https://mngmnt.ru/
A16: =ROW() -> 16 | H16: ФИНАНСОВАЯ МОДЕЛЬ
A17: =ROW() -> 17
A18: =ROW() -> 18
A19: =ROW() -> 19 | H19: ИНВЕСТИЦИОННЫЙ ПРОЕКТ: ПРОИЗВОДСТВО ВИНОГРАДА И ВИНА
A20: =ROW() -> 20
A21: =ROW() -> 21
A22: =ROW() -> 22
A23: =ROW() -> 23 | H23: Методология. Список и предназначение листов настоящей финансовой модели
A24: =ROW() -> 24
A25: =ROW() -> 25 | I25: START | K25: Описание методологии финмодели
A26: =ROW() -> 26 | I26: Cntrl | K26: Общий контроль финансовой модели
A27: =ROW() -> 27 | I27: Periods | K27: Периоды и горизонты моделирования фактических и прогнозных данных
A28: =ROW() -> 28 | I28: Lists | K28: Выпадающие списки финансовой модели
A29: =ROW() -> 29 | I29: Macro | K29: Макропоказатели внешней среды
A30: =ROW() -> 30 | I30: Items | K30: Справочники статей доходов и расходов и т.д.
A31: =ROW() -> 31 | I31: KPI | K31: Справочники ключевых показателей эффективности
A32: =ROW() -> 32 | I32: Sbor | K32: Параметры этапа сбора винограда
A33: =ROW() -> 33 | I33: CapEx | K33: Календарный план-график капитальных затрат
A34: =ROW() -> 34 | I34: Vinodel | K34: Параметры этапа виноделия
A35: =ROW() -> 35 | I35: Prdction | K35: Производственный процесс розлива вина и продажи
A36: =ROW() -> 36 | I36: HR | K36: Штатное расписание
A37: =ROW() -> 37 | I37: Exp | K37: Прочие расходы бизнес-проекта
A38: =ROW() -> 38 | I38: Credits | K38: Источники финансирования и их условия
A39: =ROW() -> 39 | I39: PL | K39: Итоговый отчет о прибылях и убытках
A40: =ROW() -> 40 | I40: CF | K40: Итоговый отчет о движении денежных средств
A41: =ROW() -> 41 | I41: BS | K41: Итоговый баланс
A42: =ROW() -> 42 | I42: MAIN | K42: Ключевые параметры управления и результаты финансовой модели
A43: =ROW() -> 43 | I43: PLd | K43: Детализированный отчет о прибылях и убытках
A44: =ROW() -> 44 | I44: CFd | K44: Детализированный отчет о движении денежных средств
A45: =ROW() -> 45 | I45: BSd | K45: Детализированный баланс
A46: =ROW() -> 46 | I46: Sens | K46: Анализ чувствительности финмодели
A47: =ROW() -> 47 | I47: UnitEc | K47: Расчет юнит-экономики бизнес-проекта
A48: =ROW() -> 48 | I48: CFind | K48: Анализ финансового потока косвенным методом
A49: =ROW() -> 49 | I49: FinEcAn | K49: Финансово-экономический анализ проекта
A50: =ROW() -> 50 | I50: InvAn | K50: Инвестиционный анализ проекта
A51: =ROW() -> 51 | I51: EBITDA | K51: Анализ собственной операционной деят-сти. Точки безубыточности
A52: =ROW() -> 52 | I52: Rep | K52: Укрупненное формирование всей отчетности финмодели
A53: =ROW() -> 53 | I53: Repd | K53: Детализированное формирование всей отчетности финмодели
A54: =ROW() -> 54 | I54: Calc | K54: Функционал финансовой модели. Все расчеты
A55: =ROW() -> 55 | I55: Fact | K55: Учет фактических операций
A56: =ROW() -> 56 | I56: 1S | K56: Выгрузки из 1С карточек с оборотами по счетам бухучета
A57: =ROW() -> 57 | I57: Rules | K57: Правила сопоставления статей для выгрузок из 1С
A58: =ROW() -> 58 | I58: Res1 | K58: Резервная вкладка 1
A59: =ROW() -> 59 | I59: Res2 | K59: Резервная вкладка 2
A60: =ROW() -> 60 | I60: Res3 | K60: Резервная вкладка 3
A61: =ROW() -> 61 | I61: Res4 | K61: Резервная вкладка 4
A62: =ROW() -> 62 | I62: Res5 | K62: Резервная вкладка 5
... 77 more rows

Sheet Cntrl
F11: =INDIRECT("START!I26") -> Cntrl | I11: =INDIRECT("START!K26") -> Общий контроль финансовой модели
I13: лист | K13: ячейка с контролем | M13: контроль | O13: номер листа | Q13: =Lists!$U$13 -> тип листа | V13: точность
D14: =INDIRECT("Cntrl!M17") -> 0 | E14: =SUM($F14:$PL14) -> 0 | F14: =IFERROR(_xlfn.SHEET($A$1)-SUMIFS(Cntrl!O$15:O$100000,Cntrl!I$15:I$100000,$F$11),1) -> 0 | G14: =SUM(G$15:G$100000) -> 0 | S14: =SUM(S$15:S$100000) -> 0
A15: =ROW() -> 15 | I15: разработка финмоделей: https://mngmnt.ru/
A16: =ROW() -> 16
A17: =ROW() -> 17 | G17: =IF($R17="^",IF(COUNTIF(Lists!$13:$13,H17)=1,0,1),0) -> 0 | H17: Общий контроль | M17: =SUM(M$18:M$100000) -> 0
A18: =ROW() -> 18
A19: =ROW() -> 19 | G19: =IF($R19="^",IF(COUNTIF(Lists!$13:$13,H19)=1,0,1),0) -> 0 | H19: =Lists!$U$13 -> тип листа | I19: =START!I25 -> START | K19: E14 | M19: =IFERROR(INDIRECT($I19&"!"&$K19),1) -> 0 | O19: =_xlfn.SHEET(INDIRECT($I19&"!"&$K19)) -> 1 | P19: * | Q19: технический | R19: ^ | S19: =IF(G19<>0,1,IF(OR($Q19="",$Q19=0),0,IF($R19="^",IF(COUNTIF(INDIRECT(INDEX(Lists!$15:$15,SUMIFS(Lists!$1:$1,Lists!$13:$13,$H19))),$Q19)=1,0,1),0))) -> 0 | U19: * | V19: 0
A20: =ROW() -> 20 | G20: =IF($R20="^",IF(COUNTIF(Lists!$13:$13,H20)=1,0,1),0) -> 0 | H20: =Lists!$U$13 -> тип листа | I20: =START!I26 -> Cntrl | K20: E14 | M20: 0 | O20: 2 | P20: * | Q20: технический | R20: ^ | S20: =IF(G20<>0,1,IF(OR($Q20="",$Q20=0),0,IF($R20="^",IF(COUNTIF(INDIRECT(INDEX(Lists!$15:$15,SUMIFS(Lists!$1:$1,Lists!$13:$13,$H20))),$Q20)=1,0,1),0))) -> 0 | U20: * | V20: 0
A21: =ROW() -> 21 | G21: =IF($R21="^",IF(COUNTIF(Lists!$13:$13,H21)=1,0,1),0) -> 0 | H21: =Lists!$U$13 -> тип листа | I21: =START!I27 -> Periods | K21: E14 | M21: 0 | O21: 3 | P21: * | Q21: расчетный | R21: ^ | S21: =IF(G21<>0,1,IF(OR($Q21="",$Q21=0),0,IF($R21="^",IF(COUNTIF(INDIRECT(INDEX(Lists!$15:$15,SUMIFS(Lists!$1:$1,Lists!$13:$13,$H21))),$Q21)=1,0,1),0))) -> 0 | U21: * | V21: 0
A22: =ROW() -> 22 | G22: =IF($R22="^",IF(COUNTIF(Lists!$13:$13,H22)=1,0,1),0) -> 0 | H22: =Lists!$U$13 -> тип листа | I22: =START!I28 -> Lists | K22: E14 | M22: 0 | O22: 4 | P22: * | Q22: технический | R22: ^ | S22: =IF(G22<>0,1,IF(OR($Q22="",$Q22=0),0,IF($R22="^",IF(COUNTIF(INDIRECT(INDEX(Lists!$15:$15,SUMIFS(Lists!$1:$1,Lists!$13:$13,$H22))),$Q22)=1,0,1),0))) -> 0 | U22: * | V22: 0
A23: =ROW() -> 23 | G23: =IF($R23="^",IF(COUNTIF(Lists!$13:$13,H23)=1,0,1),0) -> 0 | H23: =Lists!$U$13 -> тип листа | I23: =START!I29 -> Macro | K23: E14 | M23: 0 | O23: 5 | P23: * | Q23: расчетный | R23: ^ | S23: =IF(G23<>0,1,IF(OR($Q23="",$Q23=0),0,IF($R23="^",IF(COUNTIF(INDIRECT(INDEX(Lists!$15:$15,SUMIFS(Lists!$1:$1,Lists!$13:$13,$H23))),$Q23)=1,0,1),0))) -> 0 | U23: * | V23: 0
A24: =ROW() -> 24 | G24: =IF($R24="^",IF(COUNTIF(Lists!$13:$13,H24)=1,0,1),0) -> 0 | H24: =Lists!$U$13 -> тип листа | I24: =START!I30 -> Items | K24: E14 | M24: 0 | O24: 6 | P24: * | Q24: технический | R24: ^ | S24: =IF(G24<>0,1,IF(OR($Q24="",$Q24=0),0,IF($R24="^",IF(COUNTIF(INDIRECT(INDEX(Lists!$15:$15,SUMIFS(Lists!$1:$1,Lists!$13:$13,$H24))),$Q24)=1,0,1),0))) -> 0 | U24: * | V24: 0
A25: =ROW() -> 25 | G25: =IF($R25="^",IF(COUNTIF(Lists!$13:$13,H25)=1,0,1),0) -> 0 | H25: =Lists!$U$13 -> тип листа | I25: =START!I31 -> KPI | K25: E14 | M25: 0 | O25: 7 | P25: * | Q25: технический | R25: ^ | S25: =IF(G25<>0,1,IF(OR($Q25="",$Q25=0),0,IF($R25="^",IF(COUNTIF(INDIRECT(INDEX(Lists!$15:$15,SUMIFS(Lists!$1:$1,Lists!$13:$13,$H25))),$Q25)=1,0,1),0))) -> 0 | U25: * | V25: 0
A26: =ROW() -> 26 | G26: =IF($R26="^",IF(COUNTIF(Lists!$13:$13,H26)=1,0,1),0) -> 0 | H26: =Lists!$U$13 -> тип листа | I26: =START!I32 -> Sbor | K26: E14 | M26: =IFERROR(INDIRECT($I26&"!"&$K26),1) -> 0 | O26: =_xlfn.SHEET(INDIRECT($I26&"!"&$K26)) -> 8 | P26: * | Q26: расчетный | R26: ^ | S26: =IF(G26<>0,1,IF(OR($Q26="",$Q26=0),0,IF($R26="^",IF(COUNTIF(INDIRECT(INDEX(Lists!$15:$15,SUMIFS(Lists!$1:$1,Lists!$13:$13,$H26))),$Q26)=1,0,1),0))) -> 0 | U26: * | V26: 0.001
A27: =ROW() -> 27 | G27: =IF($R27="^",IF(COUNTIF(Lists!$13:$13,H27)=1,0,1),0) -> 0 | H27: =Lists!$U$13 -> тип листа | I27: =START!I33 -> CapEx | K27: E14 | M27: 0 | O27: 9 | P27: * | Q27: расчетный | R27: ^ | S27: =IF(G27<>0,1,IF(OR($Q27="",$Q27=0),0,IF($R27="^",IF(COUNTIF(INDIRECT(INDEX(Lists!$15:$15,SUMIFS(Lists!$1:$1,Lists!$13:$13,$H27))),$Q27)=1,0,1),0))) -> 0 | U27: * | V27: 0.001
A28: =ROW() -> 28 | G28: =IF($R28="^",IF(COUNTIF(Lists!$13:$13,H28)=1,0,1),0) -> 0 | H28: =Lists!$U$13 -> тип листа | I28: =START!I34 -> Vinodel | K28: E14 | M28: 0 | O28: 10 | P28: * | Q28: расчетный | R28: ^ | S28: =IF(G28<>0,1,IF(OR($Q28="",$Q28=0),0,IF($R28="^",IF(COUNTIF(INDIRECT(INDEX(Lists!$15:$15,SUMIFS(Lists!$1:$1,Lists!$13:$13,$H28))),$Q28)=1,0,1),0))) -> 0 | U28: * | V28: 0.001
A29: =ROW() -> 29 | G29: =IF($R29="^",IF(COUNTIF(Lists!$13:$13,H29)=1,0,1),0) -> 0 | H29: =Lists!$U$13 -> тип листа | I29: =START!I35 -> Prdction | K29: E14 | M29: 0 | O29: 11 | P29: * | Q29: расчетный | R29: ^ | S29: =IF(G29<>0,1,IF(OR($Q29="",$Q29=0),0,IF($R29="^",IF(COUNTIF(INDIRECT(INDEX(Lists!$15:$15,SUMIFS(Lists!$1:$1,Lists!$13:$13,$H29))),$Q29)=1,0,1),0))) -> 0 | U29: * | V29: 0.001
A30: =ROW() -> 30 | G30: =IF($R30="^",IF(COUNTIF(Lists!$13:$13,H30)=1,0,1),0) -> 0 | H30: =Lists!$U$13 -> тип листа | I30: =START!I36 -> HR | K30: E14 | M30: 0 | O30: 12 | P30: * | Q30: расчетный | R30: ^ | S30: =IF(G30<>0,1,IF(OR($Q30="",$Q30=0),0,IF($R30="^",IF(COUNTIF(INDIRECT(INDEX(Lists!$15:$15,SUMIFS(Lists!$1:$1,Lists!$13:$13,$H30))),$Q30)=1,0,1),0))) -> 0 | U30: * | V30: 0.001
A31: =ROW() -> 31 | G31: =IF($R31="^",IF(COUNTIF(Lists!$13:$13,H31)=1,0,1),0) -> 0 | H31: =Lists!$U$13 -> тип листа | I31: =START!I37 -> Exp | K31: E14 | M31: 0 | O31: 13 | P31: * | Q31: расчетный | R31: ^ | S31: =IF(G31<>0,1,IF(OR($Q31="",$Q31=0),0,IF($R31="^",IF(COUNTIF(INDIRECT(INDEX(Lists!$15:$15,SUMIFS(Lists!$1:$1,Lists!$13:$13,$H31))),$Q31)=1,0,1),0))) -> 0 | U31: * | V31: 0.001
A32: =ROW() -> 32 | G32: =IF($R32="^",IF(COUNTIF(Lists!$13:$13,H32)=1,0,1),0) -> 0 | H32: =Lists!$U$13 -> тип листа | I32: =START!I38 -> Credits | K32: E14 | M32: 0 | O32: 14 | P32: * | Q32: расчетный | R32: ^ | S32: =IF(G32<>0,1,IF(OR($Q32="",$Q32=0),0,IF($R32="^",IF(COUNTIF(INDIRECT(INDEX(Lists!$15:$15,SUMIFS(Lists!$1:$1,Lists!$13:$13,$H32))),$Q32)=1,0,1),0))) -> 0 | U32: * | V32: 0.001
A33: =ROW() -> 33 | G33: =IF($R33="^",IF(COUNTIF(Lists!$13:$13,H33)=1,0,1),0) -> 0 | H33: =Lists!$U$13 -> тип листа | I33: =START!I39 -> PL | K33: E14 | M33: 0 | O33: 15 | P33: * | Q33: отчетный | R33: ^ | S33: =IF(G33<>0,1,IF(OR($Q33="",$Q33=0),0,IF($R33="^",IF(COUNTIF(INDIRECT(INDEX(Lists!$15:$15,SUMIFS(Lists!$1:$1,Lists!$13:$13,$H33))),$Q33)=1,0,1),0))) -> 0 | U33: * | V33: 0.001
A34: =ROW() -> 34 | G34: =IF($R34="^",IF(COUNTIF(Lists!$13:$13,H34)=1,0,1),0) -> 0 | H34: =Lists!$U$13 -> тип листа | I34: =START!I40 -> CF | K34: E14 | M34: 0 | O34: 16 | P34: * | Q34: отчетный | R34: ^ | S34: =IF(G34<>0,1,IF(OR($Q34="",$Q34=0),0,IF($R34="^",IF(COUNTIF(INDIRECT(INDEX(Lists!$15:$15,SUMIFS(Lists!$1:$1,Lists!$13:$13,$H34))),$Q34)=1,0,1),0))) -> 0 | U34: * | V34: 0.001
A35: =ROW() -> 35 | G35: =IF($R35="^",IF(COUNTIF(Lists!$13:$13,H35)=1,0,1),0) -> 0 | H35: =Lists!$U$13 -> тип листа | I35: =START!I41 -> BS | K35: E14 | M35: 0 | O35: 17 | P35: * | Q35: отчетный | R35: ^ | S35: =IF(G35<>0,1,IF(OR($Q35="",$Q35=0),0,IF($R35="^",IF(COUNTIF(INDIRECT(INDEX(Lists!$15:$15,SUMIFS(Lists!$1:$1,Lists!$13:$13,$H35))),$Q35)=1,0,1),0))) -> 0 | U35: * | V35: 0.01
A36: =ROW() -> 36 | G36: =IF($R36="^",IF(COUNTIF(Lists!$13:$13,H36)=1,0,1),0) -> 0 | H36: =Lists!$U$13 -> тип листа | I36: =START!I42 -> MAIN | K36: E14 | M36: 0 | O36: 18 | P36: * | Q36: отчетный | R36: ^ | S36: =IF(G36<>0,1,IF(OR($Q36="",$Q36=0),0,IF($R36="^",IF(COUNTIF(INDIRECT(INDEX(Lists!$15:$15,SUMIFS(Lists!$1:$1,Lists!$13:$13,$H36))),$Q36)=1,0,1),0))) -> 0 | U36: * | V36: 0.001
A37: =ROW() -> 37 | G37: =IF($R37="^",IF(COUNTIF(Lists!$13:$13,H37)=1,0,1),0) -> 0 | H37: =Lists!$U$13 -> тип листа | I37: =START!I43 -> PLd | K37: E14 | M37: 0 | O37: 19 | P37: * | Q37: расчетный | R37: ^ | S37: =IF(G37<>0,1,IF(OR($Q37="",$Q37=0),0,IF($R37="^",IF(COUNTIF(INDIRECT(INDEX(Lists!$15:$15,SUMIFS(Lists!$1:$1,Lists!$13:$13,$H37))),$Q37)=1,0,1),0))) -> 0 | U37: * | V37: 0.01
A38: =ROW() -> 38 | G38: =IF($R38="^",IF(COUNTIF(Lists!$13:$13,H38)=1,0,1),0) -> 0 | H38: =Lists!$U$13 -> тип листа | I38: =START!I44 -> CFd | K38: E14 | M38: 0 | O38: 20 | P38: * | Q38: расчетный | R38: ^ | S38: =IF(G38<>0,1,IF(OR($Q38="",$Q38=0),0,IF($R38="^",IF(COUNTIF(INDIRECT(INDEX(Lists!$15:$15,SUMIFS(Lists!$1:$1,Lists!$13:$13,$H38))),$Q38)=1,0,1),0))) -> 0 | U38: * | V38: 0.01
A39: =ROW() -> 39 | G39: =IF($R39="^",IF(COUNTIF(Lists!$13:$13,H39)=1,0,1),0) -> 0 | H39: =Lists!$U$13 -> тип листа | I39: =START!I45 -> BSd | K39: E14 | M39: 0 | O39: 21 | P39: * | Q39: расчетный | R39: ^ | S39: =IF(G39<>0,1,IF(OR($Q39="",$Q39=0),0,IF($R39="^",IF(COUNTIF(INDIRECT(INDEX(Lists!$15:$15,SUMIFS(Lists!$1:$1,Lists!$13:$13,$H39))),$Q39)=1,0,1),0))) -> 0 | U39: * | V39: 0.1
A40: =ROW() -> 40 | G40: =IF($R40="^",IF(COUNTIF(Lists!$13:$13,H40)=1,0,1),0) -> 0 | H40: =Lists!$U$13 -> тип листа | I40: =START!I46 -> Sens | K40: E14 | M40: 0 | O40: 22 | P40: * | Q40: отчетный | R40: ^ | S40: =IF(G40<>0,1,IF(OR($Q40="",$Q40=0),0,IF($R40="^",IF(COUNTIF(INDIRECT(INDEX(Lists!$15:$15,SUMIFS(Lists!$1:$1,Lists!$13:$13,$H40))),$Q40)=1,0,1),0))) -> 0 | U40: * | V40: 0.001
A41: =ROW() -> 41 | G41: =IF($R41="^",IF(COUNTIF(Lists!$13:$13,H41)=1,0,1),0) -> 0 | H41: =Lists!$U$13 -> тип листа | I41: =START!I47 -> UnitEc | K41: E14 | M41: 0 | O41: 23 | P41: * | Q41: отчетный | R41: ^ | S41: =IF(G41<>0,1,IF(OR($Q41="",$Q41=0),0,IF($R41="^",IF(COUNTIF(INDIRECT(INDEX(Lists!$15:$15,SUMIFS(Lists!$1:$1,Lists!$13:$13,$H41))),$Q41)=1,0,1),0))) -> 0 | U41: * | V41: 0.001
A42: =ROW() -> 42 | G42: =IF($R42="^",IF(COUNTIF(Lists!$13:$13,H42)=1,0,1),0) -> 0 | H42: =Lists!$U$13 -> тип листа | I42: =START!I48 -> CFind | K42: E14 | M42: 0 | O42: 24 | P42: * | Q42: отчетный | R42: ^ | S42: =IF(G42<>0,1,IF(OR($Q42="",$Q42=0),0,IF($R42="^",IF(COUNTIF(INDIRECT(INDEX(Lists!$15:$15,SUMIFS(Lists!$1:$1,Lists!$13:$13,$H42))),$Q42)=1,0,1),0))) -> 0 | U42: * | V42: 0.01
A43: =ROW() -> 43 | G43: =IF($R43="^",IF(COUNTIF(Lists!$13:$13,H43)=1,0,1),0) -> 0 | H43: =Lists!$U$13 -> тип листа | I43: =START!I49 -> FinEcAn | K43: E14 | M43: 0 | O43: 25 | P43: * | Q43: отчетный | R43: ^ | S43: =IF(G43<>0,1,IF(OR($Q43="",$Q43=0),0,IF($R43="^",IF(COUNTIF(INDIRECT(INDEX(Lists!$15:$15,SUMIFS(Lists!$1:$1,Lists!$13:$13,$H43))),$Q43)=1,0,1),0))) -> 0 | U43: * | V43: 0.001
A44: =ROW() -> 44 | G44: =IF($R44="^",IF(COUNTIF(Lists!$13:$13,H44)=1,0,1),0) -> 0 | H44: =Lists!$U$13 -> тип листа | I44: =START!I50 -> InvAn | K44: E14 | M44: 0 | O44: 26 | P44: * | Q44: отчетный | R44: ^ | S44: =IF(G44<>0,1,IF(OR($Q44="",$Q44=0),0,IF($R44="^",IF(COUNTIF(INDIRECT(INDEX(Lists!$15:$15,SUMIFS(Lists!$1:$1,Lists!$13:$13,$H44))),$Q44)=1,0,1),0))) -> 0 | U44: * | V44: 0.001
A45: =ROW() -> 45 | G45: =IF($R45="^",IF(COUNTIF(Lists!$13:$13,H45)=1,0,1),0) -> 0 | H45: =Lists!$U$13 -> тип листа | I45: =START!I51 -> EBITDA | K45: E14 | M45: =IFERROR(INDIRECT($I45&"!"&$K45),1) -> 0 | O45: =_xlfn.SHEET(INDIRECT($I45&"!"&$K45)) -> 27 | P45: * | Q45: отчетный | R45: ^ | S45: =IF(G45<>0,1,IF(OR($Q45="",$Q45=0),0,IF($R45="^",IF(COUNTIF(INDIRECT(INDEX(Lists!$15:$15,SUMIFS(Lists!$1:$1,Lists!$13:$13,$H45))),$Q45)=1,0,1),0))) -> 0 | U45: * | V45: 0.001
A46: =ROW() -> 46 | G46: =IF($R46="^",IF(COUNTIF(Lists!$13:$13,H46)=1,0,1),0) -> 0 | H46: =Lists!$U$13 -> тип листа | I46: =START!I52 -> Rep | K46: E14 | M46: =IFERROR(INDIRECT($I46&"!"&$K46),1) -> 0 | O46: =_xlfn.SHEET(INDIRECT($I46&"!"&$K46)) -> 28 | P46: * | Q46: отчетный | R46: ^ | S46: =IF(G46<>0,1,IF(OR($Q46="",$Q46=0),0,IF($R46="^",IF(COUNTIF(INDIRECT(INDEX(Lists!$15:$15,SUMIFS(Lists!$1:$1,Lists!$13:$13,$H46))),$Q46)=1,0,1),0))) -> 0 | U46: * | V46: 0.01
A47: =ROW() -> 47 | G47: =IF($R47="^",IF(COUNTIF(Lists!$13:$13,H47)=1,0,1),0) -> 0 | H47: =Lists!$U$13 -> тип листа | I47: =START!I53 -> Repd | K47: E14 | M47: =IFERROR(INDIRECT($I47&"!"&$K47),1) -> 0 | O47: =_xlfn.SHEET(INDIRECT($I47&"!"&$K47)) -> 29 | P47: * | Q47: расчетный | R47: ^ | S47: =IF(G47<>0,1,IF(OR($Q47="",$Q47=0),0,IF($R47="^",IF(COUNTIF(INDIRECT(INDEX(Lists!$15:$15,SUMIFS(Lists!$1:$1,Lists!$13:$13,$H47))),$Q47)=1,0,1),0))) -> 0 | U47: * | V47: 0.1
A48: =ROW() -> 48 | G48: =IF($R48="^",IF(COUNTIF(Lists!$13:$13,H48)=1,0,1),0) -> 0 | H48: =Lists!$U$13 -> тип листа | I48: =START!I54 -> Calc | K48: E14 | M48: =IFERROR(INDIRECT($I48&"!"&$K48),1) -> 0 | O48: =_xlfn.SHEET(INDIRECT($I48&"!"&$K48)) -> 30 | P48: * | Q48: расчетный | R48: ^ | S48: =IF(G48<>0,1,IF(OR($Q48="",$Q48=0),0,IF($R48="^",IF(COUNTIF(INDIRECT(INDEX(Lists!$15:$15,SUMIFS(Lists!$1:$1,Lists!$13:$13,$H48))),$Q48)=1,0,1),0))) -> 0 | U48: * | V48: 0.1
A49: =ROW() -> 49 | G49: =IF($R49="^",IF(COUNTIF(Lists!$13:$13,H49)=1,0,1),0) -> 0 | H49: =Lists!$U$13 -> тип листа | I49: =START!I55 -> Fact | K49: E14 | P49: * | Q49: расчетный | R49: ^ | S49: =IF(G49<>0,1,IF(OR($Q49="",$Q49=0),0,IF($R49="^",IF(COUNTIF(INDIRECT(INDEX(Lists!$15:$15,SUMIFS(Lists!$1:$1,Lists!$13:$13,$H49))),$Q49)=1,0,1),0))) -> 0 | U49: * | V49: 0
A50: =ROW() -> 50 | G50: =IF($R50="^",IF(COUNTIF(Lists!$13:$13,H50)=1,0,1),0) -> 0 | H50: =Lists!$U$13 -> тип листа | I50: =START!I56 -> 1S | K50: E14 | P50: * | Q50: расчетный | R50: ^ | S50: =IF(G50<>0,1,IF(OR($Q50="",$Q50=0),0,IF($R50="^",IF(COUNTIF(INDIRECT(INDEX(Lists!$15:$15,SUMIFS(Lists!$1:$1,Lists!$13:$13,$H50))),$Q50)=1,0,1),0))) -> 0 | U50: * | V50: 0
A51: =ROW() -> 51 | G51: =IF($R51="^",IF(COUNTIF(Lists!$13:$13,H51)=1,0,1),0) -> 0 | H51: =Lists!$U$13 -> тип листа | I51: =START!I57 -> Rules | K51: E14 | P51: * | Q51: расчетный | R51: ^ | S51: =IF(G51<>0,1,IF(OR($Q51="",$Q51=0),0,IF($R51="^",IF(COUNTIF(INDIRECT(INDEX(Lists!$15:$15,SUMIFS(Lists!$1:$1,Lists!$13:$13,$H51))),$Q51)=1,0,1),0))) -> 0 | U51: * | V51: 0
A52: =ROW() -> 52 | G52: =IF($R52="^",IF(COUNTIF(Lists!$13:$13,H52)=1,0,1),0) -> 0 | H52: =Lists!$U$13 -> тип листа | I52: =START!I58 -> Res1 | K52: E14 | P52: * | Q52: расчетный | R52: ^ | S52: =IF(G52<>0,1,IF(OR($Q52="",$Q52=0),0,IF($R52="^",IF(COUNTIF(INDIRECT(INDEX(Lists!$15:$15,SUMIFS(Lists!$1:$1,Lists!$13:$13,$H52))),$Q52)=1,0,1),0))) -> 0 | U52: * | V52: 0
A53: =ROW() -> 53 | G53: =IF($R53="^",IF(COUNTIF(Lists!$13:$13,H53)=1,0,1),0) -> 0 | H53: =Lists!$U$13 -> тип листа | I53: =START!I59 -> Res2 | K53: E14 | P53: * | Q53: расчетный | R53: ^ | S53: =IF(G53<>0,1,IF(OR($Q53="",$Q53=0),0,IF($R53="^",IF(COUNTIF(INDIRECT(INDEX(Lists!$15:$15,SUMIFS(Lists!$1:$1,Lists!$13:$13,$H53))),$Q53)=1,0,1),0))) -> 0 | U53: * | V53: 0
A54: =ROW() -> 54 | G54: =IF($R54="^",IF(COUNTIF(Lists!$13:$13,H54)=1,0,1),0) -> 0 | H54: =Lists!$U$13 -> тип листа | I54: =START!I60 -> Res3 | K54: E14 | P54: * | Q54: расчетный | R54: ^ | S54: =IF(G54<>0,1,IF(OR($Q54="",$Q54=0),0,IF($R54="^",IF(COUNTIF(INDIRECT(INDEX(Lists!$15:$15,SUMIFS(Lists!$1:$1,Lists!$13:$13,$H54))),$Q54)=1,0,1),0))) -> 0 | U54: * | V54: 0
A55: =ROW() -> 55 | G55: =IF($R55="^",IF(COUNTIF(Lists!$13:$13,H55)=1,0,1),0) -> 0 | H55: =Lists!$U$13 -> тип листа | I55: =START!I61 -> Res4 | K55: E14 | P55: * | Q55: расчетный | R55: ^ | S55: =IF(G55<>0,1,IF(OR($Q55="",$Q55=0),0,IF($R55="^",IF(COUNTIF(INDIRECT(INDEX(Lists!$15:$15,SUMIFS(Lists!$1:$1,Lists!$13:$13,$H55))),$Q55)=1,0,1),0))) -> 0 | U55: * | V55: 0
A56: =ROW() -> 56 | G56: =IF($R56="^",IF(COUNTIF(Lists!$13:$13,H56)=1,0,1),0) -> 0 | H56: =Lists!$U$13 -> тип листа | I56: =START!I62 -> Res5 | K56: E14 | P56: * | Q56: расчетный | R56: ^ | S56: =IF(G56<>0,1,IF(OR($Q56="",$Q56=0),0,IF($R56="^",IF(COUNTIF(INDIRECT(INDEX(Lists!$15:$15,SUMIFS(Lists!$1:$1,Lists!$13:$13,$H56))),$Q56)=1,0,1),0))) -> 0 | U56: * | V56: 0
A57: =ROW() -> 57
A58: =ROW() -> 58
A59: =ROW() -> 59
A60: =ROW() -> 60
A61: =ROW() -> 61
A62: =ROW() -> 62
A63: =ROW() -> 63
A64: =ROW() -> 64
A65: =ROW() -> 65
A66: =ROW() -> 66
A67: =ROW() -> 67
A68: =ROW() -> 68
A69: =ROW() -> 69
A70: =ROW() -> 70

Sheet Periods
Y1: =START!$K$132 -> номер столбца: | AA1: =COLUMN() -> 27 | AB1: =COLUMN() -> 28 | AC1: =COLUMN() -> 29 | AD1: =COLUMN() -> 30 | AE1: =COLUMN() -> 31 | AF1: =COLUMN() -> 32 | AG1: =COLUMN() -> 33 | AH1: =COLUMN() -> 34 | AI1: =COLUMN() -> 35 | AJ1: =COLUMN() -> 36 | AK1: =COLUMN() -> 37 | AL1: =COLUMN() -> 38 | AM1: =COLUMN() -> 39 | AN1: =COLUMN() -> 40 | AO1: =COLUMN() -> 41 | AP1: =COLUMN() -> 42 | AQ1: =COLUMN() -> 43 | AR1: =COLUMN() -> 44 | AS1: =COLUMN() -> 45 | AT1: =COLUMN() -> 46 | AU1: =COLUMN() -> 47 | AV1: =COLUMN() -> 48 | AW1: =COLUMN() -> 49 | AX1: =COLUMN() -> 50 | AY1: =COLUMN() -> 51 | AZ1: =COLUMN() -> 52 | BA1: =COLUMN() -> 53 | BB1: =COLUMN() -> 54 | BC1: =COLUMN() -> 55 | BD1: =COLUMN() -> 56 | BE1: =COLUMN() -> 57 | BF1: =COLUMN() -> 58 | BG1: =COLUMN() -> 59 | BH1: =COLUMN() -> 60 | BI1: =COLUMN() -> 61 | BJ1: =COLUMN() -> 62 | BK1: =COLUMN() -> 63 | BL1: =COLUMN() -> 64 | BM1: =COLUMN() -> 65 | BN1: =COLUMN() -> 66 | BO1: =COLUMN() -> 67 | BP1: =COLUMN() -> 68 | BQ1: =COLUMN() -> 69 | BR1: =COLUMN() -> 70 | BS1: =COLUMN() -> 71 | BT1: =COLUMN() -> 72 | BU1: =COLUMN() -> 73 | BV1: =COLUMN() -> 74 | BW1: =COLUMN() -> 75 | BX1: =COLUMN() -> 76 | BY1: =COLUMN() -> 77 | BZ1: =COLUMN() -> 78 | CA1: =COLUMN() -> 79 | CB1: =COLUMN() -> 80 | CC1: =COLUMN() -> 81 | CD1: =COLUMN() -> 82 | CE1: =COLUMN() -> 83 | CF1: =COLUMN() -> 84 | CG1: =COLUMN() -> 85 | CH1: =COLUMN() -> 86 | CI1: =COLUMN() -> 87 | CJ1: =COLUMN() -> 88 | CK1: =COLUMN() -> 89 | CL1: =COLUMN() -> 90 | CM1: =COLUMN() -> 91 | CN1: =COLUMN() -> 92 | CO1: =COLUMN() -> 93 | CP1: =COLUMN() -> 94 | CQ1: =COLUMN() -> 95 | CR1: =COLUMN() -> 96 | CS1: =COLUMN() -> 97 | CT1: =COLUMN() -> 98 | CU1: =COLUMN() -> 99 | CV1: =COLUMN() -> 100 | CW1: =COLUMN() -> 101 | CX1: =COLUMN() -> 102 | CY1: =COLUMN() -> 103 | CZ1: =COLUMN() -> 104 | DA1: =COLUMN() -> 105 | DB1: =COLUMN() -> 106 | DC1: =COLUMN() -> 107 | DD1: =COLUMN() -> 108 | DE1: =COLUMN() -> 109 | DF1: =COLUMN() -> 110 | DG1: =COLUMN() -> 111 | DH1: =COLUMN() -> 112 | DI1: =COLUMN() -> 113 | DJ1: =COLUMN() -> 114 | DK1: =COLUMN() -> 115 | DL1: =COLUMN() -> 116 | DM1: =COLUMN() -> 117 | DN1: =COLUMN() -> 118 | DO1: =COLUMN() -> 119 | DP1: =COLUMN() -> 120 | DQ1: =COLUMN() -> 121 | DR1: =COLUMN() -> 122 | DS1: =COLUMN() -> 123 | DT1: =COLUMN() -> 124 | DU1: =COLUMN() -> 125 | DV1: =COLUMN() -> 126 | DW1: =COLUMN() -> 127 | DX1: =COLUMN() -> 128 | DY1: =COLUMN() -> 129 | DZ1: =COLUMN() -> 130 | EA1: =COLUMN() -> 131 | EB1: =COLUMN() -> 132 | EC1: =COLUMN() -> 133 | ED1: =COLUMN() -> 134 | EE1: =COLUMN() -> 135 | EF1: =COLUMN() -> 136 | EG1: =COLUMN() -> 137 | EH1: =COLUMN() -> 138 | EI1: =COLUMN() -> 139 | EJ1: =COLUMN() -> 140 | EK1: =COLUMN() -> 141 | EL1: =COLUMN() -> 142 | EM1: =COLUMN() -> 143 | EN1: =COLUMN() -> 144 | EO1: =COLUMN() -> 145 | EP1: =COLUMN() -> 146 | EQ1: =COLUMN() -> 147 | ER1: =COLUMN() -> 148 | ES1: =COLUMN() -> 149 | ET1: =COLUMN() -> 150 | EU1: =COLUMN() -> 151 | EV1: =COLUMN() -> 152 | EW1: =COLUMN() -> 153 | EX1: =COLUMN() -> 154 | EY1: =COLUMN() -> 155 | EZ1: =COLUMN() -> 156 | FA1: =COLUMN() -> 157 | FB1: =COLUMN() -> 158 | FC1: =COLUMN() -> 159 | FD1: =COLUMN() -> 160 | FE1: =COLUMN() -> 161 | FF1: =COLUMN() -> 162 | FG1: =COLUMN() -> 163 | FH1: =COLUMN() -> 164 | FI1: =COLUMN() -> 165 | FJ1: =COLUMN() -> 166 | FK1: =COLUMN() -> 167 | FL1: =COLUMN() -> 168 | FM1: =COLUMN() -> 169 | FN1: =COLUMN() -> 170 | FO1: =COLUMN() -> 171 | FP1: =COLUMN() -> 172 | FQ1: =COLUMN() -> 173 | FR1: =COLUMN() -> 174 | FS1: =COLUMN() -> 175 | FT1: =COLUMN() -> 176 | FU1: =COLUMN() -> 177 | FV1: =COLUMN() -> 178 | FW1: =COLUMN() -> 179 | FX1: =COLUMN() -> 180 | FY1: =COLUMN() -> 181 | FZ1: =COLUMN() -> 182 | GA1: =COLUMN() -> 183 | GB1: =COLUMN() -> 184 | GC1: =COLUMN() -> 185 | GD1: =COLUMN() -> 186 | GE1: =COLUMN() -> 187 | GF1: =COLUMN() -> 188 | GG1: =COLUMN() -> 189 | GH1: =COLUMN() -> 190 | GI1: =COLUMN() -> 191 | GJ1: =COLUMN() -> 192 | GK1: =COLUMN() -> 193 | GL1: =COLUMN() -> 194 | GM1: =COLUMN() -> 195 | GN1: =COLUMN() -> 196 | GO1: =COLUMN() -> 197 | GP1: =COLUMN() -> 198 | GQ1: =COLUMN() -> 199 | GR1: =COLUMN() -> 200 | GS1: =COLUMN() -> 201 | GT1: =COLUMN() -> 202 | GU1: =COLUMN() -> 203 | GV1: =COLUMN() -> 204 | GW1: =COLUMN() -> 205 | GX1: =COLUMN() -> 206 | GY1: =COLUMN() -> 207 | GZ1: =COLUMN() -> 208 | HA1: =COLUMN() -> 209 | HB1: =COLUMN() -> 210 | HC1: =COLUMN() -> 211 | HD1: =COLUMN() -> 212 | HE1: =COLUMN() -> 213 | HF1: =COLUMN() -> 214 | HG1: =COLUMN() -> 215 | HH1: =COLUMN() -> 216 | HI1: =COLUMN() -> 217 | HJ1: =COLUMN() -> 218 | HK1: =COLUMN() -> 219
Y2: =START!$K$133 -> номер периода модели: | AA2: =MAX($Z2:Z2)+1 -> 1 | AB2: =MAX($Z2:AA2)+1 -> 2 | AC2: =MAX($Z2:AB2)+1 -> 3 | AD2: =MAX($Z2:AC2)+1 -> 4 | AE2: =MAX($Z2:AD2)+1 -> 5 | AF2: =MAX($Z2:AE2)+1 -> 6 | AG2: =MAX($Z2:AF2)+1 -> 7 | AH2: =MAX($Z2:AG2)+1 -> 8 | AI2: =MAX($Z2:AH2)+1 -> 9 | AJ2: =MAX($Z2:AI2)+1 -> 10 | AK2: =MAX($Z2:AJ2)+1 -> 11 | AL2: =MAX($Z2:AK2)+1 -> 12 | AM2: =MAX($Z2:AL2)+1 -> 13 | AN2: =MAX($Z2:AM2)+1 -> 14 | AO2: =MAX($Z2:AN2)+1 -> 15 | AP2: =MAX($Z2:AO2)+1 -> 16 | AQ2: =MAX($Z2:AP2)+1 -> 17 | AR2: =MAX($Z2:AQ2)+1 -> 18 | AS2: =MAX($Z2:AR2)+1 -> 19 | AT2: =MAX($Z2:AS2)+1 -> 20 | AU2: =MAX($Z2:AT2)+1 -> 21 | AV2: =MAX($Z2:AU2)+1 -> 22 | AW2: =MAX($Z2:AV2)+1 -> 23 | AX2: =MAX($Z2:AW2)+1 -> 24 | AY2: =MAX($Z2:AX2)+1 -> 25 | AZ2: =MAX($Z2:AY2)+1 -> 26 | BA2: =MAX($Z2:AZ2)+1 -> 27 | BB2: =MAX($Z2:BA2)+1 -> 28 | BC2: =MAX($Z2:BB2)+1 -> 29 | BD2: =MAX($Z2:BC2)+1 -> 30 | BE2: =MAX($Z2:BD2)+1 -> 31 | BF2: =MAX($Z2:BE2)+1 -> 32 | BG2: =MAX($Z2:BF2)+1 -> 33 | BH2: =MAX($Z2:BG2)+1 -> 34 | BI2: =MAX($Z2:BH2)+1 -> 35 | BJ2: =MAX($Z2:BI2)+1 -> 36 | BK2: =MAX($Z2:BJ2)+1 -> 37 | BL2: =MAX($Z2:BK2)+1 -> 38 | BM2: =MAX($Z2:BL2)+1 -> 39 | BN2: =MAX($Z2:BM2)+1 -> 40 | BO2: =MAX($Z2:BN2)+1 -> 41 | BP2: =MAX($Z2:BO2)+1 -> 42 | BQ2: =MAX($Z2:BP2)+1 -> 43 | BR2: =MAX($Z2:BQ2)+1 -> 44 | BS2: =MAX($Z2:BR2)+1 -> 45 | BT2: =MAX($Z2:BS2)+1 -> 46 | BU2: =MAX($Z2:BT2)+1 -> 47 | BV2: =MAX($Z2:BU2)+1 -> 48 | BW2: =MAX($Z2:BV2)+1 -> 49 | BX2: =MAX($Z2:BW2)+1 -> 50 | BY2: =MAX($Z2:BX2)+1 -> 51 | BZ2: =MAX($Z2:BY2)+1 -> 52 | CA2: =MAX($Z2:BZ2)+1 -> 53 | CB2: =MAX($Z2:CA2)+1 -> 54 | CC2: =MAX($Z2:CB2)+1 -> 55 | CD2: =MAX($Z2:CC2)+1 -> 56 | CE2: =MAX($Z2:CD2)+1 -> 57 | CF2: =MAX($Z2:CE2)+1 -> 58 | CG2: =MAX($Z2:CF2)+1 -> 59 | CH2: =MAX($Z2:CG2)+1 -> 60 | CI2: =MAX($Z2:CH2)+1 -> 61 | CJ2: =MAX($Z2:CI2)+1 -> 62 | CK2: =MAX($Z2:CJ2)+1 -> 63 | CL2: =MAX($Z2:CK2)+1 -> 64 | CM2: =MAX($Z2:CL2)+1 -> 65 | CN2: =MAX($Z2:CM2)+1 -> 66 | CO2: =MAX($Z2:CN2)+1 -> 67 | CP2: =MAX($Z2:CO2)+1 -> 68 | CQ2: =MAX($Z2:CP2)+1 -> 69 | CR2: =MAX($Z2:CQ2)+1 -> 70 | CS2: =MAX($Z2:CR2)+1 -> 71 | CT2: =MAX($Z2:CS2)+1 -> 72 | CU2: =MAX($Z2:CT2)+1 -> 73 | CV2: =MAX($Z2:CU2)+1 -> 74 | CW2: =MAX($Z2:CV2)+1 -> 75 | CX2: =MAX($Z2:CW2)+1 -> 76 | CY2: =MAX($Z2:CX2)+1 -> 77 | CZ2: =MAX($Z2:CY2)+1 -> 78 | DA2: =MAX($Z2:CZ2)+1 -> 79 | DB2: =MAX($Z2:DA2)+1 -> 80 | DC2: =MAX($Z2:DB2)+1 -> 81 | DD2: =MAX($Z2:DC2)+1 -> 82 | DE2: =MAX($Z2:DD2)+1 -> 83 | DF2: =MAX($Z2:DE2)+1 -> 84 | DG2: =MAX($Z2:DF2)+1 -> 85 | DH2: =MAX($Z2:DG2)+1 -> 86 | DI2: =MAX($Z2:DH2)+1 -> 87 | DJ2: =MAX($Z2:DI2)+1 -> 88 | DK2: =MAX($Z2:DJ2)+1 -> 89 | DL2: =MAX($Z2:DK2)+1 -> 90 | DM2: =MAX($Z2:DL2)+1 -> 91 | DN2: =MAX($Z2:DM2)+1 -> 92 | DO2: =MAX($Z2:DN2)+1 -> 93 | DP2: =MAX($Z2:DO2)+1 -> 94 | DQ2: =MAX($Z2:DP2)+1 -> 95 | DR2: =MAX($Z2:DQ2)+1 -> 96 | DS2: =MAX($Z2:DR2)+1 -> 97 | DT2: =MAX($Z2:DS2)+1 -> 98 | DU2: =MAX($Z2:DT2)+1 -> 99 | DV2: =MAX($Z2:DU2)+1 -> 100 | DW2: =MAX($Z2:DV2)+1 -> 101 | DX2: =MAX($Z2:DW2)+1 -> 102 | DY2: =MAX($Z2:DX2)+1 -> 103 | DZ2: =MAX($Z2:DY2)+1 -> 104 | EA2: =MAX($Z2:DZ2)+1 -> 105 | EB2: =MAX($Z2:EA2)+1 -> 106 | EC2: =MAX($Z2:EB2)+1 -> 107 | ED2: =MAX($Z2:EC2)+1 -> 108 | EE2: =MAX($Z2:ED2)+1 -> 109 | EF2: =MAX($Z2:EE2)+1 -> 110 | EG2: =MAX($Z2:EF2)+1 -> 111 | EH2: =MAX($Z2:EG2)+1 -> 112 | EI2: =MAX($Z2:EH2)+1 -> 113 | EJ2: =MAX($Z2:EI2)+1 -> 114 | EK2: =MAX($Z2:EJ2)+1 -> 115 | EL2: =MAX($Z2:EK2)+1 -> 116 | EM2: =MAX($Z2:EL2)+1 -> 117 | EN2: =MAX($Z2:EM2)+1 -> 118 | EO2: =MAX($Z2:EN2)+1 -> 119 | EP2: =MAX($Z2:EO2)+1 -> 120 | EQ2: =MAX($Z2:EP2)+1 -> 121 | ER2: =MAX($Z2:EQ2)+1 -> 122 | ES2: =MAX($Z2:ER2)+1 -> 123 | ET2: =MAX($Z2:ES2)+1 -> 124 | EU2: =MAX($Z2:ET2)+1 -> 125 | EV2: =MAX($Z2:EU2)+1 -> 126 | EW2: =MAX($Z2:EV2)+1 -> 127 | EX2: =MAX($Z2:EW2)+1 -> 128 | EY2: =MAX($Z2:EX2)+1 -> 129 | EZ2: =MAX($Z2:EY2)+1 -> 130 | FA2: =MAX($Z2:EZ2)+1 -> 131 | FB2: =MAX($Z2:FA2)+1 -> 132 | FC2: =MAX($Z2:FB2)+1 -> 133 | FD2: =MAX($Z2:FC2)+1 -> 134 | FE2: =MAX($Z2:FD2)+1 -> 135 | FF2: =MAX($Z2:FE2)+1 -> 136 | FG2: =MAX($Z2:FF2)+1 -> 137 | FH2: =MAX($Z2:FG2)+1 -> 138 | FI2: =MAX($Z2:FH2)+1 -> 139 | FJ2: =MAX($Z2:FI2)+1 -> 140 | FK2: =MAX($Z2:FJ2)+1 -> 141 | FL2: =MAX($Z2:FK2)+1 -> 142 | FM2: =MAX($Z2:FL2)+1 -> 143 | FN2: =MAX($Z2:FM2)+1 -> 144 | FO2: =MAX($Z2:FN2)+1 -> 145 | FP2: =MAX($Z2:FO2)+1 -> 146 | FQ2: =MAX($Z2:FP2)+1 -> 147 | FR2: =MAX($Z2:FQ2)+1 -> 148 | FS2: =MAX($Z2:FR2)+1 -> 149 | FT2: =MAX($Z2:FS2)+1 -> 150 | FU2: =MAX($Z2:FT2)+1 -> 151 | FV2: =MAX($Z2:FU2)+1 -> 152 | FW2: =MAX($Z2:FV2)+1 -> 153 | FX2: =MAX($Z2:FW2)+1 -> 154 | FY2: =MAX($Z2:FX2)+1 -> 155 | FZ2: =MAX($Z2:FY2)+1 -> 156 | GA2: =MAX($Z2:FZ2)+1 -> 157 | GB2: =MAX($Z2:GA2)+1 -> 158 | GC2: =MAX($Z2:GB2)+1 -> 159 | GD2: =MAX($Z2:GC2)+1 -> 160 | GE2: =MAX($Z2:GD2)+1 -> 161 | GF2: =MAX($Z2:GE2)+1 -> 162 | GG2: =MAX($Z2:GF2)+1 -> 163 | GH2: =MAX($Z2:GG2)+1 -> 164 | GI2: =MAX($Z2:GH2)+1 -> 165 | GJ2: =MAX($Z2:GI2)+1 -> 166 | GK2: =MAX($Z2:GJ2)+1 -> 167 | GL2: =MAX($Z2:GK2)+1 -> 168 | GM2: =MAX($Z2:GL2)+1 -> 169 | GN2: =MAX($Z2:GM2)+1 -> 170 | GO2: =MAX($Z2:GN2)+1 -> 171 | GP2: =MAX($Z2:GO2)+1 -> 172 | GQ2: =MAX($Z2:GP2)+1 -> 173 | GR2: =MAX($Z2:GQ2)+1 -> 174 | GS2: =MAX($Z2:GR2)+1 -> 175 | GT2: =MAX($Z2:GS2)+1 -> 176 | GU2: =MAX($Z2:GT2)+1 -> 177 | GV2: =MAX($Z2:GU2)+1 -> 178 | GW2: =MAX($Z2:GV2)+1 -> 179 | GX2: =MAX($Z2:GW2)+1 -> 180 | GY2: =MAX($Z2:GX2)+1 -> 181 | GZ2: =MAX($Z2:GY2)+1 -> 182 | HA2: =MAX($Z2:GZ2)+1 -> 183 | HB2: =MAX($Z2:HA2)+1 -> 184 | HC2: =MAX($Z2:HB2)+1 -> 185 | HD2: =MAX($Z2:HC2)+1 -> 186 | HE2: =MAX($Z2:HD2)+1 -> 187 | HF2: =MAX($Z2:HE2)+1 -> 188 | HG2: =MAX($Z2:HF2)+1 -> 189 | HH2: =MAX($Z2:HG2)+1 -> 190 | HI2: =MAX($Z2:HH2)+1 -> 191 | HJ2: =MAX($Z2:HI2)+1 -> 192 | HK2: =MAX($Z2:HJ2)+1 -> 193
Y3: =START!$K$134 -> номер факт-периода: | AA3: =IF($Q$12=Lists!$U$16,IF(Periods!AA28="","",MAX($Z3:Z3)+1),"") ->  | AB3: =IF($Q$12=Lists!$U$16,IF(Periods!AB28="","",MAX($Z3:AA3)+1),"") ->  | AC3: =IF($Q$12=Lists!$U$16,IF(Periods!AC28="","",MAX($Z3:AB3)+1),"") ->  | AD3: =IF($Q$12=Lists!$U$16,IF(Periods!AD28="","",MAX($Z3:AC3)+1),"") ->  | AE3: =IF($Q$12=Lists!$U$16,IF(Periods!AE28="","",MAX($Z3:AD3)+1),"") ->  | AF3: =IF($Q$12=Lists!$U$16,IF(Periods!AF28="","",MAX($Z3:AE3)+1),"") ->  | AG3: =IF($Q$12=Lists!$U$16,IF(Periods!AG28="","",MAX($Z3:AF3)+1),"") ->  | AH3: =IF($Q$12=Lists!$U$16,IF(Periods!AH28="","",MAX($Z3:AG3)+1),"") ->  | AI3: =IF($Q$12=Lists!$U$16,IF(Periods!AI28="","",MAX($Z3:AH3)+1),"") ->  | AJ3: =IF($Q$12=Lists!$U$16,IF(Periods!AJ28="","",MAX($Z3:AI3)+1),"") ->  | AK3: =IF($Q$12=Lists!$U$16,IF(Periods!AK28="","",MAX($Z3:AJ3)+1),"") ->  | AL3: =IF($Q$12=Lists!$U$16,IF(Periods!AL28="","",MAX($Z3:AK3)+1),"") ->  | AM3: =IF($Q$12=Lists!$U$16,IF(Periods!AM28="","",MAX($Z3:AL3)+1),"") ->  | AN3: =IF($Q$12=Lists!$U$16,IF(Periods!AN28="","",MAX($Z3:AM3)+1),"") ->  | AO3: =IF($Q$12=Lists!$U$16,IF(Periods!AO28="","",MAX($Z3:AN3)+1),"") ->  | AP3: =IF($Q$12=Lists!$U$16,IF(Periods!AP28="","",MAX($Z3:AO3)+1),"") ->  | AQ3: =IF($Q$12=Lists!$U$16,IF(Periods!AQ28="","",MAX($Z3:AP3)+1),"") ->  | AR3: =IF($Q$12=Lists!$U$16,IF(Periods!AR28="","",MAX($Z3:AQ3)+1),"") ->  | AS3: =IF($Q$12=Lists!$U$16,IF(Periods!AS28="","",MAX($Z3:AR3)+1),"") ->  | AT3: =IF($Q$12=Lists!$U$16,IF(Periods!AT28="","",MAX($Z3:AS3)+1),"") ->  | AU3: =IF($Q$12=Lists!$U$16,IF(Periods!AU28="","",MAX($Z3:AT3)+1),"") ->  | AV3: =IF($Q$12=Lists!$U$16,IF(Periods!AV28="","",MAX($Z3:AU3)+1),"") ->  | AW3: =IF($Q$12=Lists!$U$16,IF(Periods!AW28="","",MAX($Z3:AV3)+1),"") ->  | AX3: =IF($Q$12=Lists!$U$16,IF(Periods!AX28="","",MAX($Z3:AW3)+1),"") ->  | AY3: =IF($Q$12=Lists!$U$16,IF(Periods!AY28="","",MAX($Z3:AX3)+1),"") ->  | AZ3: =IF($Q$12=Lists!$U$16,IF(Periods!AZ28="","",MAX($Z3:AY3)+1),"") ->  | BA3: =IF($Q$12=Lists!$U$16,IF(Periods!BA28="","",MAX($Z3:AZ3)+1),"") ->  | BB3: =IF($Q$12=Lists!$U$16,IF(Periods!BB28="","",MAX($Z3:BA3)+1),"") ->  | BC3: =IF($Q$12=Lists!$U$16,IF(Periods!BC28="","",MAX($Z3:BB3)+1),"") ->  | BD3: =IF($Q$12=Lists!$U$16,IF(Periods!BD28="","",MAX($Z3:BC3)+1),"") ->  | BE3: =IF($Q$12=Lists!$U$16,IF(Periods!BE28="","",MAX($Z3:BD3)+1),"") ->  | BF3: =IF($Q$12=Lists!$U$16,IF(Periods!BF28="","",MAX($Z3:BE3)+1),"") ->  | BG3: =IF($Q$12=Lists!$U$16,IF(Periods!BG28="","",MAX($Z3:BF3)+1),"") ->  | BH3: =IF($Q$12=Lists!$U$16,IF(Periods!BH28="","",MAX($Z3:BG3)+1),"") ->  | BI3: =IF($Q$12=Lists!$U$16,IF(Periods!BI28="","",MAX($Z3:BH3)+1),"") ->  | BJ3: =IF($Q$12=Lists!$U$16,IF(Periods!BJ28="","",MAX($Z3:BI3)+1),"") ->  | BK3: =IF($Q$12=Lists!$U$16,IF(Periods!BK28="","",MAX($Z3:BJ3)+1),"") ->  | BL3: =IF($Q$12=Lists!$U$16,IF(Periods!BL28="","",MAX($Z3:BK3)+1),"") ->  | BM3: =IF($Q$12=Lists!$U$16,IF(Periods!BM28="","",MAX($Z3:BL3)+1),"") ->  | BN3: =IF($Q$12=Lists!$U$16,IF(Periods!BN28="","",MAX($Z3:BM3)+1),"") ->  | BO3: =IF($Q$12=Lists!$U$16,IF(Periods!BO28="","",MAX($Z3:BN3)+1),"") ->  | BP3: =IF($Q$12=Lists!$U$16,IF(Periods!BP28="","",MAX($Z3:BO3)+1),"") ->  | BQ3: =IF($Q$12=Lists!$U$16,IF(Periods!BQ28="","",MAX($Z3:BP3)+1),"") ->  | BR3: =IF($Q$12=Lists!$U$16,IF(Periods!BR28="","",MAX($Z3:BQ3)+1),"") ->  | BS3: =IF($Q$12=Lists!$U$16,IF(Periods!BS28="","",MAX($Z3:BR3)+1),"") ->  | BT3: =IF($Q$12=Lists!$U$16,IF(Periods!BT28="","",MAX($Z3:BS3)+1),"") ->  | BU3: =IF($Q$12=Lists!$U$16,IF(Periods!BU28="","",MAX($Z3:BT3)+1),"") ->  | BV3: =IF($Q$12=Lists!$U$16,IF(Periods!BV28="","",MAX($Z3:BU3)+1),"") ->  | BW3: =IF($Q$12=Lists!$U$16,IF(Periods!BW28="","",MAX($Z3:BV3)+1),"") ->  | BX3: =IF($Q$12=Lists!$U$16,IF(Periods!BX28="","",MAX($Z3:BW3)+1),"") ->  | BY3: =IF($Q$12=Lists!$U$16,IF(Periods!BY28="","",MAX($Z3:BX3)+1),"") ->  | BZ3: =IF($Q$12=Lists!$U$16,IF(Periods!BZ28="","",MAX($Z3:BY3)+1),"") ->  | CA3: =IF($Q$12=Lists!$U$16,IF(Periods!CA28="","",MAX($Z3:BZ3)+1),"") ->  | CB3: =IF($Q$12=Lists!$U$16,IF(Periods!CB28="","",MAX($Z3:CA3)+1),"") ->  | CC3: =IF($Q$12=Lists!$U$16,IF(Periods!CC28="","",MAX($Z3:CB3)+1),"") ->  | CD3: =IF($Q$12=Lists!$U$16,IF(Periods!CD28="","",MAX($Z3:CC3)+1),"") ->  | CE3: =IF($Q$12=Lists!$U$16,IF(Periods!CE28="","",MAX($Z3:CD3)+1),"") ->  | CF3: =IF($Q$12=Lists!$U$16,IF(Periods!CF28="","",MAX($Z3:CE3)+1),"") ->  | CG3: =IF($Q$12=Lists!$U$16,IF(Periods!CG28="","",MAX($Z3:CF3)+1),"") ->  | CH3: =IF($Q$12=Lists!$U$16,IF(Periods!CH28="","",MAX($Z3:CG3)+1),"") ->  | CI3: =IF($Q$12=Lists!$U$16,IF(Periods!CI28="","",MAX($Z3:CH3)+1),"") ->  | CJ3: =IF($Q$12=Lists!$U$16,IF(Periods!CJ28="","",MAX($Z3:CI3)+1),"") ->  | CK3: =IF($Q$12=Lists!$U$16,IF(Periods!CK28="","",MAX($Z3:CJ3)+1),"") ->  | CL3: =IF($Q$12=Lists!$U$16,IF(Periods!CL28="","",MAX($Z3:CK3)+1),"") ->  | CM3: =IF($Q$12=Lists!$U$16,IF(Periods!CM28="","",MAX($Z3:CL3)+1),"") ->  | CN3: =IF($Q$12=Lists!$U$16,IF(Periods!CN28="","",MAX($Z3:CM3)+1),"") ->  | CO3: =IF($Q$12=Lists!$U$16,IF(Periods!CO28="","",MAX($Z3:CN3)+1),"") ->  | CP3: =IF($Q$12=Lists!$U$16,IF(Periods!CP28="","",MAX($Z3:CO3)+1),"") ->  | CQ3: =IF($Q$12=Lists!$U$16,IF(Periods!CQ28="","",MAX($Z3:CP3)+1),"") ->  | CR3: =IF($Q$12=Lists!$U$16,IF(Periods!CR28="","",MAX($Z3:CQ3)+1),"") ->  | CS3: =IF($Q$12=Lists!$U$16,IF(Periods!CS28="","",MAX($Z3:CR3)+1),"") ->  | CT3: =IF($Q$12=Lists!$U$16,IF(Periods!CT28="","",MAX($Z3:CS3)+1),"") ->  | CU3: =IF($Q$12=Lists!$U$16,IF(Periods!CU28="","",MAX($Z3:CT3)+1),"") ->  | CV3: =IF($Q$12=Lists!$U$16,IF(Periods!CV28="","",MAX($Z3:CU3)+1),"") ->  | CW3: =IF($Q$12=Lists!$U$16,IF(Periods!CW28="","",MAX($Z3:CV3)+1),"") ->  | CX3: =IF($Q$12=Lists!$U$16,IF(Periods!CX28="","",MAX($Z3:CW3)+1),"") ->  | CY3: =IF($Q$12=Lists!$U$16,IF(Periods!CY28="","",MAX($Z3:CX3)+1),"") ->  | CZ3: =IF($Q$12=Lists!$U$16,IF(Periods!CZ28="","",MAX($Z3:CY3)+1),"") ->  | DA3: =IF($Q$12=Lists!$U$16,IF(Periods!DA28="","",MAX($Z3:CZ3)+1),"") ->  | DB3: =IF($Q$12=Lists!$U$16,IF(Periods!DB28="","",MAX($Z3:DA3)+1),"") ->  | DC3: =IF($Q$12=Lists!$U$16,IF(Periods!DC28="","",MAX($Z3:DB3)+1),"") ->  | DD3: =IF($Q$12=Lists!$U$16,IF(Periods!DD28="","",MAX($Z3:DC3)+1),"") ->  | DE3: =IF($Q$12=Lists!$U$16,IF(Periods!DE28="","",MAX($Z3:DD3)+1),"") ->  | DF3: =IF($Q$12=Lists!$U$16,IF(Periods!DF28="","",MAX($Z3:DE3)+1),"") ->  | DG3: =IF($Q$12=Lists!$U$16,IF(Periods!DG28="","",MAX($Z3:DF3)+1),"") ->  | DH3: =IF($Q$12=Lists!$U$16,IF(Periods!DH28="","",MAX($Z3:DG3)+1),"") ->  | DI3: =IF($Q$12=Lists!$U$16,IF(Periods!DI28="","",MAX($Z3:DH3)+1),"") ->  | DJ3: =IF($Q$12=Lists!$U$16,IF(Periods!DJ28="","",MAX($Z3:DI3)+1),"") ->  | DK3: =IF($Q$12=Lists!$U$16,IF(Periods!DK28="","",MAX($Z3:DJ3)+1),"") ->  | DL3: =IF($Q$12=Lists!$U$16,IF(Periods!DL28="","",MAX($Z3:DK3)+1),"") ->  | DM3: =IF($Q$12=Lists!$U$16,IF(Periods!DM28="","",MAX($Z3:DL3)+1),"") ->  | DN3: =IF($Q$12=Lists!$U$16,IF(Periods!DN28="","",MAX($Z3:DM3)+1),"") ->  | DO3: =IF($Q$12=Lists!$U$16,IF(Periods!DO28="","",MAX($Z3:DN3)+1),"") ->  | DP3: =IF($Q$12=Lists!$U$16,IF(Periods!DP28="","",MAX($Z3:DO3)+1),"") ->  | DQ3: =IF($Q$12=Lists!$U$16,IF(Periods!DQ28="","",MAX($Z3:DP3)+1),"") ->  | DR3: =IF($Q$12=Lists!$U$16,IF(Periods!DR28="","",MAX($Z3:DQ3)+1),"") ->  | DS3: =IF($Q$12=Lists!$U$16,IF(Periods!DS28="","",MAX($Z3:DR3)+1),"") ->  | DT3: =IF($Q$12=Lists!$U$16,IF(Periods!DT28="","",MAX($Z3:DS3)+1),"") ->  | DU3: =IF($Q$12=Lists!$U$16,IF(Periods!DU28="","",MAX($Z3:DT3)+1),"") ->  | DV3: =IF($Q$12=Lists!$U$16,IF(Periods!DV28="","",MAX($Z3:DU3)+1),"") ->  | DW3: =IF($Q$12=Lists!$U$16,IF(Periods!DW28="","",MAX($Z3:DV3)+1),"") ->  | DX3: =IF($Q$12=Lists!$U$16,IF(Periods!DX28="","",MAX($Z3:DW3)+1),"") ->  | DY3: =IF($Q$12=Lists!$U$16,IF(Periods!DY28="","",MAX($Z3:DX3)+1),"") ->  | DZ3: =IF($Q$12=Lists!$U$16,IF(Periods!DZ28="","",MAX($Z3:DY3)+1),"") ->  | EA3: =IF($Q$12=Lists!$U$16,IF(Periods!EA28="","",MAX($Z3:DZ3)+1),"") ->  | EB3: =IF($Q$12=Lists!$U$16,IF(Periods!EB28="","",MAX($Z3:EA3)+1),"") ->  | EC3: =IF($Q$12=Lists!$U$16,IF(Periods!EC28="","",MAX($Z3:EB3)+1),"") ->  | ED3: =IF($Q$12=Lists!$U$16,IF(Periods!ED28="","",MAX($Z3:EC3)+1),"") ->  | EE3: =IF($Q$12=Lists!$U$16,IF(Periods!EE28="","",MAX($Z3:ED3)+1),"") ->  | EF3: =IF($Q$12=Lists!$U$16,IF(Periods!EF28="","",MAX($Z3:EE3)+1),"") ->  | EG3: =IF($Q$12=Lists!$U$16,IF(Periods!EG28="","",MAX($Z3:EF3)+1),"") ->  | EH3: =IF($Q$12=Lists!$U$16,IF(Periods!EH28="","",MAX($Z3:EG3)+1),"") ->  | EI3: =IF($Q$12=Lists!$U$16,IF(Periods!EI28="","",MAX($Z3:EH3)+1),"") ->  | EJ3: =IF($Q$12=Lists!$U$16,IF(Periods!EJ28="","",MAX($Z3:EI3)+1),"") ->  | EK3: =IF($Q$12=Lists!$U$16,IF(Periods!EK28="","",MAX($Z3:EJ3)+1),"") ->  | EL3: =IF($Q$12=Lists!$U$16,IF(Periods!EL28="","",MAX($Z3:EK3)+1),"") ->  | EM3: =IF($Q$12=Lists!$U$16,IF(Periods!EM28="","",MAX($Z3:EL3)+1),"") ->  | EN3: =IF($Q$12=Lists!$U$16,IF(Periods!EN28="","",MAX($Z3:EM3)+1),"") ->  | EO3: =IF($Q$12=Lists!$U$16,IF(Periods!EO28="","",MAX($Z3:EN3)+1),"") ->  | EP3: =IF($Q$12=Lists!$U$16,IF(Periods!EP28="","",MAX($Z3:EO3)+1),"") ->  | EQ3: =IF($Q$12=Lists!$U$16,IF(Periods!EQ28="","",MAX($Z3:EP3)+1),"") ->  | ER3: =IF($Q$12=Lists!$U$16,IF(Periods!ER28="","",MAX($Z3:EQ3)+1),"") ->  | ES3: =IF($Q$12=Lists!$U$16,IF(Periods!ES28="","",MAX($Z3:ER3)+1),"") ->  | ET3: =IF($Q$12=Lists!$U$16,IF(Periods!ET28="","",MAX($Z3:ES3)+1),"") ->  | EU3: =IF($Q$12=Lists!$U$16,IF(Periods!EU28="","",MAX($Z3:ET3)+1),"") ->  | EV3: =IF($Q$12=Lists!$U$16,IF(Periods!EV28="","",MAX($Z3:EU3)+1),"") ->  | EW3: =IF($Q$12=Lists!$U$16,IF(Periods!EW28="","",MAX($Z3:EV3)+1),"") ->  | EX3: =IF($Q$12=Lists!$U$16,IF(Periods!EX28="","",MAX($Z3:EW3)+1),"") ->  | EY3: =IF($Q$12=Lists!$U$16,IF(Periods!EY28="","",MAX($Z3:EX3)+1),"") ->  | EZ3: =IF($Q$12=Lists!$U$16,IF(Periods!EZ28="","",MAX($Z3:EY3)+1),"") ->  | FA3: =IF($Q$12=Lists!$U$16,IF(Periods!FA28="","",MAX($Z3:EZ3)+1),"") ->  | FB3: =IF($Q$12=Lists!$U$16,IF(Periods!FB28="","",MAX($Z3:FA3)+1),"") ->  | FC3: =IF($Q$12=Lists!$U$16,IF(Periods!FC28="","",MAX($Z3:FB3)+1),"") ->  | FD3: =IF($Q$12=Lists!$U$16,IF(Periods!FD28="","",MAX($Z3:FC3)+1),"") ->  | FE3: =IF($Q$12=Lists!$U$16,IF(Periods!FE28="","",MAX($Z3:FD3)+1),"") ->  | FF3: =IF($Q$12=Lists!$U$16,IF(Periods!FF28="","",MAX($Z3:FE3)+1),"") ->  | FG3: =IF($Q$12=Lists!$U$16,IF(Periods!FG28="","",MAX($Z3:FF3)+1),"") ->  | FH3: =IF($Q$12=Lists!$U$16,IF(Periods!FH28="","",MAX($Z3:FG3)+1),"") ->  | FI3: =IF($Q$12=Lists!$U$16,IF(Periods!FI28="","",MAX($Z3:FH3)+1),"") ->  | FJ3: =IF($Q$12=Lists!$U$16,IF(Periods!FJ28="","",MAX($Z3:FI3)+1),"") ->  | FK3: =IF($Q$12=Lists!$U$16,IF(Periods!FK28="","",MAX($Z3:FJ3)+1),"") ->  | FL3: =IF($Q$12=Lists!$U$16,IF(Periods!FL28="","",MAX($Z3:FK3)+1),"") ->  | FM3: =IF($Q$12=Lists!$U$16,IF(Periods!FM28="","",MAX($Z3:FL3)+1),"") ->  | FN3: =IF($Q$12=Lists!$U$16,IF(Periods!FN28="","",MAX($Z3:FM3)+1),"") ->  | FO3: =IF($Q$12=Lists!$U$16,IF(Periods!FO28="","",MAX($Z3:FN3)+1),"") ->  | FP3: =IF($Q$12=Lists!$U$16,IF(Periods!FP28="","",MAX($Z3:FO3)+1),"") ->  | FQ3: =IF($Q$12=Lists!$U$16,IF(Periods!FQ28="","",MAX($Z3:FP3)+1),"") ->  | FR3: =IF($Q$12=Lists!$U$16,IF(Periods!FR28="","",MAX($Z3:FQ3)+1),"") ->  | FS3: =IF($Q$12=Lists!$U$16,IF(Periods!FS28="","",MAX($Z3:FR3)+1),"") ->  | FT3: =IF($Q$12=Lists!$U$16,IF(Periods!FT28="","",MAX($Z3:FS3)+1),"") ->  | FU3: =IF($Q$12=Lists!$U$16,IF(Periods!FU28="","",MAX($Z3:FT3)+1),"") ->  | FV3: =IF($Q$12=Lists!$U$16,IF(Periods!FV28="","",MAX($Z3:FU3)+1),"") ->  | FW3: =IF($Q$12=Lists!$U$16,IF(Periods!FW28="","",MAX($Z3:FV3)+1),"") ->  | FX3: =IF($Q$12=Lists!$U$16,IF(Periods!FX28="","",MAX($Z3:FW3)+1),"") ->  | FY3: =IF($Q$12=Lists!$U$16,IF(Periods!FY28="","",MAX($Z3:FX3)+1),"") ->  | FZ3: =IF($Q$12=Lists!$U$16,IF(Periods!FZ28="","",MAX($Z3:FY3)+1),"") ->  | GA3: =IF($Q$12=Lists!$U$16,IF(Periods!GA28="","",MAX($Z3:FZ3)+1),"") ->  | GB3: =IF($Q$12=Lists!$U$16,IF(Periods!GB28="","",MAX($Z3:GA3)+1),"") ->  | GC3: =IF($Q$12=Lists!$U$16,IF(Periods!GC28="","",MAX($Z3:GB3)+1),"") ->  | GD3: =IF($Q$12=Lists!$U$16,IF(Periods!GD28="","",MAX($Z3:GC3)+1),"") ->  | GE3: =IF($Q$12=Lists!$U$16,IF(Periods!GE28="","",MAX($Z3:GD3)+1),"") ->  | GF3: =IF($Q$12=Lists!$U$16,IF(Periods!GF28="","",MAX($Z3:GE3)+1),"") ->  | GG3: =IF($Q$12=Lists!$U$16,IF(Periods!GG28="","",MAX($Z3:GF3)+1),"") ->  | GH3: =IF($Q$12=Lists!$U$16,IF(Periods!GH28="","",MAX($Z3:GG3)+1),"") ->  | GI3: =IF($Q$12=Lists!$U$16,IF(Periods!GI28="","",MAX($Z3:GH3)+1),"") ->  | GJ3: =IF($Q$12=Lists!$U$16,IF(Periods!GJ28="","",MAX($Z3:GI3)+1),"") ->  | GK3: =IF($Q$12=Lists!$U$16,IF(Periods!GK28="","",MAX($Z3:GJ3)+1),"") ->  | GL3: =IF($Q$12=Lists!$U$16,IF(Periods!GL28="","",MAX($Z3:GK3)+1),"") ->  | GM3: =IF($Q$12=Lists!$U$16,IF(Periods!GM28="","",MAX($Z3:GL3)+1),"") ->  | GN3: =IF($Q$12=Lists!$U$16,IF(Periods!GN28="","",MAX($Z3:GM3)+1),"") ->  | GO3: =IF($Q$12=Lists!$U$16,IF(Periods!GO28="","",MAX($Z3:GN3)+1),"") ->  | GP3: =IF($Q$12=Lists!$U$16,IF(Periods!GP28="","",MAX($Z3:GO3)+1),"") ->  | GQ3: =IF($Q$12=Lists!$U$16,IF(Periods!GQ28="","",MAX($Z3:GP3)+1),"") ->  | GR3: =IF($Q$12=Lists!$U$16,IF(Periods!GR28="","",MAX($Z3:GQ3)+1),"") ->  | GS3: =IF($Q$12=Lists!$U$16,IF(Periods!GS28="","",MAX($Z3:GR3)+1),"") ->  | GT3: =IF($Q$12=Lists!$U$16,IF(Periods!GT28="","",MAX($Z3:GS3)+1),"") ->  | GU3: =IF($Q$12=Lists!$U$16,IF(Periods!GU28="","",MAX($Z3:GT3)+1),"") ->  | GV3: =IF($Q$12=Lists!$U$16,IF(Periods!GV28="","",MAX($Z3:GU3)+1),"") ->  | GW3: =IF($Q$12=Lists!$U$16,IF(Periods!GW28="","",MAX($Z3:GV3)+1),"") ->  | GX3: =IF($Q$12=Lists!$U$16,IF(Periods!GX28="","",MAX($Z3:GW3)+1),"") ->  | GY3: =IF($Q$12=Lists!$U$16,IF(Periods!GY28="","",MAX($Z3:GX3)+1),"") ->  | GZ3: =IF($Q$12=Lists!$U$16,IF(Periods!GZ28="","",MAX($Z3:GY3)+1),"") ->  | HA3: =IF($Q$12=Lists!$U$16,IF(Periods!HA28="","",MAX($Z3:GZ3)+1),"") ->  | HB3: =IF($Q$12=Lists!$U$16,IF(Periods!HB28="","",MAX($Z3:HA3)+1),"") ->  | HC3: =IF($Q$12=Lists!$U$16,IF(Periods!HC28="","",MAX($Z3:HB3)+1),"") ->  | HD3: =IF($Q$12=Lists!$U$16,IF(Periods!HD28="","",MAX($Z3:HC3)+1),"") ->  | HE3: =IF($Q$12=Lists!$U$16,IF(Periods!HE28="","",MAX($Z3:HD3)+1),"") ->  | HF3: =IF($Q$12=Lists!$U$16,IF(Periods!HF28="","",MAX($Z3:HE3)+1),"") ->  | HG3: =IF($Q$12=Lists!$U$16,IF(Periods!HG28="","",MAX($Z3:HF3)+1),"") ->  | HH3: =IF($Q$12=Lists!$U$16,IF(Periods!HH28="","",MAX($Z3:HG3)+1),"") ->  | HI3: =IF($Q$12=Lists!$U$16,IF(Periods!HI28="","",MAX($Z3:HH3)+1),"") ->  | HJ3: =IF($Q$12=Lists!$U$16,IF(Periods!HJ28="","",MAX($Z3:HI3)+1),"") ->  | HK3: =IF($Q$12=Lists!$U$16,IF(Periods!HK28="","",MAX($Z3:HJ3)+1),"") -> 
Y4: =START!$K$135 -> номер план-периода: | AA4: =IF(OR(AA3<>"",AA11=""),"",MAX($Z4:Z4)+1) ->  | AB4: =IF(OR(AB3<>"",AB11=""),"",MAX($Z4:AA4)+1) ->  | AC4: =IF(OR(AC3<>"",AC11=""),"",MAX($Z4:AB4)+1) ->  | AD4: =IF(OR(AD3<>"",AD11=""),"",MAX($Z4:AC4)+1) ->  | AE4: =IF(OR(AE3<>"",AE11=""),"",MAX($Z4:AD4)+1) ->  | AF4: =IF(OR(AF3<>"",AF11=""),"",MAX($Z4:AE4)+1) ->  | AG4: =IF(OR(AG3<>"",AG11=""),"",MAX($Z4:AF4)+1) ->  | AH4: =IF(OR(AH3<>"",AH11=""),"",MAX($Z4:AG4)+1) ->  | AI4: =IF(OR(AI3<>"",AI11=""),"",MAX($Z4:AH4)+1) ->  | AJ4: =IF(OR(AJ3<>"",AJ11=""),"",MAX($Z4:AI4)+1) ->  | AK4: =IF(OR(AK3<>"",AK11=""),"",MAX($Z4:AJ4)+1) ->  | AL4: =IF(OR(AL3<>"",AL11=""),"",MAX($Z4:AK4)+1) ->  | AM4: =IF(OR(AM3<>"",AM11=""),"",MAX($Z4:AL4)+1) ->  | AN4: =IF(OR(AN3<>"",AN11=""),"",MAX($Z4:AM4)+1) ->  | AO4: =IF(OR(AO3<>"",AO11=""),"",MAX($Z4:AN4)+1) ->  | AP4: =IF(OR(AP3<>"",AP11=""),"",MAX($Z4:AO4)+1) ->  | AQ4: =IF(OR(AQ3<>"",AQ11=""),"",MAX($Z4:AP4)+1) ->  | AR4: =IF(OR(AR3<>"",AR11=""),"",MAX($Z4:AQ4)+1) ->  | AS4: =IF(OR(AS3<>"",AS11=""),"",MAX($Z4:AR4)+1) ->  | AT4: =IF(OR(AT3<>"",AT11=""),"",MAX($Z4:AS4)+1) ->  | AU4: =IF(OR(AU3<>"",AU11=""),"",MAX($Z4:AT4)+1) ->  | AV4: =IF(OR(AV3<>"",AV11=""),"",MAX($Z4:AU4)+1) ->  | AW4: =IF(OR(AW3<>"",AW11=""),"",MAX($Z4:AV4)+1) ->  | AX4: =IF(OR(AX3<>"",AX11=""),"",MAX($Z4:AW4)+1) ->  | AY4: =IF(OR(AY3<>"",AY11=""),"",MAX($Z4:AX4)+1) ->  | AZ4: =IF(OR(AZ3<>"",AZ11=""),"",MAX($Z4:AY4)+1) ->  | BA4: =IF(OR(BA3<>"",BA11=""),"",MAX($Z4:AZ4)+1) ->  | BB4: =IF(OR(BB3<>"",BB11=""),"",MAX($Z4:BA4)+1) ->  | BC4: =IF(OR(BC3<>"",BC11=""),"",MAX($Z4:BB4)+1) ->  | BD4: =IF(OR(BD3<>"",BD11=""),"",MAX($Z4:BC4)+1) ->  | BE4: =IF(OR(BE3<>"",BE11=""),"",MAX($Z4:BD4)+1) ->  | BF4: =IF(OR(BF3<>"",BF11=""),"",MAX($Z4:BE4)+1) ->  | BG4: =IF(OR(BG3<>"",BG11=""),"",MAX($Z4:BF4)+1) ->  | BH4: =IF(OR(BH3<>"",BH11=""),"",MAX($Z4:BG4)+1) ->  | BI4: =IF(OR(BI3<>"",BI11=""),"",MAX($Z4:BH4)+1) ->  | BJ4: =IF(OR(BJ3<>"",BJ11=""),"",MAX($Z4:BI4)+1) ->  | BK4: =IF(OR(BK3<>"",BK11=""),"",MAX($Z4:BJ4)+1) ->  | BL4: =IF(OR(BL3<>"",BL11=""),"",MAX($Z4:BK4)+1) ->  | BM4: =IF(OR(BM3<>"",BM11=""),"",MAX($Z4:BL4)+1) ->  | BN4: =IF(OR(BN3<>"",BN11=""),"",MAX($Z4:BM4)+1) ->  | BO4: =IF(OR(BO3<>"",BO11=""),"",MAX($Z4:BN4)+1) ->  | BP4: =IF(OR(BP3<>"",BP11=""),"",MAX($Z4:BO4)+1) ->  | BQ4: =IF(OR(BQ3<>"",BQ11=""),"",MAX($Z4:BP4)+1) ->  | BR4: =IF(OR(BR3<>"",BR11=""),"",MAX($Z4:BQ4)+1) ->  | BS4: =IF(OR(BS3<>"",BS11=""),"",MAX($Z4:BR4)+1) ->  | BT4: =IF(OR(BT3<>"",BT11=""),"",MAX($Z4:BS4)+1) ->  | BU4: =IF(OR(BU3<>"",BU11=""),"",MAX($Z4:BT4)+1) ->  | BV4: =IF(OR(BV3<>"",BV11=""),"",MAX($Z4:BU4)+1) ->  | BW4: =IF(OR(BW3<>"",BW11=""),"",MAX($Z4:BV4)+1) ->  | BX4: =IF(OR(BX3<>"",BX11=""),"",MAX($Z4:BW4)+1) ->  | BY4: =IF(OR(BY3<>"",BY11=""),"",MAX($Z4:BX4)+1) ->  | BZ4: =IF(OR(BZ3<>"",BZ11=""),"",MAX($Z4:BY4)+1) ->  | CA4: =IF(OR(CA3<>"",CA11=""),"",MAX($Z4:BZ4)+1) ->  | CB4: =IF(OR(CB3<>"",CB11=""),"",MAX($Z4:CA4)+1) ->  | CC4: =IF(OR(CC3<>"",CC11=""),"",MAX($Z4:CB4)+1) ->  | CD4: =IF(OR(CD3<>"",CD11=""),"",MAX($Z4:CC4)+1) ->  | CE4: =IF(OR(CE3<>"",CE11=""),"",MAX($Z4:CD4)+1) ->  | CF4: =IF(OR(CF3<>"",CF11=""),"",MAX($Z4:CE4)+1) ->  | CG4: =IF(OR(CG3<>"",CG11=""),"",MAX($Z4:CF4)+1) ->  | CH4: =IF(OR(CH3<>"",CH11=""),"",MAX($Z4:CG4)+1) ->  | CI4: =IF(OR(CI3<>"",CI11=""),"",MAX($Z4:CH4)+1) ->  | CJ4: =IF(OR(CJ3<>"",CJ11=""),"",MAX($Z4:CI4)+1) ->  | CK4: =IF(OR(CK3<>"",CK11=""),"",MAX($Z4:CJ4)+1) ->  | CL4: =IF(OR(CL3<>"",CL11=""),"",MAX($Z4:CK4)+1) ->  | CM4: =IF(OR(CM3<>"",CM11=""),"",MAX($Z4:CL4)+1) ->  | CN4: =IF(OR(CN3<>"",CN11=""),"",MAX($Z4:CM4)+1) ->  | CO4: =IF(OR(CO3<>"",CO11=""),"",MAX($Z4:CN4)+1) ->  | CP4: =IF(OR(CP3<>"",CP11=""),"",MAX($Z4:CO4)+1) ->  | CQ4: =IF(OR(CQ3<>"",CQ11=""),"",MAX($Z4:CP4)+1) ->  | CR4: =IF(OR(CR3<>"",CR11=""),"",MAX($Z4:CQ4)+1) ->  | CS4: =IF(OR(CS3<>"",CS11=""),"",MAX($Z4:CR4)+1) ->  | CT4: =IF(OR(CT3<>"",CT11=""),"",MAX($Z4:CS4)+1) ->  | CU4: =IF(OR(CU3<>"",CU11=""),"",MAX($Z4:CT4)+1) ->  | CV4: =IF(OR(CV3<>"",CV11=""),"",MAX($Z4:CU4)+1) ->  | CW4: =IF(OR(CW3<>"",CW11=""),"",MAX($Z4:CV4)+1) ->  | CX4: =IF(OR(CX3<>"",CX11=""),"",MAX($Z4:CW4)+1) ->  | CY4: =IF(OR(CY3<>"",CY11=""),"",MAX($Z4:CX4)+1) ->  | CZ4: =IF(OR(CZ3<>"",CZ11=""),"",MAX($Z4:CY4)+1) ->  | DA4: =IF(OR(DA3<>"",DA11=""),"",MAX($Z4:CZ4)+1) ->  | DB4: =IF(OR(DB3<>"",DB11=""),"",MAX($Z4:DA4)+1) ->  | DC4: =IF(OR(DC3<>"",DC11=""),"",MAX($Z4:DB4)+1) ->  | DD4: =IF(OR(DD3<>"",DD11=""),"",MAX($Z4:DC4)+1) ->  | DE4: =IF(OR(DE3<>"",DE11=""),"",MAX($Z4:DD4)+1) ->  | DF4: =IF(OR(DF3<>"",DF11=""),"",MAX($Z4:DE4)+1) ->  | DG4: =IF(OR(DG3<>"",DG11=""),"",MAX($Z4:DF4)+1) ->  | DH4: =IF(OR(DH3<>"",DH11=""),"",MAX($Z4:DG4)+1) ->  | DI4: =IF(OR(DI3<>"",DI11=""),"",MAX($Z4:DH4)+1) ->  | DJ4: =IF(OR(DJ3<>"",DJ11=""),"",MAX($Z4:DI4)+1) ->  | DK4: =IF(OR(DK3<>"",DK11=""),"",MAX($Z4:DJ4)+1) ->  | DL4: =IF(OR(DL3<>"",DL11=""),"",MAX($Z4:DK4)+1) ->  | DM4: =IF(OR(DM3<>"",DM11=""),"",MAX($Z4:DL4)+1) ->  | DN4: =IF(OR(DN3<>"",DN11=""),"",MAX($Z4:DM4)+1) ->  | DO4: =IF(OR(DO3<>"",DO11=""),"",MAX($Z4:DN4)+1) ->  | DP4: =IF(OR(DP3<>"",DP11=""),"",MAX($Z4:DO4)+1) ->  | DQ4: =IF(OR(DQ3<>"",DQ11=""),"",MAX($Z4:DP4)+1) ->  | DR4: =IF(OR(DR3<>"",DR11=""),"",MAX($Z4:DQ4)+1) ->  | DS4: =IF(OR(DS3<>"",DS11=""),"",MAX($Z4:DR4)+1) ->  | DT4: =IF(OR(DT3<>"",DT11=""),"",MAX($Z4:DS4)+1) ->  | DU4: =IF(OR(DU3<>"",DU11=""),"",MAX($Z4:DT4)+1) ->  | DV4: =IF(OR(DV3<>"",DV11=""),"",MAX($Z4:DU4)+1) ->  | DW4: =IF(OR(DW3<>"",DW11=""),"",MAX($Z4:DV4)+1) ->  | DX4: =IF(OR(DX3<>"",DX11=""),"",MAX($Z4:DW4)+1) ->  | DY4: =IF(OR(DY3<>"",DY11=""),"",MAX($Z4:DX4)+1) ->  | DZ4: =IF(OR(DZ3<>"",DZ11=""),"",MAX($Z4:DY4)+1) ->  | EA4: =IF(OR(EA3<>"",EA11=""),"",MAX($Z4:DZ4)+1) ->  | EB4: =IF(OR(EB3<>"",EB11=""),"",MAX($Z4:EA4)+1) ->  | EC4: =IF(OR(EC3<>"",EC11=""),"",MAX($Z4:EB4)+1) ->  | ED4: =IF(OR(ED3<>"",ED11=""),"",MAX($Z4:EC4)+1) ->  | EE4: =IF(OR(EE3<>"",EE11=""),"",MAX($Z4:ED4)+1) ->  | EF4: =IF(OR(EF3<>"",EF11=""),"",MAX($Z4:EE4)+1) ->  | EG4: =IF(OR(EG3<>"",EG11=""),"",MAX($Z4:EF4)+1) ->  | EH4: =IF(OR(EH3<>"",EH11=""),"",MAX($Z4:EG4)+1) ->  | EI4: =IF(OR(EI3<>"",EI11=""),"",MAX($Z4:EH4)+1) ->  | EJ4: =IF(OR(EJ3<>"",EJ11=""),"",MAX($Z4:EI4)+1) ->  | EK4: =IF(OR(EK3<>"",EK11=""),"",MAX($Z4:EJ4)+1) ->  | EL4: =IF(OR(EL3<>"",EL11=""),"",MAX($Z4:EK4)+1) ->  | EM4: =IF(OR(EM3<>"",EM11=""),"",MAX($Z4:EL4)+1) ->  | EN4: =IF(OR(EN3<>"",EN11=""),"",MAX($Z4:EM4)+1) ->  | EO4: =IF(OR(EO3<>"",EO11=""),"",MAX($Z4:EN4)+1) ->  | EP4: =IF(OR(EP3<>"",EP11=""),"",MAX($Z4:EO4)+1) ->  | EQ4: =IF(OR(EQ3<>"",EQ11=""),"",MAX($Z4:EP4)+1) ->  | ER4: =IF(OR(ER3<>"",ER11=""),"",MAX($Z4:EQ4)+1) ->  | ES4: =IF(OR(ES3<>"",ES11=""),"",MAX($Z4:ER4)+1) ->  | ET4: =IF(OR(ET3<>"",ET11=""),"",MAX($Z4:ES4)+1) ->  | EU4: =IF(OR(EU3<>"",EU11=""),"",MAX($Z4:ET4)+1) ->  | EV4: =IF(OR(EV3<>"",EV11=""),"",MAX($Z4:EU4)+1) ->  | EW4: =IF(OR(EW3<>"",EW11=""),"",MAX($Z4:EV4)+1) ->  | EX4: =IF(OR(EX3<>"",EX11=""),"",MAX($Z4:EW4)+1) ->  | EY4: =IF(OR(EY3<>"",EY11=""),"",MAX($Z4:EX4)+1) ->  | EZ4: =IF(OR(EZ3<>"",EZ11=""),"",MAX($Z4:EY4)+1) ->  | FA4: =IF(OR(FA3<>"",FA11=""),"",MAX($Z4:EZ4)+1) ->  | FB4: =IF(OR(FB3<>"",FB11=""),"",MAX($Z4:FA4)+1) ->  | FC4: =IF(OR(FC3<>"",FC11=""),"",MAX($Z4:FB4)+1) ->  | FD4: =IF(OR(FD3<>"",FD11=""),"",MAX($Z4:FC4)+1) ->  | FE4: =IF(OR(FE3<>"",FE11=""),"",MAX($Z4:FD4)+1) ->  | FF4: =IF(OR(FF3<>"",FF11=""),"",MAX($Z4:FE4)+1) ->  | FG4: =IF(OR(FG3<>"",FG11=""),"",MAX($Z4:FF4)+1) ->  | FH4: =IF(OR(FH3<>"",FH11=""),"",MAX($Z4:FG4)+1) ->  | FI4: =IF(OR(FI3<>"",FI11=""),"",MAX($Z4:FH4)+1) ->  | FJ4: =IF(OR(FJ3<>"",FJ11=""),"",MAX($Z4:FI4)+1) ->  | FK4: =IF(OR(FK3<>"",FK11=""),"",MAX($Z4:FJ4)+1) ->  | FL4: =IF(OR(FL3<>"",FL11=""),"",MAX($Z4:FK4)+1) ->  | FM4: =IF(OR(FM3<>"",FM11=""),"",MAX($Z4:FL4)+1) ->  | FN4: =IF(OR(FN3<>"",FN11=""),"",MAX($Z4:FM4)+1) ->  | FO4: =IF(OR(FO3<>"",FO11=""),"",MAX($Z4:FN4)+1) ->  | FP4: =IF(OR(FP3<>"",FP11=""),"",MAX($Z4:FO4)+1) ->  | FQ4: =IF(OR(FQ3<>"",FQ11=""),"",MAX($Z4:FP4)+1) ->  | FR4: =IF(OR(FR3<>"",FR11=""),"",MAX($Z4:FQ4)+1) ->  | FS4: =IF(OR(FS3<>"",FS11=""),"",MAX($Z4:FR4)+1) ->  | FT4: =IF(OR(FT3<>"",FT11=""),"",MAX($Z4:FS4)+1) ->  | FU4: =IF(OR(FU3<>"",FU11=""),"",MAX($Z4:FT4)+1) ->  | FV4: =IF(OR(FV3<>"",FV11=""),"",MAX($Z4:FU4)+1) ->  | FW4: =IF(OR(FW3<>"",FW11=""),"",MAX($Z4:FV4)+1) ->  | FX4: =IF(OR(FX3<>"",FX11=""),"",MAX($Z4:FW4)+1) ->  | FY4: =IF(OR(FY3<>"",FY11=""),"",MAX($Z4:FX4)+1) ->  | FZ4: =IF(OR(FZ3<>"",FZ11=""),"",MAX($Z4:FY4)+1) ->  | GA4: =IF(OR(GA3<>"",GA11=""),"",MAX($Z4:FZ4)+1) ->  | GB4: =IF(OR(GB3<>"",GB11=""),"",MAX($Z4:GA4)+1) ->  | GC4: =IF(OR(GC3<>"",GC11=""),"",MAX($Z4:GB4)+1) ->  | GD4: =IF(OR(GD3<>"",GD11=""),"",MAX($Z4:GC4)+1) ->  | GE4: =IF(OR(GE3<>"",GE11=""),"",MAX($Z4:GD4)+1) ->  | GF4: =IF(OR(GF3<>"",GF11=""),"",MAX($Z4:GE4)+1) ->  | GG4: =IF(OR(GG3<>"",GG11=""),"",MAX($Z4:GF4)+1) ->  | GH4: =IF(OR(GH3<>"",GH11=""),"",MAX($Z4:GG4)+1) ->  | GI4: =IF(OR(GI3<>"",GI11=""),"",MAX($Z4:GH4)+1) ->  | GJ4: =IF(OR(GJ3<>"",GJ11=""),"",MAX($Z4:GI4)+1) ->  | GK4: =IF(OR(GK3<>"",GK11=""),"",MAX($Z4:GJ4)+1) ->  | GL4: =IF(OR(GL3<>"",GL11=""),"",MAX($Z4:GK4)+1) ->  | GM4: =IF(OR(GM3<>"",GM11=""),"",MAX($Z4:GL4)+1) ->  | GN4: =IF(OR(GN3<>"",GN11=""),"",MAX($Z4:GM4)+1) ->  | GO4: =IF(OR(GO3<>"",GO11=""),"",MAX($Z4:GN4)+1) ->  | GP4: =IF(OR(GP3<>"",GP11=""),"",MAX($Z4:GO4)+1) ->  | GQ4: =IF(OR(GQ3<>"",GQ11=""),"",MAX($Z4:GP4)+1) ->  | GR4: =IF(OR(GR3<>"",GR11=""),"",MAX($Z4:GQ4)+1) ->  | GS4: =IF(OR(GS3<>"",GS11=""),"",MAX($Z4:GR4)+1) ->  | GT4: =IF(OR(GT3<>"",GT11=""),"",MAX($Z4:GS4)+1) ->  | GU4: =IF(OR(GU3<>"",GU11=""),"",MAX($Z4:GT4)+1) ->  | GV4: =IF(OR(GV3<>"",GV11=""),"",MAX($Z4:GU4)+1) ->  | GW4: =IF(OR(GW3<>"",GW11=""),"",MAX($Z4:GV4)+1) ->  | GX4: =IF(OR(GX3<>"",GX11=""),"",MAX($Z4:GW4)+1) ->  | GY4: =IF(OR(GY3<>"",GY11=""),"",MAX($Z4:GX4)+1) ->  | GZ4: =IF(OR(GZ3<>"",GZ11=""),"",MAX($Z4:GY4)+1) ->  | HA4: =IF(OR(HA3<>"",HA11=""),"",MAX($Z4:GZ4)+1) ->  | HB4: =IF(OR(HB3<>"",HB11=""),"",MAX($Z4:HA4)+1) ->  | HC4: =IF(OR(HC3<>"",HC11=""),"",MAX($Z4:HB4)+1) ->  | HD4: =IF(OR(HD3<>"",HD11=""),"",MAX($Z4:HC4)+1) ->  | HE4: =IF(OR(HE3<>"",HE11=""),"",MAX($Z4:HD4)+1) ->  | HF4: =IF(OR(HF3<>"",HF11=""),"",MAX($Z4:HE4)+1) ->  | HG4: =IF(OR(HG3<>"",HG11=""),"",MAX($Z4:HF4)+1) ->  | HH4: =IF(OR(HH3<>"",HH11=""),"",MAX($Z4:HG4)+1) ->  | HI4: =IF(OR(HI3<>"",HI11=""),"",MAX($Z4:HH4)+1) ->  | HJ4: =IF(OR(HJ3<>"",HJ11=""),"",MAX($Z4:HI4)+1) ->  | HK4: =IF(OR(HK3<>"",HK11=""),"",MAX($Z4:HJ4)+1) -> 
Y5: =START!$K$136 -> число даты начала: | AA5: =IF(AA11="","",DAY(AA11)) ->  | AM5: =IF(AM11="","",DAY(AM11)) ->  | CY5: =IF(CY11="","",DAY(CY11)) ->  | FC5: =IF(FC11="","",DAY(FC11)) -> 
Y6: =START!$K$137 -> номер месяца даты начала: | AA6: =IF(AA11="","",MONTH(AA11)) ->  | AM6: =IF(AM11="","",MONTH(AM11)) ->  | CY6: =IF(CY11="","",MONTH(CY11)) ->  | FC6: =IF(FC11="","",MONTH(FC11)) -> 
Y7: =START!$K$138 -> год даты начала: | AA7: =IF(AA11="","",YEAR(AA11)-2000) ->  | AM7: =IF(AM11="","",YEAR(AM11)-2000) ->  | CY7: =IF(CY11="","",YEAR(CY11)-2000) ->  | FC7: =IF(FC11="","",YEAR(FC11)-2000) -> 
Y8: =START!$K$139 -> число даты окончания: | AA8: =IF(AA12="","",DAY(AA12)) ->  | AM8: =IF(AM12="","",DAY(AM12)) ->  | CY8: =IF(CY12="","",DAY(CY12)) ->  | FC8: =IF(FC12="","",DAY(FC12)) -> 
Y9: =START!$K$140 -> номер месяца даты окончания: | AA9: =IF(AA12="","",MONTH(AA12)) ->  | AM9: =IF(AM12="","",MONTH(AM12)) ->  | CY9: =IF(CY12="","",MONTH(CY12)) ->  | FC9: =IF(FC12="","",MONTH(FC12)) -> 
Y10: =START!$K$141 -> год даты окончания: | AA10: =IF(AA12="","",YEAR(AA12)-2000) ->  | AM10: =IF(AM12="","",YEAR(AM12)-2000) ->  | CY10: =IF(CY12="","",YEAR(CY12)-2000) ->  | FC10: =IF(FC12="","",YEAR(FC12)-2000) -> 
F11: =INDIRECT("START!I27") -> Periods | I11: =INDIRECT("START!K27") -> Периоды и горизонты моделирования фактических и прогнозных данных | X11: =IF($Q$12=Lists!$U$16,IF(Periods!X20="","",Periods!X20),IF($Q$12=Lists!$U$17,IF(Periods!X35="","",Periods!X35),"")) ->  | AA11: =IF($Q$12=Lists!$U$16,IF(Periods!AA20="","",Periods!AA20),IF($Q$12=Lists!$U$17,IF(Periods!AA35="","",Periods!AA35),"")) ->  | AB11: =IF($Q$12=Lists!$U$16,IF(Periods!AB20="","",Periods!AB20),IF($Q$12=Lists!$U$17,IF(Periods!AB35="","",Periods!AB35),"")) ->  | AC11: =IF($Q$12=Lists!$U$16,IF(Periods!AC20="","",Periods!AC20),IF($Q$12=Lists!$U$17,IF(Periods!AC35="","",Periods!AC35),"")) ->  | AD11: =IF($Q$12=Lists!$U$16,IF(Periods!AD20="","",Periods!AD20),IF($Q$12=Lists!$U$17,IF(Periods!AD35="","",Periods!AD35),"")) ->  | AE11: =IF($Q$12=Lists!$U$16,IF(Periods!AE20="","",Periods!AE20),IF($Q$12=Lists!$U$17,IF(Periods!AE35="","",Periods!AE35),"")) ->  | AF11: =IF($Q$12=Lists!$U$16,IF(Periods!AF20="","",Periods!AF20),IF($Q$12=Lists!$U$17,IF(Periods!AF35="","",Periods!AF35),"")) ->  | AG11: =IF($Q$12=Lists!$U$16,IF(Periods!AG20="","",Periods!AG20),IF($Q$12=Lists!$U$17,IF(Periods!AG35="","",Periods!AG35),"")) ->  | AH11: =IF($Q$12=Lists!$U$16,IF(Periods!AH20="","",Periods!AH20),IF($Q$12=Lists!$U$17,IF(Periods!AH35="","",Periods!AH35),"")) ->  | AI11: =IF($Q$12=Lists!$U$16,IF(Periods!AI20="","",Periods!AI20),IF($Q$12=Lists!$U$17,IF(Periods!AI35="","",Periods!AI35),"")) ->  | AJ11: =IF($Q$12=Lists!$U$16,IF(Periods!AJ20="","",Periods!AJ20),IF($Q$12=Lists!$U$17,IF(Periods!AJ35="","",Periods!AJ35),"")) ->  | AK11: =IF($Q$12=Lists!$U$16,IF(Periods!AK20="","",Periods!AK20),IF($Q$12=Lists!$U$17,IF(Periods!AK35="","",Periods!AK35),"")) ->  | AL11: =IF($Q$12=Lists!$U$16,IF(Periods!AL20="","",Periods!AL20),IF($Q$12=Lists!$U$17,IF(Periods!AL35="","",Periods!AL35),"")) ->  | AM11: =IF($Q$12=Lists!$U$16,IF(Periods!AM20="","",Periods!AM20),IF($Q$12=Lists!$U$17,IF(Periods!AM35="","",Periods!AM35),"")) ->  | AN11: =IF($Q$12=Lists!$U$16,IF(Periods!AN20="","",Periods!AN20),IF($Q$12=Lists!$U$17,IF(Periods!AN35="","",Periods!AN35),"")) ->  | AO11: =IF($Q$12=Lists!$U$16,IF(Periods!AO20="","",Periods!AO20),IF($Q$12=Lists!$U$17,IF(Periods!AO35="","",Periods!AO35),"")) ->  | AP11: =IF($Q$12=Lists!$U$16,IF(Periods!AP20="","",Periods!AP20),IF($Q$12=Lists!$U$17,IF(Periods!AP35="","",Periods!AP35),"")) ->  | AQ11: =IF($Q$12=Lists!$U$16,IF(Periods!AQ20="","",Periods!AQ20),IF($Q$12=Lists!$U$17,IF(Periods!AQ35="","",Periods!AQ35),"")) ->  | AR11: =IF($Q$12=Lists!$U$16,IF(Periods!AR20="","",Periods!AR20),IF($Q$12=Lists!$U$17,IF(Periods!AR35="","",Periods!AR35),"")) ->  | AS11: =IF($Q$12=Lists!$U$16,IF(Periods!AS20="","",Periods!AS20),IF($Q$12=Lists!$U$17,IF(Periods!AS35="","",Periods!AS35),"")) ->  | AT11: =IF($Q$12=Lists!$U$16,IF(Periods!AT20="","",Periods!AT20),IF($Q$12=Lists!$U$17,IF(Periods!AT35="","",Periods!AT35),"")) ->  | AU11: =IF($Q$12=Lists!$U$16,IF(Periods!AU20="","",Periods!AU20),IF($Q$12=Lists!$U$17,IF(Periods!AU35="","",Periods!AU35),"")) ->  | AV11: =IF($Q$12=Lists!$U$16,IF(Periods!AV20="","",Periods!AV20),IF($Q$12=Lists!$U$17,IF(Periods!AV35="","",Periods!AV35),"")) ->  | AW11: =IF($Q$12=Lists!$U$16,IF(Periods!AW20="","",Periods!AW20),IF($Q$12=Lists!$U$17,IF(Periods!AW35="","",Periods!AW35),"")) ->  | AX11: =IF($Q$12=Lists!$U$16,IF(Periods!AX20="","",Periods!AX20),IF($Q$12=Lists!$U$17,IF(Periods!AX35="","",Periods!AX35),"")) ->  | AY11: =IF($Q$12=Lists!$U$16,IF(Periods!AY20="","",Periods!AY20),IF($Q$12=Lists!$U$17,IF(Periods!AY35="","",Periods!AY35),"")) ->  | AZ11: =IF($Q$12=Lists!$U$16,IF(Periods!AZ20="","",Periods!AZ20),IF($Q$12=Lists!$U$17,IF(Periods!AZ35="","",Periods!AZ35),"")) ->  | BA11: =IF($Q$12=Lists!$U$16,IF(Periods!BA20="","",Periods!BA20),IF($Q$12=Lists!$U$17,IF(Periods!BA35="","",Periods!BA35),"")) ->  | BB11: =IF($Q$12=Lists!$U$16,IF(Periods!BB20="","",Periods!BB20),IF($Q$12=Lists!$U$17,IF(Periods!BB35="","",Periods!BB35),"")) ->  | BC11: =IF($Q$12=Lists!$U$16,IF(Periods!BC20="","",Periods!BC20),IF($Q$12=Lists!$U$17,IF(Periods!BC35="","",Periods!BC35),"")) ->  | BD11: =IF($Q$12=Lists!$U$16,IF(Periods!BD20="","",Periods!BD20),IF($Q$12=Lists!$U$17,IF(Periods!BD35="","",Periods!BD35),"")) ->  | BE11: =IF($Q$12=Lists!$U$16,IF(Periods!BE20="","",Periods!BE20),IF($Q$12=Lists!$U$17,IF(Periods!BE35="","",Periods!BE35),"")) ->  | BF11: =IF($Q$12=Lists!$U$16,IF(Periods!BF20="","",Periods!BF20),IF($Q$12=Lists!$U$17,IF(Periods!BF35="","",Periods!BF35),"")) ->  | BG11: =IF($Q$12=Lists!$U$16,IF(Periods!BG20="","",Periods!BG20),IF($Q$12=Lists!$U$17,IF(Periods!BG35="","",Periods!BG35),"")) ->  | BH11: =IF($Q$12=Lists!$U$16,IF(Periods!BH20="","",Periods!BH20),IF($Q$12=Lists!$U$17,IF(Periods!BH35="","",Periods!BH35),"")) ->  | BI11: =IF($Q$12=Lists!$U$16,IF(Periods!BI20="","",Periods!BI20),IF($Q$12=Lists!$U$17,IF(Periods!BI35="","",Periods!BI35),"")) ->  | BJ11: =IF($Q$12=Lists!$U$16,IF(Periods!BJ20="","",Periods!BJ20),IF($Q$12=Lists!$U$17,IF(Periods!BJ35="","",Periods!BJ35),"")) ->  | BK11: =IF($Q$12=Lists!$U$16,IF(Periods!BK20="","",Periods!BK20),IF($Q$12=Lists!$U$17,IF(Periods!BK35="","",Periods!BK35),"")) ->  | BL11: =IF($Q$12=Lists!$U$16,IF(Periods!BL20="","",Periods!BL20),IF($Q$12=Lists!$U$17,IF(Periods!BL35="","",Periods!BL35),"")) ->  | BM11: =IF($Q$12=Lists!$U$16,IF(Periods!BM20="","",Periods!BM20),IF($Q$12=Lists!$U$17,IF(Periods!BM35="","",Periods!BM35),"")) ->  | BN11: =IF($Q$12=Lists!$U$16,IF(Periods!BN20="","",Periods!BN20),IF($Q$12=Lists!$U$17,IF(Periods!BN35="","",Periods!BN35),"")) ->  | BO11: =IF($Q$12=Lists!$U$16,IF(Periods!BO20="","",Periods!BO20),IF($Q$12=Lists!$U$17,IF(Periods!BO35="","",Periods!BO35),"")) ->  | BP11: =IF($Q$12=Lists!$U$16,IF(Periods!BP20="","",Periods!BP20),IF($Q$12=Lists!$U$17,IF(Periods!BP35="","",Periods!BP35),"")) ->  | BQ11: =IF($Q$12=Lists!$U$16,IF(Periods!BQ20="","",Periods!BQ20),IF($Q$12=Lists!$U$17,IF(Periods!BQ35="","",Periods!BQ35),"")) ->  | BR11: =IF($Q$12=Lists!$U$16,IF(Periods!BR20="","",Periods!BR20),IF($Q$12=Lists!$U$17,IF(Periods!BR35="","",Periods!BR35),"")) ->  | BS11: =IF($Q$12=Lists!$U$16,IF(Periods!BS20="","",Periods!BS20),IF($Q$12=Lists!$U$17,IF(Periods!BS35="","",Periods!BS35),"")) ->  | BT11: =IF($Q$12=Lists!$U$16,IF(Periods!BT20="","",Periods!BT20),IF($Q$12=Lists!$U$17,IF(Periods!BT35="","",Periods!BT35),"")) ->  | BU11: =IF($Q$12=Lists!$U$16,IF(Periods!BU20="","",Periods!BU20),IF($Q$12=Lists!$U$17,IF(Periods!BU35="","",Periods!BU35),"")) ->  | BV11: =IF($Q$12=Lists!$U$16,IF(Periods!BV20="","",Periods!BV20),IF($Q$12=Lists!$U$17,IF(Periods!BV35="","",Periods!BV35),"")) ->  | BW11: =IF($Q$12=Lists!$U$16,IF(Periods!BW20="","",Periods!BW20),IF($Q$12=Lists!$U$17,IF(Periods!BW35="","",Periods!BW35),"")) ->  | BX11: =IF($Q$12=Lists!$U$16,IF(Periods!BX20="","",Periods!BX20),IF($Q$12=Lists!$U$17,IF(Periods!BX35="","",Periods!BX35),"")) ->  | BY11: =IF($Q$12=Lists!$U$16,IF(Periods!BY20="","",Periods!BY20),IF($Q$12=Lists!$U$17,IF(Periods!BY35="","",Periods!BY35),"")) ->  | BZ11: =IF($Q$12=Lists!$U$16,IF(Periods!BZ20="","",Periods!BZ20),IF($Q$12=Lists!$U$17,IF(Periods!BZ35="","",Periods!BZ35),"")) ->  | CA11: =IF($Q$12=Lists!$U$16,IF(Periods!CA20="","",Periods!CA20),IF($Q$12=Lists!$U$17,IF(Periods!CA35="","",Periods!CA35),"")) ->  | CB11: =IF($Q$12=Lists!$U$16,IF(Periods!CB20="","",Periods!CB20),IF($Q$12=Lists!$U$17,IF(Periods!CB35="","",Periods!CB35),"")) ->  | CC11: =IF($Q$12=Lists!$U$16,IF(Periods!CC20="","",Periods!CC20),IF($Q$12=Lists!$U$17,IF(Periods!CC35="","",Periods!CC35),"")) ->  | CD11: =IF($Q$12=Lists!$U$16,IF(Periods!CD20="","",Periods!CD20),IF($Q$12=Lists!$U$17,IF(Periods!CD35="","",Periods!CD35),"")) ->  | CE11: =IF($Q$12=Lists!$U$16,IF(Periods!CE20="","",Periods!CE20),IF($Q$12=Lists!$U$17,IF(Periods!CE35="","",Periods!CE35),"")) ->  | CF11: =IF($Q$12=Lists!$U$16,IF(Periods!CF20="","",Periods!CF20),IF($Q$12=Lists!$U$17,IF(Periods!CF35="","",Periods!CF35),"")) ->  | CG11: =IF($Q$12=Lists!$U$16,IF(Periods!CG20="","",Periods!CG20),IF($Q$12=Lists!$U$17,IF(Periods!CG35="","",Periods!CG35),"")) ->  | CH11: =IF($Q$12=Lists!$U$16,IF(Periods!CH20="","",Periods!CH20),IF($Q$12=Lists!$U$17,IF(Periods!CH35="","",Periods!CH35),"")) ->  | CI11: =IF($Q$12=Lists!$U$16,IF(Periods!CI20="","",Periods!CI20),IF($Q$12=Lists!$U$17,IF(Periods!CI35="","",Periods!CI35),"")) ->  | CJ11: =IF($Q$12=Lists!$U$16,IF(Periods!CJ20="","",Periods!CJ20),IF($Q$12=Lists!$U$17,IF(Periods!CJ35="","",Periods!CJ35),"")) ->  | CK11: =IF($Q$12=Lists!$U$16,IF(Periods!CK20="","",Periods!CK20),IF($Q$12=Lists!$U$17,IF(Periods!CK35="","",Periods!CK35),"")) ->  | CL11: =IF($Q$12=Lists!$U$16,IF(Periods!CL20="","",Periods!CL20),IF($Q$12=Lists!$U$17,IF(Periods!CL35="","",Periods!CL35),"")) ->  | CM11: =IF($Q$12=Lists!$U$16,IF(Periods!CM20="","",Periods!CM20),IF($Q$12=Lists!$U$17,IF(Periods!CM35="","",Periods!CM35),"")) ->  | CN11: =IF($Q$12=Lists!$U$16,IF(Periods!CN20="","",Periods!CN20),IF($Q$12=Lists!$U$17,IF(Periods!CN35="","",Periods!CN35),"")) ->  | CO11: =IF($Q$12=Lists!$U$16,IF(Periods!CO20="","",Periods!CO20),IF($Q$12=Lists!$U$17,IF(Periods!CO35="","",Periods!CO35),"")) ->  | CP11: =IF($Q$12=Lists!$U$16,IF(Periods!CP20="","",Periods!CP20),IF($Q$12=Lists!$U$17,IF(Periods!CP35="","",Periods!CP35),"")) ->  | CQ11: =IF($Q$12=Lists!$U$16,IF(Periods!CQ20="","",Periods!CQ20),IF($Q$12=Lists!$U$17,IF(Periods!CQ35="","",Periods!CQ35),"")) ->  | CR11: =IF($Q$12=Lists!$U$16,IF(Periods!CR20="","",Periods!CR20),IF($Q$12=Lists!$U$17,IF(Periods!CR35="","",Periods!CR35),"")) ->  | CS11: =IF($Q$12=Lists!$U$16,IF(Periods!CS20="","",Periods!CS20),IF($Q$12=Lists!$U$17,IF(Periods!CS35="","",Periods!CS35),"")) ->  | CT11: =IF($Q$12=Lists!$U$16,IF(Periods!CT20="","",Periods!CT20),IF($Q$12=Lists!$U$17,IF(Periods!CT35="","",Periods!CT35),"")) ->  | CU11: =IF($Q$12=Lists!$U$16,IF(Periods!CU20="","",Periods!CU20),IF($Q$12=Lists!$U$17,IF(Periods!CU35="","",Periods!CU35),"")) ->  | CV11: =IF($Q$12=Lists!$U$16,IF(Periods!CV20="","",Periods!CV20),IF($Q$12=Lists!$U$17,IF(Periods!CV35="","",Periods!CV35),"")) ->  | CW11: =IF($Q$12=Lists!$U$16,IF(Periods!CW20="","",Periods!CW20),IF($Q$12=Lists!$U$17,IF(Periods!CW35="","",Periods!CW35),"")) ->  | CX11: =IF($Q$12=Lists!$U$16,IF(Periods!CX20="","",Periods!CX20),IF($Q$12=Lists!$U$17,IF(Periods!CX35="","",Periods!CX35),"")) ->  | CY11: =IF($Q$12=Lists!$U$16,IF(Periods!CY20="","",Periods!CY20),IF($Q$12=Lists!$U$17,IF(Periods!CY35="","",Periods!CY35),"")) ->  | CZ11: =IF($Q$12=Lists!$U$16,IF(Periods!CZ20="","",Periods!CZ20),IF($Q$12=Lists!$U$17,IF(Periods!CZ35="","",Periods!CZ35),"")) ->  | DA11: =IF($Q$12=Lists!$U$16,IF(Periods!DA20="","",Periods!DA20),IF($Q$12=Lists!$U$17,IF(Periods!DA35="","",Periods!DA35),"")) ->  | DB11: =IF($Q$12=Lists!$U$16,IF(Periods!DB20="","",Periods!DB20),IF($Q$12=Lists!$U$17,IF(Periods!DB35="","",Periods!DB35),"")) ->  | DC11: =IF($Q$12=Lists!$U$16,IF(Periods!DC20="","",Periods!DC20),IF($Q$12=Lists!$U$17,IF(Periods!DC35="","",Periods!DC35),"")) ->  | DD11: =IF($Q$12=Lists!$U$16,IF(Periods!DD20="","",Periods!DD20),IF($Q$12=Lists!$U$17,IF(Periods!DD35="","",Periods!DD35),"")) ->  | DE11: =IF($Q$12=Lists!$U$16,IF(Periods!DE20="","",Periods!DE20),IF($Q$12=Lists!$U$17,IF(Periods!DE35="","",Periods!DE35),"")) ->  | DF11: =IF($Q$12=Lists!$U$16,IF(Periods!DF20="","",Periods!DF20),IF($Q$12=Lists!$U$17,IF(Periods!DF35="","",Periods!DF35),"")) ->  | DG11: =IF($Q$12=Lists!$U$16,IF(Periods!DG20="","",Periods!DG20),IF($Q$12=Lists!$U$17,IF(Periods!DG35="","",Periods!DG35),"")) ->  | DH11: =IF($Q$12=Lists!$U$16,IF(Periods!DH20="","",Periods!DH20),IF($Q$12=Lists!$U$17,IF(Periods!DH35="","",Periods!DH35),"")) ->  | DI11: =IF($Q$12=Lists!$U$16,IF(Periods!DI20="","",Periods!DI20),IF($Q$12=Lists!$U$17,IF(Periods!DI35="","",Periods!DI35),"")) ->  | DJ11: =IF($Q$12=Lists!$U$16,IF(Periods!DJ20="","",Periods!DJ20),IF($Q$12=Lists!$U$17,IF(Periods!DJ35="","",Periods!DJ35),"")) ->  | DK11: =IF($Q$12=Lists!$U$16,IF(Periods!DK20="","",Periods!DK20),IF($Q$12=Lists!$U$17,IF(Periods!DK35="","",Periods!DK35),"")) ->  | DL11: =IF($Q$12=Lists!$U$16,IF(Periods!DL20="","",Periods!DL20),IF($Q$12=Lists!$U$17,IF(Periods!DL35="","",Periods!DL35),"")) ->  | DM11: =IF($Q$12=Lists!$U$16,IF(Periods!DM20="","",Periods!DM20),IF($Q$12=Lists!$U$17,IF(Periods!DM35="","",Periods!DM35),"")) ->  | DN11: =IF($Q$12=Lists!$U$16,IF(Periods!DN20="","",Periods!DN20),IF($Q$12=Lists!$U$17,IF(Periods!DN35="","",Periods!DN35),"")) ->  | DO11: =IF($Q$12=Lists!$U$16,IF(Periods!DO20="","",Periods!DO20),IF($Q$12=Lists!$U$17,IF(Periods!DO35="","",Periods!DO35),"")) ->  | DP11: =IF($Q$12=Lists!$U$16,IF(Periods!DP20="","",Periods!DP20),IF($Q$12=Lists!$U$17,IF(Periods!DP35="","",Periods!DP35),"")) ->  | DQ11: =IF($Q$12=Lists!$U$16,IF(Periods!DQ20="","",Periods!DQ20),IF($Q$12=Lists!$U$17,IF(Periods!DQ35="","",Periods!DQ35),"")) ->  | DR11: =IF($Q$12=Lists!$U$16,IF(Periods!DR20="","",Periods!DR20),IF($Q$12=Lists!$U$17,IF(Periods!DR35="","",Periods!DR35),"")) ->  | DS11: =IF($Q$12=Lists!$U$16,IF(Periods!DS20="","",Periods!DS20),IF($Q$12=Lists!$U$17,IF(Periods!DS35="","",Periods!DS35),"")) ->  | DT11: =IF($Q$12=Lists!$U$16,IF(Periods!DT20="","",Periods!DT20),IF($Q$12=Lists!$U$17,IF(Periods!DT35="","",Periods!DT35),"")) ->  | DU11: =IF($Q$12=Lists!$U$16,IF(Periods!DU20="","",Periods!DU20),IF($Q$12=Lists!$U$17,IF(Periods!DU35="","",Periods!DU35),"")) ->  | DV11: =IF($Q$12=Lists!$U$16,IF(Periods!DV20="","",Periods!DV20),IF($Q$12=Lists!$U$17,IF(Periods!DV35="","",Periods!DV35),"")) ->  | DW11: =IF($Q$12=Lists!$U$16,IF(Periods!DW20="","",Periods!DW20),IF($Q$12=Lists!$U$17,IF(Periods!DW35="","",Periods!DW35),"")) ->  | DX11: =IF($Q$12=Lists!$U$16,IF(Periods!DX20="","",Periods!DX20),IF($Q$12=Lists!$U$17,IF(Periods!DX35="","",Periods!DX35),"")) ->  | DY11: =IF($Q$12=Lists!$U$16,IF(Periods!DY20="","",Periods!DY20),IF($Q$12=Lists!$U$17,IF(Periods!DY35="","",Periods!DY35),"")) ->  | DZ11: =IF($Q$12=Lists!$U$16,IF(Periods!DZ20="","",Periods!DZ20),IF($Q$12=Lists!$U$17,IF(Periods!DZ35="","",Periods!DZ35),"")) ->  | EA11: =IF($Q$12=Lists!$U$16,IF(Periods!EA20="","",Periods!EA20),IF($Q$12=Lists!$U$17,IF(Periods!EA35="","",Periods!EA35),"")) ->  | EB11: =IF($Q$12=Lists!$U$16,IF(Periods!EB20="","",Periods!EB20),IF($Q$12=Lists!$U$17,IF(Periods!EB35="","",Periods!EB35),"")) ->  | EC11: =IF($Q$12=Lists!$U$16,IF(Periods!EC20="","",Periods!EC20),IF($Q$12=Lists!$U$17,IF(Periods!EC35="","",Periods!EC35),"")) ->  | ED11: =IF($Q$12=Lists!$U$16,IF(Periods!ED20="","",Periods!ED20),IF($Q$12=Lists!$U$17,IF(Periods!ED35="","",Periods!ED35),"")) ->  | EE11: =IF($Q$12=Lists!$U$16,IF(Periods!EE20="","",Periods!EE20),IF($Q$12=Lists!$U$17,IF(Periods!EE35="","",Periods!EE35),"")) ->  | EF11: =IF($Q$12=Lists!$U$16,IF(Periods!EF20="","",Periods!EF20),IF($Q$12=Lists!$U$17,IF(Periods!EF35="","",Periods!EF35),"")) ->  | EG11: =IF($Q$12=Lists!$U$16,IF(Periods!EG20="","",Periods!EG20),IF($Q$12=Lists!$U$17,IF(Periods!EG35="","",Periods!EG35),"")) ->  | EH11: =IF($Q$12=Lists!$U$16,IF(Periods!EH20="","",Periods!EH20),IF($Q$12=Lists!$U$17,IF(Periods!EH35="","",Periods!EH35),"")) ->  | EI11: =IF($Q$12=Lists!$U$16,IF(Periods!EI20="","",Periods!EI20),IF($Q$12=Lists!$U$17,IF(Periods!EI35="","",Periods!EI35),"")) ->  | EJ11: =IF($Q$12=Lists!$U$16,IF(Periods!EJ20="","",Periods!EJ20),IF($Q$12=Lists!$U$17,IF(Periods!EJ35="","",Periods!EJ35),"")) ->  | EK11: =IF($Q$12=Lists!$U$16,IF(Periods!EK20="","",Periods!EK20),IF($Q$12=Lists!$U$17,IF(Periods!EK35="","",Periods!EK35),"")) ->  | EL11: =IF($Q$12=Lists!$U$16,IF(Periods!EL20="","",Periods!EL20),IF($Q$12=Lists!$U$17,IF(Periods!EL35="","",Periods!EL35),"")) ->  | EM11: =IF($Q$12=Lists!$U$16,IF(Periods!EM20="","",Periods!EM20),IF($Q$12=Lists!$U$17,IF(Periods!EM35="","",Periods!EM35),"")) ->  | EN11: =IF($Q$12=Lists!$U$16,IF(Periods!EN20="","",Periods!EN20),IF($Q$12=Lists!$U$17,IF(Periods!EN35="","",Periods!EN35),"")) ->  | EO11: =IF($Q$12=Lists!$U$16,IF(Periods!EO20="","",Periods!EO20),IF($Q$12=Lists!$U$17,IF(Periods!EO35="","",Periods!EO35),"")) ->  | EP11: =IF($Q$12=Lists!$U$16,IF(Periods!EP20="","",Periods!EP20),IF($Q$12=Lists!$U$17,IF(Periods!EP35="","",Periods!EP35),"")) ->  | EQ11: =IF($Q$12=Lists!$U$16,IF(Periods!EQ20="","",Periods!EQ20),IF($Q$12=Lists!$U$17,IF(Periods!EQ35="","",Periods!EQ35),"")) ->  | ER11: =IF($Q$12=Lists!$U$16,IF(Periods!ER20="","",Periods!ER20),IF($Q$12=Lists!$U$17,IF(Periods!ER35="","",Periods!ER35),"")) ->  | ES11: =IF($Q$12=Lists!$U$16,IF(Periods!ES20="","",Periods!ES20),IF($Q$12=Lists!$U$17,IF(Periods!ES35="","",Periods!ES35),"")) ->  | ET11: =IF($Q$12=Lists!$U$16,IF(Periods!ET20="","",Periods!ET20),IF($Q$12=Lists!$U$17,IF(Periods!ET35="","",Periods!ET35),"")) ->  | EU11: =IF($Q$12=Lists!$U$16,IF(Periods!EU20="","",Periods!EU20),IF($Q$12=Lists!$U$17,IF(Periods!EU35="","",Periods!EU35),"")) ->  | EV11: =IF($Q$12=Lists!$U$16,IF(Periods!EV20="","",Periods!EV20),IF($Q$12=Lists!$U$17,IF(Periods!EV35="","",Periods!EV35),"")) ->  | EW11: =IF($Q$12=Lists!$U$16,IF(Periods!EW20="","",Periods!EW20),IF($Q$12=Lists!$U$17,IF(Periods!EW35="","",Periods!EW35),"")) ->  | EX11: =IF($Q$12=Lists!$U$16,IF(Periods!EX20="","",Periods!EX20),IF($Q$12=Lists!$U$17,IF(Periods!EX35="","",Periods!EX35),"")) ->  | EY11: =IF($Q$12=Lists!$U$16,IF(Periods!EY20="","",Periods!EY20),IF($Q$12=Lists!$U$17,IF(Periods!EY35="","",Periods!EY35),"")) ->  | EZ11: =IF($Q$12=Lists!$U$16,IF(Periods!EZ20="","",Periods!EZ20),IF($Q$12=Lists!$U$17,IF(Periods!EZ35="","",Periods!EZ35),"")) ->  | FA11: =IF($Q$12=Lists!$U$16,IF(Periods!FA20="","",Periods!FA20),IF($Q$12=Lists!$U$17,IF(Periods!FA35="","",Periods!FA35),"")) ->  | FB11: =IF($Q$12=Lists!$U$16,IF(Periods!FB20="","",Periods!FB20),IF($Q$12=Lists!$U$17,IF(Periods!FB35="","",Periods!FB35),"")) ->  | FC11: =IF($Q$12=Lists!$U$16,IF(Periods!FC20="","",Periods!FC20),IF($Q$12=Lists!$U$17,IF(Periods!FC35="","",Periods!FC35),"")) ->  | FD11: =IF($Q$12=Lists!$U$16,IF(Periods!FD20="","",Periods!FD20),IF($Q$12=Lists!$U$17,IF(Periods!FD35="","",Periods!FD35),"")) ->  | FE11: =IF($Q$12=Lists!$U$16,IF(Periods!FE20="","",Periods!FE20),IF($Q$12=Lists!$U$17,IF(Periods!FE35="","",Periods!FE35),"")) ->  | FF11: =IF($Q$12=Lists!$U$16,IF(Periods!FF20="","",Periods!FF20),IF($Q$12=Lists!$U$17,IF(Periods!FF35="","",Periods!FF35),"")) ->  | FG11: =IF($Q$12=Lists!$U$16,IF(Periods!FG20="","",Periods!FG20),IF($Q$12=Lists!$U$17,IF(Periods!FG35="","",Periods!FG35),"")) ->  | FH11: =IF($Q$12=Lists!$U$16,IF(Periods!FH20="","",Periods!FH20),IF($Q$12=Lists!$U$17,IF(Periods!FH35="","",Periods!FH35),"")) ->  | FI11: =IF($Q$12=Lists!$U$16,IF(Periods!FI20="","",Periods!FI20),IF($Q$12=Lists!$U$17,IF(Periods!FI35="","",Periods!FI35),"")) ->  | FJ11: =IF($Q$12=Lists!$U$16,IF(Periods!FJ20="","",Periods!FJ20),IF($Q$12=Lists!$U$17,IF(Periods!FJ35="","",Periods!FJ35),"")) ->  | FK11: =IF($Q$12=Lists!$U$16,IF(Periods!FK20="","",Periods!FK20),IF($Q$12=Lists!$U$17,IF(Periods!FK35="","",Periods!FK35),"")) ->  | FL11: =IF($Q$12=Lists!$U$16,IF(Periods!FL20="","",Periods!FL20),IF($Q$12=Lists!$U$17,IF(Periods!FL35="","",Periods!FL35),"")) ->  | FM11: =IF($Q$12=Lists!$U$16,IF(Periods!FM20="","",Periods!FM20),IF($Q$12=Lists!$U$17,IF(Periods!FM35="","",Periods!FM35),"")) ->  | FN11: =IF($Q$12=Lists!$U$16,IF(Periods!FN20="","",Periods!FN20),IF($Q$12=Lists!$U$17,IF(Periods!FN35="","",Periods!FN35),"")) ->  | FO11: =IF($Q$12=Lists!$U$16,IF(Periods!FO20="","",Periods!FO20),IF($Q$12=Lists!$U$17,IF(Periods!FO35="","",Periods!FO35),"")) ->  | FP11: =IF($Q$12=Lists!$U$16,IF(Periods!FP20="","",Periods!FP20),IF($Q$12=Lists!$U$17,IF(Periods!FP35="","",Periods!FP35),"")) ->  | FQ11: =IF($Q$12=Lists!$U$16,IF(Periods!FQ20="","",Periods!FQ20),IF($Q$12=Lists!$U$17,IF(Periods!FQ35="","",Periods!FQ35),"")) ->  | FR11: =IF($Q$12=Lists!$U$16,IF(Periods!FR20="","",Periods!FR20),IF($Q$12=Lists!$U$17,IF(Periods!FR35="","",Periods!FR35),"")) ->  | FS11: =IF($Q$12=Lists!$U$16,IF(Periods!FS20="","",Periods!FS20),IF($Q$12=Lists!$U$17,IF(Periods!FS35="","",Periods!FS35),"")) ->  | FT11: =IF($Q$12=Lists!$U$16,IF(Periods!FT20="","",Periods!FT20),IF($Q$12=Lists!$U$17,IF(Periods!FT35="","",Periods!FT35),"")) ->  | FU11: =IF($Q$12=Lists!$U$16,IF(Periods!FU20="","",Periods!FU20),IF($Q$12=Lists!$U$17,IF(Periods!FU35="","",Periods!FU35),"")) ->  | FV11: =IF($Q$12=Lists!$U$16,IF(Periods!FV20="","",Periods!FV20),IF($Q$12=Lists!$U$17,IF(Periods!FV35="","",Periods!FV35),"")) ->  | FW11: =IF($Q$12=Lists!$U$16,IF(Periods!FW20="","",Periods!FW20),IF($Q$12=Lists!$U$17,IF(Periods!FW35="","",Periods!FW35),"")) ->  | FX11: =IF($Q$12=Lists!$U$16,IF(Periods!FX20="","",Periods!FX20),IF($Q$12=Lists!$U$17,IF(Periods!FX35="","",Periods!FX35),"")) ->  | FY11: =IF($Q$12=Lists!$U$16,IF(Periods!FY20="","",Periods!FY20),IF($Q$12=Lists!$U$17,IF(Periods!FY35="","",Periods!FY35),"")) ->  | FZ11: =IF($Q$12=Lists!$U$16,IF(Periods!FZ20="","",Periods!FZ20),IF($Q$12=Lists!$U$17,IF(Periods!FZ35="","",Periods!FZ35),"")) ->  | GA11: =IF($Q$12=Lists!$U$16,IF(Periods!GA20="","",Periods!GA20),IF($Q$12=Lists!$U$17,IF(Periods!GA35="","",Periods!GA35),"")) ->  | GB11: =IF($Q$12=Lists!$U$16,IF(Periods!GB20="","",Periods!GB20),IF($Q$12=Lists!$U$17,IF(Periods!GB35="","",Periods!GB35),"")) ->  | GC11: =IF($Q$12=Lists!$U$16,IF(Periods!GC20="","",Periods!GC20),IF($Q$12=Lists!$U$17,IF(Periods!GC35="","",Periods!GC35),"")) ->  | GD11: =IF($Q$12=Lists!$U$16,IF(Periods!GD20="","",Periods!GD20),IF($Q$12=Lists!$U$17,IF(Periods!GD35="","",Periods!GD35),"")) ->  | GE11: =IF($Q$12=Lists!$U$16,IF(Periods!GE20="","",Periods!GE20),IF($Q$12=Lists!$U$17,IF(Periods!GE35="","",Periods!GE35),"")) ->  | GF11: =IF($Q$12=Lists!$U$16,IF(Periods!GF20="","",Periods!GF20),IF($Q$12=Lists!$U$17,IF(Periods!GF35="","",Periods!GF35),"")) ->  | GG11: =IF($Q$12=Lists!$U$16,IF(Periods!GG20="","",Periods!GG20),IF($Q$12=Lists!$U$17,IF(Periods!GG35="","",Periods!GG35),"")) ->  | GH11: =IF($Q$12=Lists!$U$16,IF(Periods!GH20="","",Periods!GH20),IF($Q$12=Lists!$U$17,IF(Periods!GH35="","",Periods!GH35),"")) ->  | GI11: =IF($Q$12=Lists!$U$16,IF(Periods!GI20="","",Periods!GI20),IF($Q$12=Lists!$U$17,IF(Periods!GI35="","",Periods!GI35),"")) ->  | GJ11: =IF($Q$12=Lists!$U$16,IF(Periods!GJ20="","",Periods!GJ20),IF($Q$12=Lists!$U$17,IF(Periods!GJ35="","",Periods!GJ35),"")) ->  | GK11: =IF($Q$12=Lists!$U$16,IF(Periods!GK20="","",Periods!GK20),IF($Q$12=Lists!$U$17,IF(Periods!GK35="","",Periods!GK35),"")) ->  | GL11: =IF($Q$12=Lists!$U$16,IF(Periods!GL20="","",Periods!GL20),IF($Q$12=Lists!$U$17,IF(Periods!GL35="","",Periods!GL35),"")) ->  | GM11: =IF($Q$12=Lists!$U$16,IF(Periods!GM20="","",Periods!GM20),IF($Q$12=Lists!$U$17,IF(Periods!GM35="","",Periods!GM35),"")) ->  | GN11: =IF($Q$12=Lists!$U$16,IF(Periods!GN20="","",Periods!GN20),IF($Q$12=Lists!$U$17,IF(Periods!GN35="","",Periods!GN35),"")) ->  | GO11: =IF($Q$12=Lists!$U$16,IF(Periods!GO20="","",Periods!GO20),IF($Q$12=Lists!$U$17,IF(Periods!GO35="","",Periods!GO35),"")) ->  | GP11: =IF($Q$12=Lists!$U$16,IF(Periods!GP20="","",Periods!GP20),IF($Q$12=Lists!$U$17,IF(Periods!GP35="","",Periods!GP35),"")) ->  | GQ11: =IF($Q$12=Lists!$U$16,IF(Periods!GQ20="","",Periods!GQ20),IF($Q$12=Lists!$U$17,IF(Periods!GQ35="","",Periods!GQ35),"")) ->  | GR11: =IF($Q$12=Lists!$U$16,IF(Periods!GR20="","",Periods!GR20),IF($Q$12=Lists!$U$17,IF(Periods!GR35="","",Periods!GR35),"")) ->  | GS11: =IF($Q$12=Lists!$U$16,IF(Periods!GS20="","",Periods!GS20),IF($Q$12=Lists!$U$17,IF(Periods!GS35="","",Periods!GS35),"")) ->  | GT11: =IF($Q$12=Lists!$U$16,IF(Periods!GT20="","",Periods!GT20),IF($Q$12=Lists!$U$17,IF(Periods!GT35="","",Periods!GT35),"")) ->  | GU11: =IF($Q$12=Lists!$U$16,IF(Periods!GU20="","",Periods!GU20),IF($Q$12=Lists!$U$17,IF(Periods!GU35="","",Periods!GU35),"")) ->  | GV11: =IF($Q$12=Lists!$U$16,IF(Periods!GV20="","",Periods!GV20),IF($Q$12=Lists!$U$17,IF(Periods!GV35="","",Periods!GV35),"")) ->  | GW11: =IF($Q$12=Lists!$U$16,IF(Periods!GW20="","",Periods!GW20),IF($Q$12=Lists!$U$17,IF(Periods!GW35="","",Periods!GW35),"")) ->  | GX11: =IF($Q$12=Lists!$U$16,IF(Periods!GX20="","",Periods!GX20),IF($Q$12=Lists!$U$17,IF(Periods!GX35="","",Periods!GX35),"")) ->  | GY11: =IF($Q$12=Lists!$U$16,IF(Periods!GY20="","",Periods!GY20),IF($Q$12=Lists!$U$17,IF(Periods!GY35="","",Periods!GY35),"")) ->  | GZ11: =IF($Q$12=Lists!$U$16,IF(Periods!GZ20="","",Periods!GZ20),IF($Q$12=Lists!$U$17,IF(Periods!GZ35="","",Periods!GZ35),"")) ->  | HA11: =IF($Q$12=Lists!$U$16,IF(Periods!HA20="","",Periods!HA20),IF($Q$12=Lists!$U$17,IF(Periods!HA35="","",Periods!HA35),"")) ->  | HB11: =IF($Q$12=Lists!$U$16,IF(Periods!HB20="","",Periods!HB20),IF($Q$12=Lists!$U$17,IF(Periods!HB35="","",Periods!HB35),"")) ->  | HC11: =IF($Q$12=Lists!$U$16,IF(Periods!HC20="","",Periods!HC20),IF($Q$12=Lists!$U$17,IF(Periods!HC35="","",Periods!HC35),"")) ->  | HD11: =IF($Q$12=Lists!$U$16,IF(Periods!HD20="","",Periods!HD20),IF($Q$12=Lists!$U$17,IF(Periods!HD35="","",Periods!HD35),"")) ->  | HE11: =IF($Q$12=Lists!$U$16,IF(Periods!HE20="","",Periods!HE20),IF($Q$12=Lists!$U$17,IF(Periods!HE35="","",Periods!HE35),"")) ->  | HF11: =IF($Q$12=Lists!$U$16,IF(Periods!HF20="","",Periods!HF20),IF($Q$12=Lists!$U$17,IF(Periods!HF35="","",Periods!HF35),"")) ->  | HG11: =IF($Q$12=Lists!$U$16,IF(Periods!HG20="","",Periods!HG20),IF($Q$12=Lists!$U$17,IF(Periods!HG35="","",Periods!HG35),"")) ->  | HH11: =IF($Q$12=Lists!$U$16,IF(Periods!HH20="","",Periods!HH20),IF($Q$12=Lists!$U$17,IF(Periods!HH35="","",Periods!HH35),"")) ->  | HI11: =IF($Q$12=Lists!$U$16,IF(Periods!HI20="","",Periods!HI20),IF($Q$12=Lists!$U$17,IF(Periods!HI35="","",Periods!HI35),"")) ->  | HJ11: =IF($Q$12=Lists!$U$16,IF(Periods!HJ20="","",Periods!HJ20),IF($Q$12=Lists!$U$17,IF(Periods!HJ35="","",Periods!HJ35),"")) ->  | HK11: =IF($Q$12=Lists!$U$16,IF(Periods!HK20="","",Periods!HK20),IF($Q$12=Lists!$U$17,IF(Periods!HK35="","",Periods!HK35),"")) -> 
H12: =Lists!$U$13 -> тип листа | Q12: =INDEX(Cntrl!$Q:$Q,SUMIFS(Cntrl!$A:$A,Cntrl!$I:$I,$F$11)) -> расчетный | X12: =IF($Q$12=Lists!$U$16,IF(Periods!X21="","",Periods!X21),IF($Q$12=Lists!$U$17,IF(Periods!X36="","",Periods!X36),"")) ->  | AA12: =IF($Q$12=Lists!$U$16,IF(Periods!AA21="","",Periods!AA21),IF($Q$12=Lists!$U$17,IF(Periods!AA36="","",Periods!AA36),"")) ->  | AB12: =IF($Q$12=Lists!$U$16,IF(Periods!AB21="","",Periods!AB21),IF($Q$12=Lists!$U$17,IF(Periods!AB36="","",Periods!AB36),"")) ->  | AC12: =IF($Q$12=Lists!$U$16,IF(Periods!AC21="","",Periods!AC21),IF($Q$12=Lists!$U$17,IF(Periods!AC36="","",Periods!AC36),"")) ->  | AD12: =IF($Q$12=Lists!$U$16,IF(Periods!AD21="","",Periods!AD21),IF($Q$12=Lists!$U$17,IF(Periods!AD36="","",Periods!AD36),"")) ->  | AE12: =IF($Q$12=Lists!$U$16,IF(Periods!AE21="","",Periods!AE21),IF($Q$12=Lists!$U$17,IF(Periods!AE36="","",Periods!AE36),"")) ->  | AF12: =IF($Q$12=Lists!$U$16,IF(Periods!AF21="","",Periods!AF21),IF($Q$12=Lists!$U$17,IF(Periods!AF36="","",Periods!AF36),"")) ->  | AG12: =IF($Q$12=Lists!$U$16,IF(Periods!AG21="","",Periods!AG21),IF($Q$12=Lists!$U$17,IF(Periods!AG36="","",Periods!AG36),"")) ->  | AH12: =IF($Q$12=Lists!$U$16,IF(Periods!AH21="","",Periods!AH21),IF($Q$12=Lists!$U$17,IF(Periods!AH36="","",Periods!AH36),"")) ->  | AI12: =IF($Q$12=Lists!$U$16,IF(Periods!AI21="","",Periods!AI21),IF($Q$12=Lists!$U$17,IF(Periods!AI36="","",Periods!AI36),"")) ->  | AJ12: =IF($Q$12=Lists!$U$16,IF(Periods!AJ21="","",Periods!AJ21),IF($Q$12=Lists!$U$17,IF(Periods!AJ36="","",Periods!AJ36),"")) ->  | AK12: =IF($Q$12=Lists!$U$16,IF(Periods!AK21="","",Periods!AK21),IF($Q$12=Lists!$U$17,IF(Periods!AK36="","",Periods!AK36),"")) ->  | AL12: =IF($Q$12=Lists!$U$16,IF(Periods!AL21="","",Periods!AL21),IF($Q$12=Lists!$U$17,IF(Periods!AL36="","",Periods!AL36),"")) ->  | AM12: =IF($Q$12=Lists!$U$16,IF(Periods!AM21="","",Periods!AM21),IF($Q$12=Lists!$U$17,IF(Periods!AM36="","",Periods!AM36),"")) ->  | AN12: =IF($Q$12=Lists!$U$16,IF(Periods!AN21="","",Periods!AN21),IF($Q$12=Lists!$U$17,IF(Periods!AN36="","",Periods!AN36),"")) ->  | AO12: =IF($Q$12=Lists!$U$16,IF(Periods!AO21="","",Periods!AO21),IF($Q$12=Lists!$U$17,IF(Periods!AO36="","",Periods!AO36),"")) ->  | AP12: =IF($Q$12=Lists!$U$16,IF(Periods!AP21="","",Periods!AP21),IF($Q$12=Lists!$U$17,IF(Periods!AP36="","",Periods!AP36),"")) ->  | AQ12: =IF($Q$12=Lists!$U$16,IF(Periods!AQ21="","",Periods!AQ21),IF($Q$12=Lists!$U$17,IF(Periods!AQ36="","",Periods!AQ36),"")) ->  | AR12: =IF($Q$12=Lists!$U$16,IF(Periods!AR21="","",Periods!AR21),IF($Q$12=Lists!$U$17,IF(Periods!AR36="","",Periods!AR36),"")) ->  | AS12: =IF($Q$12=Lists!$U$16,IF(Periods!AS21="","",Periods!AS21),IF($Q$12=Lists!$U$17,IF(Periods!AS36="","",Periods!AS36),"")) ->  | AT12: =IF($Q$12=Lists!$U$16,IF(Periods!AT21="","",Periods!AT21),IF($Q$12=Lists!$U$17,IF(Periods!AT36="","",Periods!AT36),"")) ->  | AU12: =IF($Q$12=Lists!$U$16,IF(Periods!AU21="","",Periods!AU21),IF($Q$12=Lists!$U$17,IF(Periods!AU36="","",Periods!AU36),"")) ->  | AV12: =IF($Q$12=Lists!$U$16,IF(Periods!AV21="","",Periods!AV21),IF($Q$12=Lists!$U$17,IF(Periods!AV36="","",Periods!AV36),"")) ->  | AW12: =IF($Q$12=Lists!$U$16,IF(Periods!AW21="","",Periods!AW21),IF($Q$12=Lists!$U$17,IF(Periods!AW36="","",Periods!AW36),"")) ->  | AX12: =IF($Q$12=Lists!$U$16,IF(Periods!AX21="","",Periods!AX21),IF($Q$12=Lists!$U$17,IF(Periods!AX36="","",Periods!AX36),"")) ->  | AY12: =IF($Q$12=Lists!$U$16,IF(Periods!AY21="","",Periods!AY21),IF($Q$12=Lists!$U$17,IF(Periods!AY36="","",Periods!AY36),"")) ->  | AZ12: =IF($Q$12=Lists!$U$16,IF(Periods!AZ21="","",Periods!AZ21),IF($Q$12=Lists!$U$17,IF(Periods!AZ36="","",Periods!AZ36),"")) ->  | BA12: =IF($Q$12=Lists!$U$16,IF(Periods!BA21="","",Periods!BA21),IF($Q$12=Lists!$U$17,IF(Periods!BA36="","",Periods!BA36),"")) ->  | BB12: =IF($Q$12=Lists!$U$16,IF(Periods!BB21="","",Periods!BB21),IF($Q$12=Lists!$U$17,IF(Periods!BB36="","",Periods!BB36),"")) ->  | BC12: =IF($Q$12=Lists!$U$16,IF(Periods!BC21="","",Periods!BC21),IF($Q$12=Lists!$U$17,IF(Periods!BC36="","",Periods!BC36),"")) ->  | BD12: =IF($Q$12=Lists!$U$16,IF(Periods!BD21="","",Periods!BD21),IF($Q$12=Lists!$U$17,IF(Periods!BD36="","",Periods!BD36),"")) ->  | BE12: =IF($Q$12=Lists!$U$16,IF(Periods!BE21="","",Periods!BE21),IF($Q$12=Lists!$U$17,IF(Periods!BE36="","",Periods!BE36),"")) ->  | BF12: =IF($Q$12=Lists!$U$16,IF(Periods!BF21="","",Periods!BF21),IF($Q$12=Lists!$U$17,IF(Periods!BF36="","",Periods!BF36),"")) ->  | BG12: =IF($Q$12=Lists!$U$16,IF(Periods!BG21="","",Periods!BG21),IF($Q$12=Lists!$U$17,IF(Periods!BG36="","",Periods!BG36),"")) ->  | BH12: =IF($Q$12=Lists!$U$16,IF(Periods!BH21="","",Periods!BH21),IF($Q$12=Lists!$U$17,IF(Periods!BH36="","",Periods!BH36),"")) ->  | BI12: =IF($Q$12=Lists!$U$16,IF(Periods!BI21="","",Periods!BI21),IF($Q$12=Lists!$U$17,IF(Periods!BI36="","",Periods!BI36),"")) ->  | BJ12: =IF($Q$12=Lists!$U$16,IF(Periods!BJ21="","",Periods!BJ21),IF($Q$12=Lists!$U$17,IF(Periods!BJ36="","",Periods!BJ36),"")) ->  | BK12: =IF($Q$12=Lists!$U$16,IF(Periods!BK21="","",Periods!BK21),IF($Q$12=Lists!$U$17,IF(Periods!BK36="","",Periods!BK36),"")) ->  | BL12: =IF($Q$12=Lists!$U$16,IF(Periods!BL21="","",Periods!BL21),IF($Q$12=Lists!$U$17,IF(Periods!BL36="","",Periods!BL36),"")) ->  | BM12: =IF($Q$12=Lists!$U$16,IF(Periods!BM21="","",Periods!BM21),IF($Q$12=Lists!$U$17,IF(Periods!BM36="","",Periods!BM36),"")) ->  | BN12: =IF($Q$12=Lists!$U$16,IF(Periods!BN21="","",Periods!BN21),IF($Q$12=Lists!$U$17,IF(Periods!BN36="","",Periods!BN36),"")) ->  | BO12: =IF($Q$12=Lists!$U$16,IF(Periods!BO21="","",Periods!BO21),IF($Q$12=Lists!$U$17,IF(Periods!BO36="","",Periods!BO36),"")) ->  | BP12: =IF($Q$12=Lists!$U$16,IF(Periods!BP21="","",Periods!BP21),IF($Q$12=Lists!$U$17,IF(Periods!BP36="","",Periods!BP36),"")) ->  | BQ12: =IF($Q$12=Lists!$U$16,IF(Periods!BQ21="","",Periods!BQ21),IF($Q$12=Lists!$U$17,IF(Periods!BQ36="","",Periods!BQ36),"")) ->  | BR12: =IF($Q$12=Lists!$U$16,IF(Periods!BR21="","",Periods!BR21),IF($Q$12=Lists!$U$17,IF(Periods!BR36="","",Periods!BR36),"")) ->  | BS12: =IF($Q$12=Lists!$U$16,IF(Periods!BS21="","",Periods!BS21),IF($Q$12=Lists!$U$17,IF(Periods!BS36="","",Periods!BS36),"")) ->  | BT12: =IF($Q$12=Lists!$U$16,IF(Periods!BT21="","",Periods!BT21),IF($Q$12=Lists!$U$17,IF(Periods!BT36="","",Periods!BT36),"")) ->  | BU12: =IF($Q$12=Lists!$U$16,IF(Periods!BU21="","",Periods!BU21),IF($Q$12=Lists!$U$17,IF(Periods!BU36="","",Periods!BU36),"")) ->  | BV12: =IF($Q$12=Lists!$U$16,IF(Periods!BV21="","",Periods!BV21),IF($Q$12=Lists!$U$17,IF(Periods!BV36="","",Periods!BV36),"")) ->  | BW12: =IF($Q$12=Lists!$U$16,IF(Periods!BW21="","",Periods!BW21),IF($Q$12=Lists!$U$17,IF(Periods!BW36="","",Periods!BW36),"")) ->  | BX12: =IF($Q$12=Lists!$U$16,IF(Periods!BX21="","",Periods!BX21),IF($Q$12=Lists!$U$17,IF(Periods!BX36="","",Periods!BX36),"")) ->  | BY12: =IF($Q$12=Lists!$U$16,IF(Periods!BY21="","",Periods!BY21),IF($Q$12=Lists!$U$17,IF(Periods!BY36="","",Periods!BY36),"")) ->  | BZ12: =IF($Q$12=Lists!$U$16,IF(Periods!BZ21="","",Periods!BZ21),IF($Q$12=Lists!$U$17,IF(Periods!BZ36="","",Periods!BZ36),"")) ->  | CA12: =IF($Q$12=Lists!$U$16,IF(Periods!CA21="","",Periods!CA21),IF($Q$12=Lists!$U$17,IF(Periods!CA36="","",Periods!CA36),"")) ->  | CB12: =IF($Q$12=Lists!$U$16,IF(Periods!CB21="","",Periods!CB21),IF($Q$12=Lists!$U$17,IF(Periods!CB36="","",Periods!CB36),"")) ->  | CC12: =IF($Q$12=Lists!$U$16,IF(Periods!CC21="","",Periods!CC21),IF($Q$12=Lists!$U$17,IF(Periods!CC36="","",Periods!CC36),"")) ->  | CD12: =IF($Q$12=Lists!$U$16,IF(Periods!CD21="","",Periods!CD21),IF($Q$12=Lists!$U$17,IF(Periods!CD36="","",Periods!CD36),"")) ->  | CE12: =IF($Q$12=Lists!$U$16,IF(Periods!CE21="","",Periods!CE21),IF($Q$12=Lists!$U$17,IF(Periods!CE36="","",Periods!CE36),"")) ->  | CF12: =IF($Q$12=Lists!$U$16,IF(Periods!CF21="","",Periods!CF21),IF($Q$12=Lists!$U$17,IF(Periods!CF36="","",Periods!CF36),"")) ->  | CG12: =IF($Q$12=Lists!$U$16,IF(Periods!CG21="","",Periods!CG21),IF($Q$12=Lists!$U$17,IF(Periods!CG36="","",Periods!CG36),"")) ->  | CH12: =IF($Q$12=Lists!$U$16,IF(Periods!CH21="","",Periods!CH21),IF($Q$12=Lists!$U$17,IF(Periods!CH36="","",Periods!CH36),"")) ->  | CI12: =IF($Q$12=Lists!$U$16,IF(Periods!CI21="","",Periods!CI21),IF($Q$12=Lists!$U$17,IF(Periods!CI36="","",Periods!CI36),"")) ->  | CJ12: =IF($Q$12=Lists!$U$16,IF(Periods!CJ21="","",Periods!CJ21),IF($Q$12=Lists!$U$17,IF(Periods!CJ36="","",Periods!CJ36),"")) ->  | CK12: =IF($Q$12=Lists!$U$16,IF(Periods!CK21="","",Periods!CK21),IF($Q$12=Lists!$U$17,IF(Periods!CK36="","",Periods!CK36),"")) ->  | CL12: =IF($Q$12=Lists!$U$16,IF(Periods!CL21="","",Periods!CL21),IF($Q$12=Lists!$U$17,IF(Periods!CL36="","",Periods!CL36),"")) ->  | CM12: =IF($Q$12=Lists!$U$16,IF(Periods!CM21="","",Periods!CM21),IF($Q$12=Lists!$U$17,IF(Periods!CM36="","",Periods!CM36),"")) ->  | CN12: =IF($Q$12=Lists!$U$16,IF(Periods!CN21="","",Periods!CN21),IF($Q$12=Lists!$U$17,IF(Periods!CN36="","",Periods!CN36),"")) ->  | CO12: =IF($Q$12=Lists!$U$16,IF(Periods!CO21="","",Periods!CO21),IF($Q$12=Lists!$U$17,IF(Periods!CO36="","",Periods!CO36),"")) ->  | CP12: =IF($Q$12=Lists!$U$16,IF(Periods!CP21="","",Periods!CP21),IF($Q$12=Lists!$U$17,IF(Periods!CP36="","",Periods!CP36),"")) ->  | CQ12: =IF($Q$12=Lists!$U$16,IF(Periods!CQ21="","",Periods!CQ21),IF($Q$12=Lists!$U$17,IF(Periods!CQ36="","",Periods!CQ36),"")) ->  | CR12: =IF($Q$12=Lists!$U$16,IF(Periods!CR21="","",Periods!CR21),IF($Q$12=Lists!$U$17,IF(Periods!CR36="","",Periods!CR36),"")) ->  | CS12: =IF($Q$12=Lists!$U$16,IF(Periods!CS21="","",Periods!CS21),IF($Q$12=Lists!$U$17,IF(Periods!CS36="","",Periods!CS36),"")) ->  | CT12: =IF($Q$12=Lists!$U$16,IF(Periods!CT21="","",Periods!CT21),IF($Q$12=Lists!$U$17,IF(Periods!CT36="","",Periods!CT36),"")) ->  | CU12: =IF($Q$12=Lists!$U$16,IF(Periods!CU21="","",Periods!CU21),IF($Q$12=Lists!$U$17,IF(Periods!CU36="","",Periods!CU36),"")) ->  | CV12: =IF($Q$12=Lists!$U$16,IF(Periods!CV21="","",Periods!CV21),IF($Q$12=Lists!$U$17,IF(Periods!CV36="","",Periods!CV36),"")) ->  | CW12: =IF($Q$12=Lists!$U$16,IF(Periods!CW21="","",Periods!CW21),IF($Q$12=Lists!$U$17,IF(Periods!CW36="","",Periods!CW36),"")) ->  | CX12: =IF($Q$12=Lists!$U$16,IF(Periods!CX21="","",Periods!CX21),IF($Q$12=Lists!$U$17,IF(Periods!CX36="","",Periods!CX36),"")) ->  | CY12: =IF($Q$12=Lists!$U$16,IF(Periods!CY21="","",Periods!CY21),IF($Q$12=Lists!$U$17,IF(Periods!CY36="","",Periods!CY36),"")) ->  | CZ12: =IF($Q$12=Lists!$U$16,IF(Periods!CZ21="","",Periods!CZ21),IF($Q$12=Lists!$U$17,IF(Periods!CZ36="","",Periods!CZ36),"")) ->  | DA12: =IF($Q$12=Lists!$U$16,IF(Periods!DA21="","",Periods!DA21),IF($Q$12=Lists!$U$17,IF(Periods!DA36="","",Periods!DA36),"")) ->  | DB12: =IF($Q$12=Lists!$U$16,IF(Periods!DB21="","",Periods!DB21),IF($Q$12=Lists!$U$17,IF(Periods!DB36="","",Periods!DB36),"")) ->  | DC12: =IF($Q$12=Lists!$U$16,IF(Periods!DC21="","",Periods!DC21),IF($Q$12=Lists!$U$17,IF(Periods!DC36="","",Periods!DC36),"")) ->  | DD12: =IF($Q$12=Lists!$U$16,IF(Periods!DD21="","",Periods!DD21),IF($Q$12=Lists!$U$17,IF(Periods!DD36="","",Periods!DD36),"")) ->  | DE12: =IF($Q$12=Lists!$U$16,IF(Periods!DE21="","",Periods!DE21),IF($Q$12=Lists!$U$17,IF(Periods!DE36="","",Periods!DE36),"")) ->  | DF12: =IF($Q$12=Lists!$U$16,IF(Periods!DF21="","",Periods!DF21),IF($Q$12=Lists!$U$17,IF(Periods!DF36="","",Periods!DF36),"")) ->  | DG12: =IF($Q$12=Lists!$U$16,IF(Periods!DG21="","",Periods!DG21),IF($Q$12=Lists!$U$17,IF(Periods!DG36="","",Periods!DG36),"")) ->  | DH12: =IF($Q$12=Lists!$U$16,IF(Periods!DH21="","",Periods!DH21),IF($Q$12=Lists!$U$17,IF(Periods!DH36="","",Periods!DH36),"")) ->  | DI12: =IF($Q$12=Lists!$U$16,IF(Periods!DI21="","",Periods!DI21),IF($Q$12=Lists!$U$17,IF(Periods!DI36="","",Periods!DI36),"")) ->  | DJ12: =IF($Q$12=Lists!$U$16,IF(Periods!DJ21="","",Periods!DJ21),IF($Q$12=Lists!$U$17,IF(Periods!DJ36="","",Periods!DJ36),"")) ->  | DK12: =IF($Q$12=Lists!$U$16,IF(Periods!DK21="","",Periods!DK21),IF($Q$12=Lists!$U$17,IF(Periods!DK36="","",Periods!DK36),"")) ->  | DL12: =IF($Q$12=Lists!$U$16,IF(Periods!DL21="","",Periods!DL21),IF($Q$12=Lists!$U$17,IF(Periods!DL36="","",Periods!DL36),"")) ->  | DM12: =IF($Q$12=Lists!$U$16,IF(Periods!DM21="","",Periods!DM21),IF($Q$12=Lists!$U$17,IF(Periods!DM36="","",Periods!DM36),"")) ->  | DN12: =IF($Q$12=Lists!$U$16,IF(Periods!DN21="","",Periods!DN21),IF($Q$12=Lists!$U$17,IF(Periods!DN36="","",Periods!DN36),"")) ->  | DO12: =IF($Q$12=Lists!$U$16,IF(Periods!DO21="","",Periods!DO21),IF($Q$12=Lists!$U$17,IF(Periods!DO36="","",Periods!DO36),"")) ->  | DP12: =IF($Q$12=Lists!$U$16,IF(Periods!DP21="","",Periods!DP21),IF($Q$12=Lists!$U$17,IF(Periods!DP36="","",Periods!DP36),"")) ->  | DQ12: =IF($Q$12=Lists!$U$16,IF(Periods!DQ21="","",Periods!DQ21),IF($Q$12=Lists!$U$17,IF(Periods!DQ36="","",Periods!DQ36),"")) ->  | DR12: =IF($Q$12=Lists!$U$16,IF(Periods!DR21="","",Periods!DR21),IF($Q$12=Lists!$U$17,IF(Periods!DR36="","",Periods!DR36),"")) ->  | DS12: =IF($Q$12=Lists!$U$16,IF(Periods!DS21="","",Periods!DS21),IF($Q$12=Lists!$U$17,IF(Periods!DS36="","",Periods!DS36),"")) ->  | DT12: =IF($Q$12=Lists!$U$16,IF(Periods!DT21="","",Periods!DT21),IF($Q$12=Lists!$U$17,IF(Periods!DT36="","",Periods!DT36),"")) ->  | DU12: =IF($Q$12=Lists!$U$16,IF(Periods!DU21="","",Periods!DU21),IF($Q$12=Lists!$U$17,IF(Periods!DU36="","",Periods!DU36),"")) ->  | DV12: =IF($Q$12=Lists!$U$16,IF(Periods!DV21="","",Periods!DV21),IF($Q$12=Lists!$U$17,IF(Periods!DV36="","",Periods!DV36),"")) ->  | DW12: =IF($Q$12=Lists!$U$16,IF(Periods!DW21="","",Periods!DW21),IF($Q$12=Lists!$U$17,IF(Periods!DW36="","",Periods!DW36),"")) ->  | DX12: =IF($Q$12=Lists!$U$16,IF(Periods!DX21="","",Periods!DX21),IF($Q$12=Lists!$U$17,IF(Periods!DX36="","",Periods!DX36),"")) ->  | DY12: =IF($Q$12=Lists!$U$16,IF(Periods!DY21="","",Periods!DY21),IF($Q$12=Lists!$U$17,IF(Periods!DY36="","",Periods!DY36),"")) ->  | DZ12: =IF($Q$12=Lists!$U$16,IF(Periods!DZ21="","",Periods!DZ21),IF($Q$12=Lists!$U$17,IF(Periods!DZ36="","",Periods!DZ36),"")) ->  | EA12: =IF($Q$12=Lists!$U$16,IF(Periods!EA21="","",Periods!EA21),IF($Q$12=Lists!$U$17,IF(Periods!EA36="","",Periods!EA36),"")) ->  | EB12: =IF($Q$12=Lists!$U$16,IF(Periods!EB21="","",Periods!EB21),IF($Q$12=Lists!$U$17,IF(Periods!EB36="","",Periods!EB36),"")) ->  | EC12: =IF($Q$12=Lists!$U$16,IF(Periods!EC21="","",Periods!EC21),IF($Q$12=Lists!$U$17,IF(Periods!EC36="","",Periods!EC36),"")) ->  | ED12: =IF($Q$12=Lists!$U$16,IF(Periods!ED21="","",Periods!ED21),IF($Q$12=Lists!$U$17,IF(Periods!ED36="","",Periods!ED36),"")) ->  | EE12: =IF($Q$12=Lists!$U$16,IF(Periods!EE21="","",Periods!EE21),IF($Q$12=Lists!$U$17,IF(Periods!EE36="","",Periods!EE36),"")) ->  | EF12: =IF($Q$12=Lists!$U$16,IF(Periods!EF21="","",Periods!EF21),IF($Q$12=Lists!$U$17,IF(Periods!EF36="","",Periods!EF36),"")) ->  | EG12: =IF($Q$12=Lists!$U$16,IF(Periods!EG21="","",Periods!EG21),IF($Q$12=Lists!$U$17,IF(Periods!EG36="","",Periods!EG36),"")) ->  | EH12: =IF($Q$12=Lists!$U$16,IF(Periods!EH21="","",Periods!EH21),IF($Q$12=Lists!$U$17,IF(Periods!EH36="","",Periods!EH36),"")) ->  | EI12: =IF($Q$12=Lists!$U$16,IF(Periods!EI21="","",Periods!EI21),IF($Q$12=Lists!$U$17,IF(Periods!EI36="","",Periods!EI36),"")) ->  | EJ12: =IF($Q$12=Lists!$U$16,IF(Periods!EJ21="","",Periods!EJ21),IF($Q$12=Lists!$U$17,IF(Periods!EJ36="","",Periods!EJ36),"")) ->  | EK12: =IF($Q$12=Lists!$U$16,IF(Periods!EK21="","",Periods!EK21),IF($Q$12=Lists!$U$17,IF(Periods!EK36="","",Periods!EK36),"")) ->  | EL12: =IF($Q$12=Lists!$U$16,IF(Periods!EL21="","",Periods!EL21),IF($Q$12=Lists!$U$17,IF(Periods!EL36="","",Periods!EL36),"")) ->  | EM12: =IF($Q$12=Lists!$U$16,IF(Periods!EM21="","",Periods!EM21),IF($Q$12=Lists!$U$17,IF(Periods!EM36="","",Periods!EM36),"")) ->  | EN12: =IF($Q$12=Lists!$U$16,IF(Periods!EN21="","",Periods!EN21),IF($Q$12=Lists!$U$17,IF(Periods!EN36="","",Periods!EN36),"")) ->  | EO12: =IF($Q$12=Lists!$U$16,IF(Periods!EO21="","",Periods!EO21),IF($Q$12=Lists!$U$17,IF(Periods!EO36="","",Periods!EO36),"")) ->  | EP12: =IF($Q$12=Lists!$U$16,IF(Periods!EP21="","",Periods!EP21),IF($Q$12=Lists!$U$17,IF(Periods!EP36="","",Periods!EP36),"")) ->  | EQ12: =IF($Q$12=Lists!$U$16,IF(Periods!EQ21="","",Periods!EQ21),IF($Q$12=Lists!$U$17,IF(Periods!EQ36="","",Periods!EQ36),"")) ->  | ER12: =IF($Q$12=Lists!$U$16,IF(Periods!ER21="","",Periods!ER21),IF($Q$12=Lists!$U$17,IF(Periods!ER36="","",Periods!ER36),"")) ->  | ES12: =IF($Q$12=Lists!$U$16,IF(Periods!ES21="","",Periods!ES21),IF($Q$12=Lists!$U$17,IF(Periods!ES36="","",Periods!ES36),"")) ->  | ET12: =IF($Q$12=Lists!$U$16,IF(Periods!ET21="","",Periods!ET21),IF($Q$12=Lists!$U$17,IF(Periods!ET36="","",Periods!ET36),"")) ->  | EU12: =IF($Q$12=Lists!$U$16,IF(Periods!EU21="","",Periods!EU21),IF($Q$12=Lists!$U$17,IF(Periods!EU36="","",Periods!EU36),"")) ->  | EV12: =IF($Q$12=Lists!$U$16,IF(Periods!EV21="","",Periods!EV21),IF($Q$12=Lists!$U$17,IF(Periods!EV36="","",Periods!EV36),"")) ->  | EW12: =IF($Q$12=Lists!$U$16,IF(Periods!EW21="","",Periods!EW21),IF($Q$12=Lists!$U$17,IF(Periods!EW36="","",Periods!EW36),"")) ->  | EX12: =IF($Q$12=Lists!$U$16,IF(Periods!EX21="","",Periods!EX21),IF($Q$12=Lists!$U$17,IF(Periods!EX36="","",Periods!EX36),"")) ->  | EY12: =IF($Q$12=Lists!$U$16,IF(Periods!EY21="","",Periods!EY21),IF($Q$12=Lists!$U$17,IF(Periods!EY36="","",Periods!EY36),"")) ->  | EZ12: =IF($Q$12=Lists!$U$16,IF(Periods!EZ21="","",Periods!EZ21),IF($Q$12=Lists!$U$17,IF(Periods!EZ36="","",Periods!EZ36),"")) ->  | FA12: =IF($Q$12=Lists!$U$16,IF(Periods!FA21="","",Periods!FA21),IF($Q$12=Lists!$U$17,IF(Periods!FA36="","",Periods!FA36),"")) ->  | FB12: =IF($Q$12=Lists!$U$16,IF(Periods!FB21="","",Periods!FB21),IF($Q$12=Lists!$U$17,IF(Periods!FB36="","",Periods!FB36),"")) ->  | FC12: =IF($Q$12=Lists!$U$16,IF(Periods!FC21="","",Periods!FC21),IF($Q$12=Lists!$U$17,IF(Periods!FC36="","",Periods!FC36),"")) ->  | FD12: =IF($Q$12=Lists!$U$16,IF(Periods!FD21="","",Periods!FD21),IF($Q$12=Lists!$U$17,IF(Periods!FD36="","",Periods!FD36),"")) ->  | FE12: =IF($Q$12=Lists!$U$16,IF(Periods!FE21="","",Periods!FE21),IF($Q$12=Lists!$U$17,IF(Periods!FE36="","",Periods!FE36),"")) ->  | FF12: =IF($Q$12=Lists!$U$16,IF(Periods!FF21="","",Periods!FF21),IF($Q$12=Lists!$U$17,IF(Periods!FF36="","",Periods!FF36),"")) ->  | FG12: =IF($Q$12=Lists!$U$16,IF(Periods!FG21="","",Periods!FG21),IF($Q$12=Lists!$U$17,IF(Periods!FG36="","",Periods!FG36),"")) ->  | FH12: =IF($Q$12=Lists!$U$16,IF(Periods!FH21="","",Periods!FH21),IF($Q$12=Lists!$U$17,IF(Periods!FH36="","",Periods!FH36),"")) ->  | FI12: =IF($Q$12=Lists!$U$16,IF(Periods!FI21="","",Periods!FI21),IF($Q$12=Lists!$U$17,IF(Periods!FI36="","",Periods!FI36),"")) ->  | FJ12: =IF($Q$12=Lists!$U$16,IF(Periods!FJ21="","",Periods!FJ21),IF($Q$12=Lists!$U$17,IF(Periods!FJ36="","",Periods!FJ36),"")) ->  | FK12: =IF($Q$12=Lists!$U$16,IF(Periods!FK21="","",Periods!FK21),IF($Q$12=Lists!$U$17,IF(Periods!FK36="","",Periods!FK36),"")) ->  | FL12: =IF($Q$12=Lists!$U$16,IF(Periods!FL21="","",Periods!FL21),IF($Q$12=Lists!$U$17,IF(Periods!FL36="","",Periods!FL36),"")) ->  | FM12: =IF($Q$12=Lists!$U$16,IF(Periods!FM21="","",Periods!FM21),IF($Q$12=Lists!$U$17,IF(Periods!FM36="","",Periods!FM36),"")) ->  | FN12: =IF($Q$12=Lists!$U$16,IF(Periods!FN21="","",Periods!FN21),IF($Q$12=Lists!$U$17,IF(Periods!FN36="","",Periods!FN36),"")) ->  | FO12: =IF($Q$12=Lists!$U$16,IF(Periods!FO21="","",Periods!FO21),IF($Q$12=Lists!$U$17,IF(Periods!FO36="","",Periods!FO36),"")) ->  | FP12: =IF($Q$12=Lists!$U$16,IF(Periods!FP21="","",Periods!FP21),IF($Q$12=Lists!$U$17,IF(Periods!FP36="","",Periods!FP36),"")) ->  | FQ12: =IF($Q$12=Lists!$U$16,IF(Periods!FQ21="","",Periods!FQ21),IF($Q$12=Lists!$U$17,IF(Periods!FQ36="","",Periods!FQ36),"")) ->  | FR12: =IF($Q$12=Lists!$U$16,IF(Periods!FR21="","",Periods!FR21),IF($Q$12=Lists!$U$17,IF(Periods!FR36="","",Periods!FR36),"")) ->  | FS12: =IF($Q$12=Lists!$U$16,IF(Periods!FS21="","",Periods!FS21),IF($Q$12=Lists!$U$17,IF(Periods!FS36="","",Periods!FS36),"")) ->  | FT12: =IF($Q$12=Lists!$U$16,IF(Periods!FT21="","",Periods!FT21),IF($Q$12=Lists!$U$17,IF(Periods!FT36="","",Periods!FT36),"")) ->  | FU12: =IF($Q$12=Lists!$U$16,IF(Periods!FU21="","",Periods!FU21),IF($Q$12=Lists!$U$17,IF(Periods!FU36="","",Periods!FU36),"")) ->  | FV12: =IF($Q$12=Lists!$U$16,IF(Periods!FV21="","",Periods!FV21),IF($Q$12=Lists!$U$17,IF(Periods!FV36="","",Periods!FV36),"")) ->  | FW12: =IF($Q$12=Lists!$U$16,IF(Periods!FW21="","",Periods!FW21),IF($Q$12=Lists!$U$17,IF(Periods!FW36="","",Periods!FW36),"")) ->  | FX12: =IF($Q$12=Lists!$U$16,IF(Periods!FX21="","",Periods!FX21),IF($Q$12=Lists!$U$17,IF(Periods!FX36="","",Periods!FX36),"")) ->  | FY12: =IF($Q$12=Lists!$U$16,IF(Periods!FY21="","",Periods!FY21),IF($Q$12=Lists!$U$17,IF(Periods!FY36="","",Periods!FY36),"")) ->  | FZ12: =IF($Q$12=Lists!$U$16,IF(Periods!FZ21="","",Periods!FZ21),IF($Q$12=Lists!$U$17,IF(Periods!FZ36="","",Periods!FZ36),"")) ->  | GA12: =IF($Q$12=Lists!$U$16,IF(Periods!GA21="","",Periods!GA21),IF($Q$12=Lists!$U$17,IF(Periods!GA36="","",Periods!GA36),"")) ->  | GB12: =IF($Q$12=Lists!$U$16,IF(Periods!GB21="","",Periods!GB21),IF($Q$12=Lists!$U$17,IF(Periods!GB36="","",Periods!GB36),"")) ->  | GC12: =IF($Q$12=Lists!$U$16,IF(Periods!GC21="","",Periods!GC21),IF($Q$12=Lists!$U$17,IF(Periods!GC36="","",Periods!GC36),"")) ->  | GD12: =IF($Q$12=Lists!$U$16,IF(Periods!GD21="","",Periods!GD21),IF($Q$12=Lists!$U$17,IF(Periods!GD36="","",Periods!GD36),"")) ->  | GE12: =IF($Q$12=Lists!$U$16,IF(Periods!GE21="","",Periods!GE21),IF($Q$12=Lists!$U$17,IF(Periods!GE36="","",Periods!GE36),"")) ->  | GF12: =IF($Q$12=Lists!$U$16,IF(Periods!GF21="","",Periods!GF21),IF($Q$12=Lists!$U$17,IF(Periods!GF36="","",Periods!GF36),"")) ->  | GG12: =IF($Q$12=Lists!$U$16,IF(Periods!GG21="","",Periods!GG21),IF($Q$12=Lists!$U$17,IF(Periods!GG36="","",Periods!GG36),"")) ->  | GH12: =IF($Q$12=Lists!$U$16,IF(Periods!GH21="","",Periods!GH21),IF($Q$12=Lists!$U$17,IF(Periods!GH36="","",Periods!GH36),"")) ->  | GI12: =IF($Q$12=Lists!$U$16,IF(Periods!GI21="","",Periods!GI21),IF($Q$12=Lists!$U$17,IF(Periods!GI36="","",Periods!GI36),"")) ->  | GJ12: =IF($Q$12=Lists!$U$16,IF(Periods!GJ21="","",Periods!GJ21),IF($Q$12=Lists!$U$17,IF(Periods!GJ36="","",Periods!GJ36),"")) ->  | GK12: =IF($Q$12=Lists!$U$16,IF(Periods!GK21="","",Periods!GK21),IF($Q$12=Lists!$U$17,IF(Periods!GK36="","",Periods!GK36),"")) ->  | GL12: =IF($Q$12=Lists!$U$16,IF(Periods!GL21="","",Periods!GL21),IF($Q$12=Lists!$U$17,IF(Periods!GL36="","",Periods!GL36),"")) ->  | GM12: =IF($Q$12=Lists!$U$16,IF(Periods!GM21="","",Periods!GM21),IF($Q$12=Lists!$U$17,IF(Periods!GM36="","",Periods!GM36),"")) ->  | GN12: =IF($Q$12=Lists!$U$16,IF(Periods!GN21="","",Periods!GN21),IF($Q$12=Lists!$U$17,IF(Periods!GN36="","",Periods!GN36),"")) ->  | GO12: =IF($Q$12=Lists!$U$16,IF(Periods!GO21="","",Periods!GO21),IF($Q$12=Lists!$U$17,IF(Periods!GO36="","",Periods!GO36),"")) ->  | GP12: =IF($Q$12=Lists!$U$16,IF(Periods!GP21="","",Periods!GP21),IF($Q$12=Lists!$U$17,IF(Periods!GP36="","",Periods!GP36),"")) ->  | GQ12: =IF($Q$12=Lists!$U$16,IF(Periods!GQ21="","",Periods!GQ21),IF($Q$12=Lists!$U$17,IF(Periods!GQ36="","",Periods!GQ36),"")) ->  | GR12: =IF($Q$12=Lists!$U$16,IF(Periods!GR21="","",Periods!GR21),IF($Q$12=Lists!$U$17,IF(Periods!GR36="","",Periods!GR36),"")) ->  | GS12: =IF($Q$12=Lists!$U$16,IF(Periods!GS21="","",Periods!GS21),IF($Q$12=Lists!$U$17,IF(Periods!GS36="","",Periods!GS36),"")) ->  | GT12: =IF($Q$12=Lists!$U$16,IF(Periods!GT21="","",Periods!GT21),IF($Q$12=Lists!$U$17,IF(Periods!GT36="","",Periods!GT36),"")) ->  | GU12: =IF($Q$12=Lists!$U$16,IF(Periods!GU21="","",Periods!GU21),IF($Q$12=Lists!$U$17,IF(Periods!GU36="","",Periods!GU36),"")) ->  | GV12: =IF($Q$12=Lists!$U$16,IF(Periods!GV21="","",Periods!GV21),IF($Q$12=Lists!$U$17,IF(Periods!GV36="","",Periods!GV36),"")) ->  | GW12: =IF($Q$12=Lists!$U$16,IF(Periods!GW21="","",Periods!GW21),IF($Q$12=Lists!$U$17,IF(Periods!GW36="","",Periods!GW36),"")) ->  | GX12: =IF($Q$12=Lists!$U$16,IF(Periods!GX21="","",Periods!GX21),IF($Q$12=Lists!$U$17,IF(Periods!GX36="","",Periods!GX36),"")) ->  | GY12: =IF($Q$12=Lists!$U$16,IF(Periods!GY21="","",Periods!GY21),IF($Q$12=Lists!$U$17,IF(Periods!GY36="","",Periods!GY36),"")) ->  | GZ12: =IF($Q$12=Lists!$U$16,IF(Periods!GZ21="","",Periods!GZ21),IF($Q$12=Lists!$U$17,IF(Periods!GZ36="","",Periods!GZ36),"")) ->  | HA12: =IF($Q$12=Lists!$U$16,IF(Periods!HA21="","",Periods!HA21),IF($Q$12=Lists!$U$17,IF(Periods!HA36="","",Periods!HA36),"")) ->  | HB12: =IF($Q$12=Lists!$U$16,IF(Periods!HB21="","",Periods!HB21),IF($Q$12=Lists!$U$17,IF(Periods!HB36="","",Periods!HB36),"")) ->  | HC12: =IF($Q$12=Lists!$U$16,IF(Periods!HC21="","",Periods!HC21),IF($Q$12=Lists!$U$17,IF(Periods!HC36="","",Periods!HC36),"")) ->  | HD12: =IF($Q$12=Lists!$U$16,IF(Periods!HD21="","",Periods!HD21),IF($Q$12=Lists!$U$17,IF(Periods!HD36="","",Periods!HD36),"")) ->  | HE12: =IF($Q$12=Lists!$U$16,IF(Periods!HE21="","",Periods!HE21),IF($Q$12=Lists!$U$17,IF(Periods!HE36="","",Periods!HE36),"")) ->  | HF12: =IF($Q$12=Lists!$U$16,IF(Periods!HF21="","",Periods!HF21),IF($Q$12=Lists!$U$17,IF(Periods!HF36="","",Periods!HF36),"")) ->  | HG12: =IF($Q$12=Lists!$U$16,IF(Periods!HG21="","",Periods!HG21),IF($Q$12=Lists!$U$17,IF(Periods!HG36="","",Periods!HG36),"")) ->  | HH12: =IF($Q$12=Lists!$U$16,IF(Periods!HH21="","",Periods!HH21),IF($Q$12=Lists!$U$17,IF(Periods!HH36="","",Periods!HH36),"")) ->  | HI12: =IF($Q$12=Lists!$U$16,IF(Periods!HI21="","",Periods!HI21),IF($Q$12=Lists!$U$17,IF(Periods!HI36="","",Periods!HI36),"")) ->  | HJ12: =IF($Q$12=Lists!$U$16,IF(Periods!HJ21="","",Periods!HJ21),IF($Q$12=Lists!$U$17,IF(Periods!HJ36="","",Periods!HJ36),"")) ->  | HK12: =IF($Q$12=Lists!$U$16,IF(Periods!HK21="","",Periods!HK21),IF($Q$12=Lists!$U$17,IF(Periods!HK36="","",Periods!HK36),"")) -> 
H13: показатель | Q13: значение | X13: итого | AA13: =IF($Q$12=Lists!$U$16,IF(Periods!AA22="","",Periods!AA22),IF($Q$12=Lists!$U$17,IF(Periods!AA37="","",Periods!AA37),"")) ->  | AB13: =IF($Q$12=Lists!$U$16,IF(Periods!AB22="","",Periods!AB22),IF($Q$12=Lists!$U$17,IF(Periods!AB37="","",Periods!AB37),"")) ->  | AC13: =IF($Q$12=Lists!$U$16,IF(Periods!AC22="","",Periods!AC22),IF($Q$12=Lists!$U$17,IF(Periods!AC37="","",Periods!AC37),"")) ->  | AD13: =IF($Q$12=Lists!$U$16,IF(Periods!AD22="","",Periods!AD22),IF($Q$12=Lists!$U$17,IF(Periods!AD37="","",Periods!AD37),"")) ->  | AE13: =IF($Q$12=Lists!$U$16,IF(Periods!AE22="","",Periods!AE22),IF($Q$12=Lists!$U$17,IF(Periods!AE37="","",Periods!AE37),"")) ->  | AF13: =IF($Q$12=Lists!$U$16,IF(Periods!AF22="","",Periods!AF22),IF($Q$12=Lists!$U$17,IF(Periods!AF37="","",Periods!AF37),"")) ->  | AG13: =IF($Q$12=Lists!$U$16,IF(Periods!AG22="","",Periods!AG22),IF($Q$12=Lists!$U$17,IF(Periods!AG37="","",Periods!AG37),"")) ->  | AH13: =IF($Q$12=Lists!$U$16,IF(Periods!AH22="","",Periods!AH22),IF($Q$12=Lists!$U$17,IF(Periods!AH37="","",Periods!AH37),"")) ->  | AI13: =IF($Q$12=Lists!$U$16,IF(Periods!AI22="","",Periods!AI22),IF($Q$12=Lists!$U$17,IF(Periods!AI37="","",Periods!AI37),"")) ->  | AJ13: =IF($Q$12=Lists!$U$16,IF(Periods!AJ22="","",Periods!AJ22),IF($Q$12=Lists!$U$17,IF(Periods!AJ37="","",Periods!AJ37),"")) ->  | AK13: =IF($Q$12=Lists!$U$16,IF(Periods!AK22="","",Periods!AK22),IF($Q$12=Lists!$U$17,IF(Periods!AK37="","",Periods!AK37),"")) ->  | AL13: =IF($Q$12=Lists!$U$16,IF(Periods!AL22="","",Periods!AL22),IF($Q$12=Lists!$U$17,IF(Periods!AL37="","",Periods!AL37),"")) ->  | AM13: =IF($Q$12=Lists!$U$16,IF(Periods!AM22="","",Periods!AM22),IF($Q$12=Lists!$U$17,IF(Periods!AM37="","",Periods!AM37),"")) ->  | AN13: =IF($Q$12=Lists!$U$16,IF(Periods!AN22="","",Periods!AN22),IF($Q$12=Lists!$U$17,IF(Periods!AN37="","",Periods!AN37),"")) ->  | AO13: =IF($Q$12=Lists!$U$16,IF(Periods!AO22="","",Periods!AO22),IF($Q$12=Lists!$U$17,IF(Periods!AO37="","",Periods!AO37),"")) ->  | AP13: =IF($Q$12=Lists!$U$16,IF(Periods!AP22="","",Periods!AP22),IF($Q$12=Lists!$U$17,IF(Periods!AP37="","",Periods!AP37),"")) ->  | AQ13: =IF($Q$12=Lists!$U$16,IF(Periods!AQ22="","",Periods!AQ22),IF($Q$12=Lists!$U$17,IF(Periods!AQ37="","",Periods!AQ37),"")) ->  | AR13: =IF($Q$12=Lists!$U$16,IF(Periods!AR22="","",Periods!AR22),IF($Q$12=Lists!$U$17,IF(Periods!AR37="","",Periods!AR37),"")) ->  | AS13: =IF($Q$12=Lists!$U$16,IF(Periods!AS22="","",Periods!AS22),IF($Q$12=Lists!$U$17,IF(Periods!AS37="","",Periods!AS37),"")) ->  | AT13: =IF($Q$12=Lists!$U$16,IF(Periods!AT22="","",Periods!AT22),IF($Q$12=Lists!$U$17,IF(Periods!AT37="","",Periods!AT37),"")) ->  | AU13: =IF($Q$12=Lists!$U$16,IF(Periods!AU22="","",Periods!AU22),IF($Q$12=Lists!$U$17,IF(Periods!AU37="","",Periods!AU37),"")) ->  | AV13: =IF($Q$12=Lists!$U$16,IF(Periods!AV22="","",Periods!AV22),IF($Q$12=Lists!$U$17,IF(Periods!AV37="","",Periods!AV37),"")) ->  | AW13: =IF($Q$12=Lists!$U$16,IF(Periods!AW22="","",Periods!AW22),IF($Q$12=Lists!$U$17,IF(Periods!AW37="","",Periods!AW37),"")) ->  | AX13: =IF($Q$12=Lists!$U$16,IF(Periods!AX22="","",Periods!AX22),IF($Q$12=Lists!$U$17,IF(Periods!AX37="","",Periods!AX37),"")) ->  | AY13: =IF($Q$12=Lists!$U$16,IF(Periods!AY22="","",Periods!AY22),IF($Q$12=Lists!$U$17,IF(Periods!AY37="","",Periods!AY37),"")) ->  | AZ13: =IF($Q$12=Lists!$U$16,IF(Periods!AZ22="","",Periods!AZ22),IF($Q$12=Lists!$U$17,IF(Periods!AZ37="","",Periods!AZ37),"")) ->  | BA13: =IF($Q$12=Lists!$U$16,IF(Periods!BA22="","",Periods!BA22),IF($Q$12=Lists!$U$17,IF(Periods!BA37="","",Periods!BA37),"")) ->  | BB13: =IF($Q$12=Lists!$U$16,IF(Periods!BB22="","",Periods!BB22),IF($Q$12=Lists!$U$17,IF(Periods!BB37="","",Periods!BB37),"")) ->  | BC13: =IF($Q$12=Lists!$U$16,IF(Periods!BC22="","",Periods!BC22),IF($Q$12=Lists!$U$17,IF(Periods!BC37="","",Periods!BC37),"")) ->  | BD13: =IF($Q$12=Lists!$U$16,IF(Periods!BD22="","",Periods!BD22),IF($Q$12=Lists!$U$17,IF(Periods!BD37="","",Periods!BD37),"")) ->  | BE13: =IF($Q$12=Lists!$U$16,IF(Periods!BE22="","",Periods!BE22),IF($Q$12=Lists!$U$17,IF(Periods!BE37="","",Periods!BE37),"")) ->  | BF13: =IF($Q$12=Lists!$U$16,IF(Periods!BF22="","",Periods!BF22),IF($Q$12=Lists!$U$17,IF(Periods!BF37="","",Periods!BF37),"")) ->  | BG13: =IF($Q$12=Lists!$U$16,IF(Periods!BG22="","",Periods!BG22),IF($Q$12=Lists!$U$17,IF(Periods!BG37="","",Periods!BG37),"")) ->  | BH13: =IF($Q$12=Lists!$U$16,IF(Periods!BH22="","",Periods!BH22),IF($Q$12=Lists!$U$17,IF(Periods!BH37="","",Periods!BH37),"")) ->  | BI13: =IF($Q$12=Lists!$U$16,IF(Periods!BI22="","",Periods!BI22),IF($Q$12=Lists!$U$17,IF(Periods!BI37="","",Periods!BI37),"")) ->  | BJ13: =IF($Q$12=Lists!$U$16,IF(Periods!BJ22="","",Periods!BJ22),IF($Q$12=Lists!$U$17,IF(Periods!BJ37="","",Periods!BJ37),"")) ->  | BK13: =IF($Q$12=Lists!$U$16,IF(Periods!BK22="","",Periods!BK22),IF($Q$12=Lists!$U$17,IF(Periods!BK37="","",Periods!BK37),"")) ->  | BL13: =IF($Q$12=Lists!$U$16,IF(Periods!BL22="","",Periods!BL22),IF($Q$12=Lists!$U$17,IF(Periods!BL37="","",Periods!BL37),"")) ->  | BM13: =IF($Q$12=Lists!$U$16,IF(Periods!BM22="","",Periods!BM22),IF($Q$12=Lists!$U$17,IF(Periods!BM37="","",Periods!BM37),"")) ->  | BN13: =IF($Q$12=Lists!$U$16,IF(Periods!BN22="","",Periods!BN22),IF($Q$12=Lists!$U$17,IF(Periods!BN37="","",Periods!BN37),"")) ->  | BO13: =IF($Q$12=Lists!$U$16,IF(Periods!BO22="","",Periods!BO22),IF($Q$12=Lists!$U$17,IF(Periods!BO37="","",Periods!BO37),"")) ->  | BP13: =IF($Q$12=Lists!$U$16,IF(Periods!BP22="","",Periods!BP22),IF($Q$12=Lists!$U$17,IF(Periods!BP37="","",Periods!BP37),"")) ->  | BQ13: =IF($Q$12=Lists!$U$16,IF(Periods!BQ22="","",Periods!BQ22),IF($Q$12=Lists!$U$17,IF(Periods!BQ37="","",Periods!BQ37),"")) ->  | BR13: =IF($Q$12=Lists!$U$16,IF(Periods!BR22="","",Periods!BR22),IF($Q$12=Lists!$U$17,IF(Periods!BR37="","",Periods!BR37),"")) ->  | BS13: =IF($Q$12=Lists!$U$16,IF(Periods!BS22="","",Periods!BS22),IF($Q$12=Lists!$U$17,IF(Periods!BS37="","",Periods!BS37),"")) ->  | BT13: =IF($Q$12=Lists!$U$16,IF(Periods!BT22="","",Periods!BT22),IF($Q$12=Lists!$U$17,IF(Periods!BT37="","",Periods!BT37),"")) ->  | BU13: =IF($Q$12=Lists!$U$16,IF(Periods!BU22="","",Periods!BU22),IF($Q$12=Lists!$U$17,IF(Periods!BU37="","",Periods!BU37),"")) ->  | BV13: =IF($Q$12=Lists!$U$16,IF(Periods!BV22="","",Periods!BV22),IF($Q$12=Lists!$U$17,IF(Periods!BV37="","",Periods!BV37),"")) ->  | BW13: =IF($Q$12=Lists!$U$16,IF(Periods!BW22="","",Periods!BW22),IF($Q$12=Lists!$U$17,IF(Periods!BW37="","",Periods!BW37),"")) ->  | BX13: =IF($Q$12=Lists!$U$16,IF(Periods!BX22="","",Periods!BX22),IF($Q$12=Lists!$U$17,IF(Periods!BX37="","",Periods!BX37),"")) ->  | BY13: =IF($Q$12=Lists!$U$16,IF(Periods!BY22="","",Periods!BY22),IF($Q$12=Lists!$U$17,IF(Periods!BY37="","",Periods!BY37),"")) ->  | BZ13: =IF($Q$12=Lists!$U$16,IF(Periods!BZ22="","",Periods!BZ22),IF($Q$12=Lists!$U$17,IF(Periods!BZ37="","",Periods!BZ37),"")) ->  | CA13: =IF($Q$12=Lists!$U$16,IF(Periods!CA22="","",Periods!CA22),IF($Q$12=Lists!$U$17,IF(Periods!CA37="","",Periods!CA37),"")) ->  | CB13: =IF($Q$12=Lists!$U$16,IF(Periods!CB22="","",Periods!CB22),IF($Q$12=Lists!$U$17,IF(Periods!CB37="","",Periods!CB37),"")) ->  | CC13: =IF($Q$12=Lists!$U$16,IF(Periods!CC22="","",Periods!CC22),IF($Q$12=Lists!$U$17,IF(Periods!CC37="","",Periods!CC37),"")) ->  | CD13: =IF($Q$12=Lists!$U$16,IF(Periods!CD22="","",Periods!CD22),IF($Q$12=Lists!$U$17,IF(Periods!CD37="","",Periods!CD37),"")) ->  | CE13: =IF($Q$12=Lists!$U$16,IF(Periods!CE22="","",Periods!CE22),IF($Q$12=Lists!$U$17,IF(Periods!CE37="","",Periods!CE37),"")) ->  | CF13: =IF($Q$12=Lists!$U$16,IF(Periods!CF22="","",Periods!CF22),IF($Q$12=Lists!$U$17,IF(Periods!CF37="","",Periods!CF37),"")) ->  | CG13: =IF($Q$12=Lists!$U$16,IF(Periods!CG22="","",Periods!CG22),IF($Q$12=Lists!$U$17,IF(Periods!CG37="","",Periods!CG37),"")) ->  | CH13: =IF($Q$12=Lists!$U$16,IF(Periods!CH22="","",Periods!CH22),IF($Q$12=Lists!$U$17,IF(Periods!CH37="","",Periods!CH37),"")) ->  | CI13: =IF($Q$12=Lists!$U$16,IF(Periods!CI22="","",Periods!CI22),IF($Q$12=Lists!$U$17,IF(Periods!CI37="","",Periods!CI37),"")) ->  | CJ13: =IF($Q$12=Lists!$U$16,IF(Periods!CJ22="","",Periods!CJ22),IF($Q$12=Lists!$U$17,IF(Periods!CJ37="","",Periods!CJ37),"")) ->  | CK13: =IF($Q$12=Lists!$U$16,IF(Periods!CK22="","",Periods!CK22),IF($Q$12=Lists!$U$17,IF(Periods!CK37="","",Periods!CK37),"")) ->  | CL13: =IF($Q$12=Lists!$U$16,IF(Periods!CL22="","",Periods!CL22),IF($Q$12=Lists!$U$17,IF(Periods!CL37="","",Periods!CL37),"")) ->  | CM13: =IF($Q$12=Lists!$U$16,IF(Periods!CM22="","",Periods!CM22),IF($Q$12=Lists!$U$17,IF(Periods!CM37="","",Periods!CM37),"")) ->  | CN13: =IF($Q$12=Lists!$U$16,IF(Periods!CN22="","",Periods!CN22),IF($Q$12=Lists!$U$17,IF(Periods!CN37="","",Periods!CN37),"")) ->  | CO13: =IF($Q$12=Lists!$U$16,IF(Periods!CO22="","",Periods!CO22),IF($Q$12=Lists!$U$17,IF(Periods!CO37="","",Periods!CO37),"")) ->  | CP13: =IF($Q$12=Lists!$U$16,IF(Periods!CP22="","",Periods!CP22),IF($Q$12=Lists!$U$17,IF(Periods!CP37="","",Periods!CP37),"")) ->  | CQ13: =IF($Q$12=Lists!$U$16,IF(Periods!CQ22="","",Periods!CQ22),IF($Q$12=Lists!$U$17,IF(Periods!CQ37="","",Periods!CQ37),"")) ->  | CR13: =IF($Q$12=Lists!$U$16,IF(Periods!CR22="","",Periods!CR22),IF($Q$12=Lists!$U$17,IF(Periods!CR37="","",Periods!CR37),"")) ->  | CS13: =IF($Q$12=Lists!$U$16,IF(Periods!CS22="","",Periods!CS22),IF($Q$12=Lists!$U$17,IF(Periods!CS37="","",Periods!CS37),"")) ->  | CT13: =IF($Q$12=Lists!$U$16,IF(Periods!CT22="","",Periods!CT22),IF($Q$12=Lists!$U$17,IF(Periods!CT37="","",Periods!CT37),"")) ->  | CU13: =IF($Q$12=Lists!$U$16,IF(Periods!CU22="","",Periods!CU22),IF($Q$12=Lists!$U$17,IF(Periods!CU37="","",Periods!CU37),"")) ->  | CV13: =IF($Q$12=Lists!$U$16,IF(Periods!CV22="","",Periods!CV22),IF($Q$12=Lists!$U$17,IF(Periods!CV37="","",Periods!CV37),"")) ->  | CW13: =IF($Q$12=Lists!$U$16,IF(Periods!CW22="","",Periods!CW22),IF($Q$12=Lists!$U$17,IF(Periods!CW37="","",Periods!CW37),"")) ->  | CX13: =IF($Q$12=Lists!$U$16,IF(Periods!CX22="","",Periods!CX22),IF($Q$12=Lists!$U$17,IF(Periods!CX37="","",Periods!CX37),"")) ->  | CY13: =IF($Q$12=Lists!$U$16,IF(Periods!CY22="","",Periods!CY22),IF($Q$12=Lists!$U$17,IF(Periods!CY37="","",Periods!CY37),"")) ->  | CZ13: =IF($Q$12=Lists!$U$16,IF(Periods!CZ22="","",Periods!CZ22),IF($Q$12=Lists!$U$17,IF(Periods!CZ37="","",Periods!CZ37),"")) ->  | DA13: =IF($Q$12=Lists!$U$16,IF(Periods!DA22="","",Periods!DA22),IF($Q$12=Lists!$U$17,IF(Periods!DA37="","",Periods!DA37),"")) ->  | DB13: =IF($Q$12=Lists!$U$16,IF(Periods!DB22="","",Periods!DB22),IF($Q$12=Lists!$U$17,IF(Periods!DB37="","",Periods!DB37),"")) ->  | DC13: =IF($Q$12=Lists!$U$16,IF(Periods!DC22="","",Periods!DC22),IF($Q$12=Lists!$U$17,IF(Periods!DC37="","",Periods!DC37),"")) ->  | DD13: =IF($Q$12=Lists!$U$16,IF(Periods!DD22="","",Periods!DD22),IF($Q$12=Lists!$U$17,IF(Periods!DD37="","",Periods!DD37),"")) ->  | DE13: =IF($Q$12=Lists!$U$16,IF(Periods!DE22="","",Periods!DE22),IF($Q$12=Lists!$U$17,IF(Periods!DE37="","",Periods!DE37),"")) ->  | DF13: =IF($Q$12=Lists!$U$16,IF(Periods!DF22="","",Periods!DF22),IF($Q$12=Lists!$U$17,IF(Periods!DF37="","",Periods!DF37),"")) ->  | DG13: =IF($Q$12=Lists!$U$16,IF(Periods!DG22="","",Periods!DG22),IF($Q$12=Lists!$U$17,IF(Periods!DG37="","",Periods!DG37),"")) ->  | DH13: =IF($Q$12=Lists!$U$16,IF(Periods!DH22="","",Periods!DH22),IF($Q$12=Lists!$U$17,IF(Periods!DH37="","",Periods!DH37),"")) ->  | DI13: =IF($Q$12=Lists!$U$16,IF(Periods!DI22="","",Periods!DI22),IF($Q$12=Lists!$U$17,IF(Periods!DI37="","",Periods!DI37),"")) ->  | DJ13: =IF($Q$12=Lists!$U$16,IF(Periods!DJ22="","",Periods!DJ22),IF($Q$12=Lists!$U$17,IF(Periods!DJ37="","",Periods!DJ37),"")) ->  | DK13: =IF($Q$12=Lists!$U$16,IF(Periods!DK22="","",Periods!DK22),IF($Q$12=Lists!$U$17,IF(Periods!DK37="","",Periods!DK37),"")) ->  | DL13: =IF($Q$12=Lists!$U$16,IF(Periods!DL22="","",Periods!DL22),IF($Q$12=Lists!$U$17,IF(Periods!DL37="","",Periods!DL37),"")) ->  | DM13: =IF($Q$12=Lists!$U$16,IF(Periods!DM22="","",Periods!DM22),IF($Q$12=Lists!$U$17,IF(Periods!DM37="","",Periods!DM37),"")) ->  | DN13: =IF($Q$12=Lists!$U$16,IF(Periods!DN22="","",Periods!DN22),IF($Q$12=Lists!$U$17,IF(Periods!DN37="","",Periods!DN37),"")) ->  | DO13: =IF($Q$12=Lists!$U$16,IF(Periods!DO22="","",Periods!DO22),IF($Q$12=Lists!$U$17,IF(Periods!DO37="","",Periods!DO37),"")) ->  | DP13: =IF($Q$12=Lists!$U$16,IF(Periods!DP22="","",Periods!DP22),IF($Q$12=Lists!$U$17,IF(Periods!DP37="","",Periods!DP37),"")) ->  | DQ13: =IF($Q$12=Lists!$U$16,IF(Periods!DQ22="","",Periods!DQ22),IF($Q$12=Lists!$U$17,IF(Periods!DQ37="","",Periods!DQ37),"")) ->  | DR13: =IF($Q$12=Lists!$U$16,IF(Periods!DR22="","",Periods!DR22),IF($Q$12=Lists!$U$17,IF(Periods!DR37="","",Periods!DR37),"")) ->  | DS13: =IF($Q$12=Lists!$U$16,IF(Periods!DS22="","",Periods!DS22),IF($Q$12=Lists!$U$17,IF(Periods!DS37="","",Periods!DS37),"")) ->  | DT13: =IF($Q$12=Lists!$U$16,IF(Periods!DT22="","",Periods!DT22),IF($Q$12=Lists!$U$17,IF(Periods!DT37="","",Periods!DT37),"")) ->  | DU13: =IF($Q$12=Lists!$U$16,IF(Periods!DU22="","",Periods!DU22),IF($Q$12=Lists!$U$17,IF(Periods!DU37="","",Periods!DU37),"")) ->  | DV13: =IF($Q$12=Lists!$U$16,IF(Periods!DV22="","",Periods!DV22),IF($Q$12=Lists!$U$17,IF(Periods!DV37="","",Periods!DV37),"")) ->  | DW13: =IF($Q$12=Lists!$U$16,IF(Periods!DW22="","",Periods!DW22),IF($Q$12=Lists!$U$17,IF(Periods!DW37="","",Periods!DW37),"")) ->  | DX13: =IF($Q$12=Lists!$U$16,IF(Periods!DX22="","",Periods!DX22),IF($Q$12=Lists!$U$17,IF(Periods!DX37="","",Periods!DX37),"")) ->  | DY13: =IF($Q$12=Lists!$U$16,IF(Periods!DY22="","",Periods!DY22),IF($Q$12=Lists!$U$17,IF(Periods!DY37="","",Periods!DY37),"")) ->  | DZ13: =IF($Q$12=Lists!$U$16,IF(Periods!DZ22="","",Periods!DZ22),IF($Q$12=Lists!$U$17,IF(Periods!DZ37="","",Periods!DZ37),"")) ->  | EA13: =IF($Q$12=Lists!$U$16,IF(Periods!EA22="","",Periods!EA22),IF($Q$12=Lists!$U$17,IF(Periods!EA37="","",Periods!EA37),"")) ->  | EB13: =IF($Q$12=Lists!$U$16,IF(Periods!EB22="","",Periods!EB22),IF($Q$12=Lists!$U$17,IF(Periods!EB37="","",Periods!EB37),"")) ->  | EC13: =IF($Q$12=Lists!$U$16,IF(Periods!EC22="","",Periods!EC22),IF($Q$12=Lists!$U$17,IF(Periods!EC37="","",Periods!EC37),"")) ->  | ED13: =IF($Q$12=Lists!$U$16,IF(Periods!ED22="","",Periods!ED22),IF($Q$12=Lists!$U$17,IF(Periods!ED37="","",Periods!ED37),"")) ->  | EE13: =IF($Q$12=Lists!$U$16,IF(Periods!EE22="","",Periods!EE22),IF($Q$12=Lists!$U$17,IF(Periods!EE37="","",Periods!EE37),"")) ->  | EF13: =IF($Q$12=Lists!$U$16,IF(Periods!EF22="","",Periods!EF22),IF($Q$12=Lists!$U$17,IF(Periods!EF37="","",Periods!EF37),"")) ->  | EG13: =IF($Q$12=Lists!$U$16,IF(Periods!EG22="","",Periods!EG22),IF($Q$12=Lists!$U$17,IF(Periods!EG37="","",Periods!EG37),"")) ->  | EH13: =IF($Q$12=Lists!$U$16,IF(Periods!EH22="","",Periods!EH22),IF($Q$12=Lists!$U$17,IF(Periods!EH37="","",Periods!EH37),"")) ->  | EI13: =IF($Q$12=Lists!$U$16,IF(Periods!EI22="","",Periods!EI22),IF($Q$12=Lists!$U$17,IF(Periods!EI37="","",Periods!EI37),"")) ->  | EJ13: =IF($Q$12=Lists!$U$16,IF(Periods!EJ22="","",Periods!EJ22),IF($Q$12=Lists!$U$17,IF(Periods!EJ37="","",Periods!EJ37),"")) ->  | EK13: =IF($Q$12=Lists!$U$16,IF(Periods!EK22="","",Periods!EK22),IF($Q$12=Lists!$U$17,IF(Periods!EK37="","",Periods!EK37),"")) ->  | EL13: =IF($Q$12=Lists!$U$16,IF(Periods!EL22="","",Periods!EL22),IF($Q$12=Lists!$U$17,IF(Periods!EL37="","",Periods!EL37),"")) ->  | EM13: =IF($Q$12=Lists!$U$16,IF(Periods!EM22="","",Periods!EM22),IF($Q$12=Lists!$U$17,IF(Periods!EM37="","",Periods!EM37),"")) ->  | EN13: =IF($Q$12=Lists!$U$16,IF(Periods!EN22="","",Periods!EN22),IF($Q$12=Lists!$U$17,IF(Periods!EN37="","",Periods!EN37),"")) ->  | EO13: =IF($Q$12=Lists!$U$16,IF(Periods!EO22="","",Periods!EO22),IF($Q$12=Lists!$U$17,IF(Periods!EO37="","",Periods!EO37),"")) ->  | EP13: =IF($Q$12=Lists!$U$16,IF(Periods!EP22="","",Periods!EP22),IF($Q$12=Lists!$U$17,IF(Periods!EP37="","",Periods!EP37),"")) ->  | EQ13: =IF($Q$12=Lists!$U$16,IF(Periods!EQ22="","",Periods!EQ22),IF($Q$12=Lists!$U$17,IF(Periods!EQ37="","",Periods!EQ37),"")) ->  | ER13: =IF($Q$12=Lists!$U$16,IF(Periods!ER22="","",Periods!ER22),IF($Q$12=Lists!$U$17,IF(Periods!ER37="","",Periods!ER37),"")) ->  | ES13: =IF($Q$12=Lists!$U$16,IF(Periods!ES22="","",Periods!ES22),IF($Q$12=Lists!$U$17,IF(Periods!ES37="","",Periods!ES37),"")) ->  | ET13: =IF($Q$12=Lists!$U$16,IF(Periods!ET22="","",Periods!ET22),IF($Q$12=Lists!$U$17,IF(Periods!ET37="","",Periods!ET37),"")) ->  | EU13: =IF($Q$12=Lists!$U$16,IF(Periods!EU22="","",Periods!EU22),IF($Q$12=Lists!$U$17,IF(Periods!EU37="","",Periods!EU37),"")) ->  | EV13: =IF($Q$12=Lists!$U$16,IF(Periods!EV22="","",Periods!EV22),IF($Q$12=Lists!$U$17,IF(Periods!EV37="","",Periods!EV37),"")) ->  | EW13: =IF($Q$12=Lists!$U$16,IF(Periods!EW22="","",Periods!EW22),IF($Q$12=Lists!$U$17,IF(Periods!EW37="","",Periods!EW37),"")) ->  | EX13: =IF($Q$12=Lists!$U$16,IF(Periods!EX22="","",Periods!EX22),IF($Q$12=Lists!$U$17,IF(Periods!EX37="","",Periods!EX37),"")) ->  | EY13: =IF($Q$12=Lists!$U$16,IF(Periods!EY22="","",Periods!EY22),IF($Q$12=Lists!$U$17,IF(Periods!EY37="","",Periods!EY37),"")) ->  | EZ13: =IF($Q$12=Lists!$U$16,IF(Periods!EZ22="","",Periods!EZ22),IF($Q$12=Lists!$U$17,IF(Periods!EZ37="","",Periods!EZ37),"")) ->  | FA13: =IF($Q$12=Lists!$U$16,IF(Periods!FA22="","",Periods!FA22),IF($Q$12=Lists!$U$17,IF(Periods!FA37="","",Periods!FA37),"")) ->  | FB13: =IF($Q$12=Lists!$U$16,IF(Periods!FB22="","",Periods!FB22),IF($Q$12=Lists!$U$17,IF(Periods!FB37="","",Periods!FB37),"")) ->  | FC13: =IF($Q$12=Lists!$U$16,IF(Periods!FC22="","",Periods!FC22),IF($Q$12=Lists!$U$17,IF(Periods!FC37="","",Periods!FC37),"")) ->  | FD13: =IF($Q$12=Lists!$U$16,IF(Periods!FD22="","",Periods!FD22),IF($Q$12=Lists!$U$17,IF(Periods!FD37="","",Periods!FD37),"")) ->  | FE13: =IF($Q$12=Lists!$U$16,IF(Periods!FE22="","",Periods!FE22),IF($Q$12=Lists!$U$17,IF(Periods!FE37="","",Periods!FE37),"")) ->  | FF13: =IF($Q$12=Lists!$U$16,IF(Periods!FF22="","",Periods!FF22),IF($Q$12=Lists!$U$17,IF(Periods!FF37="","",Periods!FF37),"")) ->  | FG13: =IF($Q$12=Lists!$U$16,IF(Periods!FG22="","",Periods!FG22),IF($Q$12=Lists!$U$17,IF(Periods!FG37="","",Periods!FG37),"")) ->  | FH13: =IF($Q$12=Lists!$U$16,IF(Periods!FH22="","",Periods!FH22),IF($Q$12=Lists!$U$17,IF(Periods!FH37="","",Periods!FH37),"")) ->  | FI13: =IF($Q$12=Lists!$U$16,IF(Periods!FI22="","",Periods!FI22),IF($Q$12=Lists!$U$17,IF(Periods!FI37="","",Periods!FI37),"")) ->  | FJ13: =IF($Q$12=Lists!$U$16,IF(Periods!FJ22="","",Periods!FJ22),IF($Q$12=Lists!$U$17,IF(Periods!FJ37="","",Periods!FJ37),"")) ->  | FK13: =IF($Q$12=Lists!$U$16,IF(Periods!FK22="","",Periods!FK22),IF($Q$12=Lists!$U$17,IF(Periods!FK37="","",Periods!FK37),"")) ->  | FL13: =IF($Q$12=Lists!$U$16,IF(Periods!FL22="","",Periods!FL22),IF($Q$12=Lists!$U$17,IF(Periods!FL37="","",Periods!FL37),"")) ->  | FM13: =IF($Q$12=Lists!$U$16,IF(Periods!FM22="","",Periods!FM22),IF($Q$12=Lists!$U$17,IF(Periods!FM37="","",Periods!FM37),"")) ->  | FN13: =IF($Q$12=Lists!$U$16,IF(Periods!FN22="","",Periods!FN22),IF($Q$12=Lists!$U$17,IF(Periods!FN37="","",Periods!FN37),"")) ->  | FO13: =IF($Q$12=Lists!$U$16,IF(Periods!FO22="","",Periods!FO22),IF($Q$12=Lists!$U$17,IF(Periods!FO37="","",Periods!FO37),"")) ->  | FP13: =IF($Q$12=Lists!$U$16,IF(Periods!FP22="","",Periods!FP22),IF($Q$12=Lists!$U$17,IF(Periods!FP37="","",Periods!FP37),"")) ->  | FQ13: =IF($Q$12=Lists!$U$16,IF(Periods!FQ22="","",Periods!FQ22),IF($Q$12=Lists!$U$17,IF(Periods!FQ37="","",Periods!FQ37),"")) ->  | FR13: =IF($Q$12=Lists!$U$16,IF(Periods!FR22="","",Periods!FR22),IF($Q$12=Lists!$U$17,IF(Periods!FR37="","",Periods!FR37),"")) ->  | FS13: =IF($Q$12=Lists!$U$16,IF(Periods!FS22="","",Periods!FS22),IF($Q$12=Lists!$U$17,IF(Periods!FS37="","",Periods!FS37),"")) ->  | FT13: =IF($Q$12=Lists!$U$16,IF(Periods!FT22="","",Periods!FT22),IF($Q$12=Lists!$U$17,IF(Periods!FT37="","",Periods!FT37),"")) ->  | FU13: =IF($Q$12=Lists!$U$16,IF(Periods!FU22="","",Periods!FU22),IF($Q$12=Lists!$U$17,IF(Periods!FU37="","",Periods!FU37),"")) ->  | FV13: =IF($Q$12=Lists!$U$16,IF(Periods!FV22="","",Periods!FV22),IF($Q$12=Lists!$U$17,IF(Periods!FV37="","",Periods!FV37),"")) ->  | FW13: =IF($Q$12=Lists!$U$16,IF(Periods!FW22="","",Periods!FW22),IF($Q$12=Lists!$U$17,IF(Periods!FW37="","",Periods!FW37),"")) ->  | FX13: =IF($Q$12=Lists!$U$16,IF(Periods!FX22="","",Periods!FX22),IF($Q$12=Lists!$U$17,IF(Periods!FX37="","",Periods!FX37),"")) ->  | FY13: =IF($Q$12=Lists!$U$16,IF(Periods!FY22="","",Periods!FY22),IF($Q$12=Lists!$U$17,IF(Periods!FY37="","",Periods!FY37),"")) ->  | FZ13: =IF($Q$12=Lists!$U$16,IF(Periods!FZ22="","",Periods!FZ22),IF($Q$12=Lists!$U$17,IF(Periods!FZ37="","",Periods!FZ37),"")) ->  | GA13: =IF($Q$12=Lists!$U$16,IF(Periods!GA22="","",Periods!GA22),IF($Q$12=Lists!$U$17,IF(Periods!GA37="","",Periods!GA37),"")) ->  | GB13: =IF($Q$12=Lists!$U$16,IF(Periods!GB22="","",Periods!GB22),IF($Q$12=Lists!$U$17,IF(Periods!GB37="","",Periods!GB37),"")) ->  | GC13: =IF($Q$12=Lists!$U$16,IF(Periods!GC22="","",Periods!GC22),IF($Q$12=Lists!$U$17,IF(Periods!GC37="","",Periods!GC37),"")) ->  | GD13: =IF($Q$12=Lists!$U$16,IF(Periods!GD22="","",Periods!GD22),IF($Q$12=Lists!$U$17,IF(Periods!GD37="","",Periods!GD37),"")) ->  | GE13: =IF($Q$12=Lists!$U$16,IF(Periods!GE22="","",Periods!GE22),IF($Q$12=Lists!$U$17,IF(Periods!GE37="","",Periods!GE37),"")) ->  | GF13: =IF($Q$12=Lists!$U$16,IF(Periods!GF22="","",Periods!GF22),IF($Q$12=Lists!$U$17,IF(Periods!GF37="","",Periods!GF37),"")) ->  | GG13: =IF($Q$12=Lists!$U$16,IF(Periods!GG22="","",Periods!GG22),IF($Q$12=Lists!$U$17,IF(Periods!GG37="","",Periods!GG37),"")) ->  | GH13: =IF($Q$12=Lists!$U$16,IF(Periods!GH22="","",Periods!GH22),IF($Q$12=Lists!$U$17,IF(Periods!GH37="","",Periods!GH37),"")) ->  | GI13: =IF($Q$12=Lists!$U$16,IF(Periods!GI22="","",Periods!GI22),IF($Q$12=Lists!$U$17,IF(Periods!GI37="","",Periods!GI37),"")) ->  | GJ13: =IF($Q$12=Lists!$U$16,IF(Periods!GJ22="","",Periods!GJ22),IF($Q$12=Lists!$U$17,IF(Periods!GJ37="","",Periods!GJ37),"")) ->  | GK13: =IF($Q$12=Lists!$U$16,IF(Periods!GK22="","",Periods!GK22),IF($Q$12=Lists!$U$17,IF(Periods!GK37="","",Periods!GK37),"")) ->  | GL13: =IF($Q$12=Lists!$U$16,IF(Periods!GL22="","",Periods!GL22),IF($Q$12=Lists!$U$17,IF(Periods!GL37="","",Periods!GL37),"")) ->  | GM13: =IF($Q$12=Lists!$U$16,IF(Periods!GM22="","",Periods!GM22),IF($Q$12=Lists!$U$17,IF(Periods!GM37="","",Periods!GM37),"")) ->  | GN13: =IF($Q$12=Lists!$U$16,IF(Periods!GN22="","",Periods!GN22),IF($Q$12=Lists!$U$17,IF(Periods!GN37="","",Periods!GN37),"")) ->  | GO13: =IF($Q$12=Lists!$U$16,IF(Periods!GO22="","",Periods!GO22),IF($Q$12=Lists!$U$17,IF(Periods!GO37="","",Periods!GO37),"")) ->  | GP13: =IF($Q$12=Lists!$U$16,IF(Periods!GP22="","",Periods!GP22),IF($Q$12=Lists!$U$17,IF(Periods!GP37="","",Periods!GP37),"")) ->  | GQ13: =IF($Q$12=Lists!$U$16,IF(Periods!GQ22="","",Periods!GQ22),IF($Q$12=Lists!$U$17,IF(Periods!GQ37="","",Periods!GQ37),"")) ->  | GR13: =IF($Q$12=Lists!$U$16,IF(Periods!GR22="","",Periods!GR22),IF($Q$12=Lists!$U$17,IF(Periods!GR37="","",Periods!GR37),"")) ->  | GS13: =IF($Q$12=Lists!$U$16,IF(Periods!GS22="","",Periods!GS22),IF($Q$12=Lists!$U$17,IF(Periods!GS37="","",Periods!GS37),"")) ->  | GT13: =IF($Q$12=Lists!$U$16,IF(Periods!GT22="","",Periods!GT22),IF($Q$12=Lists!$U$17,IF(Periods!GT37="","",Periods!GT37),"")) ->  | GU13: =IF($Q$12=Lists!$U$16,IF(Periods!GU22="","",Periods!GU22),IF($Q$12=Lists!$U$17,IF(Periods!GU37="","",Periods!GU37),"")) ->  | GV13: =IF($Q$12=Lists!$U$16,IF(Periods!GV22="","",Periods!GV22),IF($Q$12=Lists!$U$17,IF(Periods!GV37="","",Periods!GV37),"")) ->  | GW13: =IF($Q$12=Lists!$U$16,IF(Periods!GW22="","",Periods!GW22),IF($Q$12=Lists!$U$17,IF(Periods!GW37="","",Periods!GW37),"")) ->  | GX13: =IF($Q$12=Lists!$U$16,IF(Periods!GX22="","",Periods!GX22),IF($Q$12=Lists!$U$17,IF(Periods!GX37="","",Periods!GX37),"")) ->  | GY13: =IF($Q$12=Lists!$U$16,IF(Periods!GY22="","",Periods!GY22),IF($Q$12=Lists!$U$17,IF(Periods!GY37="","",Periods!GY37),"")) ->  | GZ13: =IF($Q$12=Lists!$U$16,IF(Periods!GZ22="","",Periods!GZ22),IF($Q$12=Lists!$U$17,IF(Periods!GZ37="","",Periods!GZ37),"")) ->  | HA13: =IF($Q$12=Lists!$U$16,IF(Periods!HA22="","",Periods!HA22),IF($Q$12=Lists!$U$17,IF(Periods!HA37="","",Periods!HA37),"")) ->  | HB13: =IF($Q$12=Lists!$U$16,IF(Periods!HB22="","",Periods!HB22),IF($Q$12=Lists!$U$17,IF(Periods!HB37="","",Periods!HB37),"")) ->  | HC13: =IF($Q$12=Lists!$U$16,IF(Periods!HC22="","",Periods!HC22),IF($Q$12=Lists!$U$17,IF(Periods!HC37="","",Periods!HC37),"")) ->  | HD13: =IF($Q$12=Lists!$U$16,IF(Periods!HD22="","",Periods!HD22),IF($Q$12=Lists!$U$17,IF(Periods!HD37="","",Periods!HD37),"")) ->  | HE13: =IF($Q$12=Lists!$U$16,IF(Periods!HE22="","",Periods!HE22),IF($Q$12=Lists!$U$17,IF(Periods!HE37="","",Periods!HE37),"")) ->  | HF13: =IF($Q$12=Lists!$U$16,IF(Periods!HF22="","",Periods!HF22),IF($Q$12=Lists!$U$17,IF(Periods!HF37="","",Periods!HF37),"")) ->  | HG13: =IF($Q$12=Lists!$U$16,IF(Periods!HG22="","",Periods!HG22),IF($Q$12=Lists!$U$17,IF(Periods!HG37="","",Periods!HG37),"")) ->  | HH13: =IF($Q$12=Lists!$U$16,IF(Periods!HH22="","",Periods!HH22),IF($Q$12=Lists!$U$17,IF(Periods!HH37="","",Periods!HH37),"")) ->  | HI13: =IF($Q$12=Lists!$U$16,IF(Periods!HI22="","",Periods!HI22),IF($Q$12=Lists!$U$17,IF(Periods!HI37="","",Periods!HI37),"")) ->  | HJ13: =IF($Q$12=Lists!$U$16,IF(Periods!HJ22="","",Periods!HJ22),IF($Q$12=Lists!$U$17,IF(Periods!HJ37="","",Periods!HJ37),"")) ->  | HK13: =IF($Q$12=Lists!$U$16,IF(Periods!HK22="","",Periods!HK22),IF($Q$12=Lists!$U$17,IF(Periods!HK37="","",Periods!HK37),"")) -> 
D14: =INDIRECT("Cntrl!M17") -> 0 | E14: =SUM($F14:$HM14) -> 0 | F14: =IFERROR(_xlfn.SHEET($A$1)-SUMIFS(Cntrl!O$15:O$100000,Cntrl!I$15:I$100000,$F$11),1) -> 0 | G14: =SUM(G$15:G$100000) -> 0 | S14: =SUM(S$15:S$100000) -> 0
A15: =ROW() -> 15 | H15: разработка финмоделей: https://mngmnt.ru/
A16: =ROW() -> 16 | G16: =IF($R16="^",IF(COUNTIF(Lists!$13:$13,H16)=1,0,1),0) -> 0 | H16: =Lists!$I$13 -> минимальный период расчетов | P16: * | R16: ^ | S16: =IF(G16<>0,1,IF(OR($Q16="",$Q16=0),0,IF($R16="^",IF(COUNTIF(INDIRECT(INDEX(Lists!$15:$15,SUMIFS(Lists!$1:$1,Lists!$13:$13,$H16))),$Q16)=1,0,1),0))) -> 0 | Y16: =START!$K$133 -> номер периода модели: | AA16: =MAX($Z16:Z16)+1 -> 1 | AB16: =MAX($Z16:AA16)+1 -> 2 | AC16: =MAX($Z16:AB16)+1 -> 3 | AD16: =MAX($Z16:AC16)+1 -> 4 | AE16: =MAX($Z16:AD16)+1 -> 5 | AF16: =MAX($Z16:AE16)+1 -> 6 | AG16: =MAX($Z16:AF16)+1 -> 7 | AH16: =MAX($Z16:AG16)+1 -> 8 | AI16: =MAX($Z16:AH16)+1 -> 9 | AJ16: =MAX($Z16:AI16)+1 -> 10 | AK16: =MAX($Z16:AJ16)+1 -> 11 | AL16: =MAX($Z16:AK16)+1 -> 12 | AM16: =MAX($Z16:AL16)+1 -> 13 | AN16: =MAX($Z16:AM16)+1 -> 14 | AO16: =MAX($Z16:AN16)+1 -> 15 | AP16: =MAX($Z16:AO16)+1 -> 16 | AQ16: =MAX($Z16:AP16)+1 -> 17 | AR16: =MAX($Z16:AQ16)+1 -> 18 | AS16: =MAX($Z16:AR16)+1 -> 19 | AT16: =MAX($Z16:AS16)+1 -> 20 | AU16: =MAX($Z16:AT16)+1 -> 21 | AV16: =MAX($Z16:AU16)+1 -> 22 | AW16: =MAX($Z16:AV16)+1 -> 23 | AX16: =MAX($Z16:AW16)+1 -> 24 | AY16: =MAX($Z16:AX16)+1 -> 25 | AZ16: =MAX($Z16:AY16)+1 -> 26 | BA16: =MAX($Z16:AZ16)+1 -> 27 | BB16: =MAX($Z16:BA16)+1 -> 28 | BC16: =MAX($Z16:BB16)+1 -> 29 | BD16: =MAX($Z16:BC16)+1 -> 30 | BE16: =MAX($Z16:BD16)+1 -> 31 | BF16: =MAX($Z16:BE16)+1 -> 32 | BG16: =MAX($Z16:BF16)+1 -> 33 | BH16: =MAX($Z16:BG16)+1 -> 34 | BI16: =MAX($Z16:BH16)+1 -> 35 | BJ16: =MAX($Z16:BI16)+1 -> 36 | BK16: =MAX($Z16:BJ16)+1 -> 37 | BL16: =MAX($Z16:BK16)+1 -> 38 | BM16: =MAX($Z16:BL16)+1 -> 39 | BN16: =MAX($Z16:BM16)+1 -> 40 | BO16: =MAX($Z16:BN16)+1 -> 41 | BP16: =MAX($Z16:BO16)+1 -> 42 | BQ16: =MAX($Z16:BP16)+1 -> 43 | BR16: =MAX($Z16:BQ16)+1 -> 44 | BS16: =MAX($Z16:BR16)+1 -> 45 | BT16: =MAX($Z16:BS16)+1 -> 46 | BU16: =MAX($Z16:BT16)+1 -> 47 | BV16: =MAX($Z16:BU16)+1 -> 48 | BW16: =MAX($Z16:BV16)+1 -> 49 | BX16: =MAX($Z16:BW16)+1 -> 50 | BY16: =MAX($Z16:BX16)+1 -> 51 | BZ16: =MAX($Z16:BY16)+1 -> 52 | CA16: =MAX($Z16:BZ16)+1 -> 53 | CB16: =MAX($Z16:CA16)+1 -> 54 | CC16: =MAX($Z16:CB16)+1 -> 55 | CD16: =MAX($Z16:CC16)+1 -> 56 | CE16: =MAX($Z16:CD16)+1 -> 57 | CF16: =MAX($Z16:CE16)+1 -> 58 | CG16: =MAX($Z16:CF16)+1 -> 59 | CH16: =MAX($Z16:CG16)+1 -> 60 | CI16: =MAX($Z16:CH16)+1 -> 61 | CJ16: =MAX($Z16:CI16)+1 -> 62 | CK16: =MAX($Z16:CJ16)+1 -> 63 | CL16: =MAX($Z16:CK16)+1 -> 64 | CM16: =MAX($Z16:CL16)+1 -> 65 | CN16: =MAX($Z16:CM16)+1 -> 66 | CO16: =MAX($Z16:CN16)+1 -> 67 | CP16: =MAX($Z16:CO16)+1 -> 68 | CQ16: =MAX($Z16:CP16)+1 -> 69 | CR16: =MAX($Z16:CQ16)+1 -> 70 | CS16: =MAX($Z16:CR16)+1 -> 71 | CT16: =MAX($Z16:CS16)+1 -> 72 | CU16: =MAX($Z16:CT16)+1 -> 73 | CV16: =MAX($Z16:CU16)+1 -> 74 | CW16: =MAX($Z16:CV16)+1 -> 75 | CX16: =MAX($Z16:CW16)+1 -> 76 | CY16: =MAX($Z16:CX16)+1 -> 77 | CZ16: =MAX($Z16:CY16)+1 -> 78 | DA16: =MAX($Z16:CZ16)+1 -> 79 | DB16: =MAX($Z16:DA16)+1 -> 80 | DC16: =MAX($Z16:DB16)+1 -> 81 | DD16: =MAX($Z16:DC16)+1 -> 82 | DE16: =MAX($Z16:DD16)+1 -> 83 | DF16: =MAX($Z16:DE16)+1 -> 84 | DG16: =MAX($Z16:DF16)+1 -> 85 | DH16: =MAX($Z16:DG16)+1 -> 86 | DI16: =MAX($Z16:DH16)+1 -> 87 | DJ16: =MAX($Z16:DI16)+1 -> 88 | DK16: =MAX($Z16:DJ16)+1 -> 89 | DL16: =MAX($Z16:DK16)+1 -> 90 | DM16: =MAX($Z16:DL16)+1 -> 91 | DN16: =MAX($Z16:DM16)+1 -> 92 | DO16: =MAX($Z16:DN16)+1 -> 93 | DP16: =MAX($Z16:DO16)+1 -> 94 | DQ16: =MAX($Z16:DP16)+1 -> 95 | DR16: =MAX($Z16:DQ16)+1 -> 96 | DS16: =MAX($Z16:DR16)+1 -> 97 | DT16: =MAX($Z16:DS16)+1 -> 98 | DU16: =MAX($Z16:DT16)+1 -> 99 | DV16: =MAX($Z16:DU16)+1 -> 100 | DW16: =MAX($Z16:DV16)+1 -> 101 | DX16: =MAX($Z16:DW16)+1 -> 102 | DY16: =MAX($Z16:DX16)+1 -> 103 | DZ16: =MAX($Z16:DY16)+1 -> 104 | EA16: =MAX($Z16:DZ16)+1 -> 105 | EB16: =MAX($Z16:EA16)+1 -> 106 | EC16: =MAX($Z16:EB16)+1 -> 107 | ED16: =MAX($Z16:EC16)+1 -> 108 | EE16: =MAX($Z16:ED16)+1 -> 109 | EF16: =MAX($Z16:EE16)+1 -> 110 | EG16: =MAX($Z16:EF16)+1 -> 111 | EH16: =MAX($Z16:EG16)+1 -> 112 | EI16: =MAX($Z16:EH16)+1 -> 113 | EJ16: =MAX($Z16:EI16)+1 -> 114 | EK16: =MAX($Z16:EJ16)+1 -> 115 | EL16: =MAX($Z16:EK16)+1 -> 116 | EM16: =MAX($Z16:EL16)+1 -> 117 | EN16: =MAX($Z16:EM16)+1 -> 118 | EO16: =MAX($Z16:EN16)+1 -> 119 | EP16: =MAX($Z16:EO16)+1 -> 120 | EQ16: =MAX($Z16:EP16)+1 -> 121 | ER16: =MAX($Z16:EQ16)+1 -> 122 | ES16: =MAX($Z16:ER16)+1 -> 123 | ET16: =MAX($Z16:ES16)+1 -> 124 | EU16: =MAX($Z16:ET16)+1 -> 125 | EV16: =MAX($Z16:EU16)+1 -> 126 | EW16: =MAX($Z16:EV16)+1 -> 127 | EX16: =MAX($Z16:EW16)+1 -> 128 | EY16: =MAX($Z16:EX16)+1 -> 129 | EZ16: =MAX($Z16:EY16)+1 -> 130 | FA16: =MAX($Z16:EZ16)+1 -> 131 | FB16: =MAX($Z16:FA16)+1 -> 132 | FC16: =MAX($Z16:FB16)+1 -> 133 | FD16: =MAX($Z16:FC16)+1 -> 134 | FE16: =MAX($Z16:FD16)+1 -> 135 | FF16: =MAX($Z16:FE16)+1 -> 136 | FG16: =MAX($Z16:FF16)+1 -> 137 | FH16: =MAX($Z16:FG16)+1 -> 138 | FI16: =MAX($Z16:FH16)+1 -> 139 | FJ16: =MAX($Z16:FI16)+1 -> 140 | FK16: =MAX($Z16:FJ16)+1 -> 141 | FL16: =MAX($Z16:FK16)+1 -> 142 | FM16: =MAX($Z16:FL16)+1 -> 143 | FN16: =MAX($Z16:FM16)+1 -> 144 | FO16: =MAX($Z16:FN16)+1 -> 145 | FP16: =MAX($Z16:FO16)+1 -> 146 | FQ16: =MAX($Z16:FP16)+1 -> 147 | FR16: =MAX($Z16:FQ16)+1 -> 148 | FS16: =MAX($Z16:FR16)+1 -> 149 | FT16: =MAX($Z16:FS16)+1 -> 150 | FU16: =MAX($Z16:FT16)+1 -> 151 | FV16: =MAX($Z16:FU16)+1 -> 152 | FW16: =MAX($Z16:FV16)+1 -> 153 | FX16: =MAX($Z16:FW16)+1 -> 154 | FY16: =MAX($Z16:FX16)+1 -> 155 | FZ16: =MAX($Z16:FY16)+1 -> 156 | GA16: =MAX($Z16:FZ16)+1 -> 157 | GB16: =MAX($Z16:GA16)+1 -> 158 | GC16: =MAX($Z16:GB16)+1 -> 159 | GD16: =MAX($Z16:GC16)+1 -> 160 | GE16: =MAX($Z16:GD16)+1 -> 161 | GF16: =MAX($Z16:GE16)+1 -> 162 | GG16: =MAX($Z16:GF16)+1 -> 163 | GH16: =MAX($Z16:GG16)+1 -> 164 | GI16: =MAX($Z16:GH16)+1 -> 165 | GJ16: =MAX($Z16:GI16)+1 -> 166 | GK16: =MAX($Z16:GJ16)+1 -> 167 | GL16: =MAX($Z16:GK16)+1 -> 168 | GM16: =MAX($Z16:GL16)+1 -> 169 | GN16: =MAX($Z16:GM16)+1 -> 170 | GO16: =MAX($Z16:GN16)+1 -> 171 | GP16: =MAX($Z16:GO16)+1 -> 172 | GQ16: =MAX($Z16:GP16)+1 -> 173 | GR16: =MAX($Z16:GQ16)+1 -> 174 | GS16: =MAX($Z16:GR16)+1 -> 175 | GT16: =MAX($Z16:GS16)+1 -> 176 | GU16: =MAX($Z16:GT16)+1 -> 177 | GV16: =MAX($Z16:GU16)+1 -> 178 | GW16: =MAX($Z16:GV16)+1 -> 179 | GX16: =MAX($Z16:GW16)+1 -> 180 | GY16: =MAX($Z16:GX16)+1 -> 181 | GZ16: =MAX($Z16:GY16)+1 -> 182 | HA16: =MAX($Z16:GZ16)+1 -> 183 | HB16: =MAX($Z16:HA16)+1 -> 184 | HC16: =MAX($Z16:HB16)+1 -> 185 | HD16: =MAX($Z16:HC16)+1 -> 186 | HE16: =MAX($Z16:HD16)+1 -> 187 | HF16: =MAX($Z16:HE16)+1 -> 188 | HG16: =MAX($Z16:HF16)+1 -> 189 | HH16: =MAX($Z16:HG16)+1 -> 190 | HI16: =MAX($Z16:HH16)+1 -> 191 | HJ16: =MAX($Z16:HI16)+1 -> 192 | HK16: =MAX($Z16:HJ16)+1 -> 193
A17: =ROW() -> 17 | G17: =IF($R17="^",IF(COUNTIF(Lists!$13:$13,H17)=1,0,1),0) -> 0 | H17: дата старта проекта | P17: * | S17: =IF(G17<>0,1,IF(OR($Q17="",$Q17=0),0,IF($R17="^",IF(COUNTIF(INDIRECT(INDEX(Lists!$15:$15,SUMIFS(Lists!$1:$1,Lists!$13:$13,$H17))),$Q17)=1,0,1),0))) -> 0 | Y17: =START!$K$137 -> номер месяца даты начала: | AA17: =IF(AA20="","",MONTH(AA20)) ->  | AM17: =IF(AM20="","",MONTH(AM20)) ->  | CY17: =IF(CY20="","",MONTH(CY20)) ->  | FC17: =IF(FC20="","",MONTH(FC20)) -> 
A18: =ROW() -> 18 | G18: =IF($R18="^",IF(COUNTIF(Lists!$13:$13,H18)=1,0,1),0) -> 0 | H18: горизонт моделирования в кол-ве периодов | P18: * | S18: =IF(G18<>0,1,IF(OR($Q18="",$Q18=0),0,IF($R18="^",IF(COUNTIF(INDIRECT(INDEX(Lists!$15:$15,SUMIFS(Lists!$1:$1,Lists!$13:$13,$H18))),$Q18)=1,0,1),0))) -> 0 | Y18: =START!$K$138 -> год даты начала: | AA18: =IF(AA20="","",YEAR(AA20)-2000) ->  | AM18: =IF(AM20="","",YEAR(AM20)-2000) ->  | CY18: =IF(CY20="","",YEAR(CY20)-2000) ->  | FC18: =IF(FC20="","",YEAR(FC20)-2000) -> 
A19: =ROW() -> 19
A20: =ROW() -> 20 | G20: =IF($R20="^",IF(COUNTIF(Lists!$13:$13,H20)=1,0,1),0) -> 0 | H20: дата старта периода расчетов модели | X20: =IF(OR($Q$17="",$Q$17=0),"",IF($Q$16=Lists!$I$16,$Q$17,IF($Q$16=Lists!$I$17,$Q$17-IF(WEEKDAY($Q$17)=1,7,WEEKDAY($Q$17))+2,IF($Q$16=Lists!$I$18,EOMONTH($Q$17,-1)+INT((IF(DAY($Q$17)=31,30,DAY($Q$17))-1)/10)*10+1,IF(OR($Q$16=Lists!$I$19,$Q$16=Lists!$I$21),EOMONTH($Q$17,-1)+1,IF($Q$16=Lists!$I$20,EOMONTH($Q$17,-(MONTH($Q$17)-3*INT((MONTH($Q$17)-1)/3)))+1,IF($Q$16=Lists!$I$22,EOMONTH($Q$17,-MONTH($Q$17))+1,""))))))) ->  | AA20: =IF(AA$16>$Q$18,"",IF(AA$16=1,IF($X20="","",$X20),IF(Z21="","",Z21+1))) ->  | AM20: =IF(AM$16>$Q$18,"",IF(AM$16=1,IF($X20="","",$X20),IF(AL21="","",AL21+1))) ->  | AN20: =IF(AN$16>$Q$18,"",IF(AN$16=1,IF($X20="","",$X20),IF(AM21="","",AM21+1))) ->  | AO20: =IF(AO$16>$Q$18,"",IF(AO$16=1,IF($X20="","",$X20),IF(AN21="","",AN21+1))) ->  | AP20: =IF(AP$16>$Q$18,"",IF(AP$16=1,IF($X20="","",$X20),IF(AO21="","",AO21+1))) ->  | AQ20: =IF(AQ$16>$Q$18,"",IF(AQ$16=1,IF($X20="","",$X20),IF(AP21="","",AP21+1))) ->  | AR20: =IF(AR$16>$Q$18,"",IF(AR$16=1,IF($X20="","",$X20),IF(AQ21="","",AQ21+1))) ->  | AS20: =IF(AS$16>$Q$18,"",IF(AS$16=1,IF($X20="","",$X20),IF(AR21="","",AR21+1))) ->  | AT20: =IF(AT$16>$Q$18,"",IF(AT$16=1,IF($X20="","",$X20),IF(AS21="","",AS21+1))) ->  | AU20: =IF(AU$16>$Q$18,"",IF(AU$16=1,IF($X20="","",$X20),IF(AT21="","",AT21+1))) ->  | AV20: =IF(AV$16>$Q$18,"",IF(AV$16=1,IF($X20="","",$X20),IF(AU21="","",AU21+1))) ->  | AW20: =IF(AW$16>$Q$18,"",IF(AW$16=1,IF($X20="","",$X20),IF(AV21="","",AV21+1))) ->  | AX20: =IF(AX$16>$Q$18,"",IF(AX$16=1,IF($X20="","",$X20),IF(AW21="","",AW21+1))) ->  | AY20: =IF(AY$16>$Q$18,"",IF(AY$16=1,IF($X20="","",$X20),IF(AX21="","",AX21+1))) ->  | AZ20: =IF(AZ$16>$Q$18,"",IF(AZ$16=1,IF($X20="","",$X20),IF(AY21="","",AY21+1))) ->  | BA20: =IF(BA$16>$Q$18,"",IF(BA$16=1,IF($X20="","",$X20),IF(AZ21="","",AZ21+1))) ->  | BB20: =IF(BB$16>$Q$18,"",IF(BB$16=1,IF($X20="","",$X20),IF(BA21="","",BA21+1))) ->  | BC20: =IF(BC$16>$Q$18,"",IF(BC$16=1,IF($X20="","",$X20),IF(BB21="","",BB21+1))) ->  | BD20: =IF(BD$16>$Q$18,"",IF(BD$16=1,IF($X20="","",$X20),IF(BC21="","",BC21+1))) ->  | BE20: =IF(BE$16>$Q$18,"",IF(BE$16=1,IF($X20="","",$X20),IF(BD21="","",BD21+1))) ->  | BF20: =IF(BF$16>$Q$18,"",IF(BF$16=1,IF($X20="","",$X20),IF(BE21="","",BE21+1))) ->  | BG20: =IF(BG$16>$Q$18,"",IF(BG$16=1,IF($X20="","",$X20),IF(BF21="","",BF21+1))) ->  | BH20: =IF(BH$16>$Q$18,"",IF(BH$16=1,IF($X20="","",$X20),IF(BG21="","",BG21+1))) ->  | BI20: =IF(BI$16>$Q$18,"",IF(BI$16=1,IF($X20="","",$X20),IF(BH21="","",BH21+1))) ->  | BJ20: =IF(BJ$16>$Q$18,"",IF(BJ$16=1,IF($X20="","",$X20),IF(BI21="","",BI21+1))) ->  | BK20: =IF(BK$16>$Q$18,"",IF(BK$16=1,IF($X20="","",$X20),IF(BJ21="","",BJ21+1))) ->  | BL20: =IF(BL$16>$Q$18,"",IF(BL$16=1,IF($X20="","",$X20),IF(BK21="","",BK21+1))) ->  | BM20: =IF(BM$16>$Q$18,"",IF(BM$16=1,IF($X20="","",$X20),IF(BL21="","",BL21+1))) ->  | BN20: =IF(BN$16>$Q$18,"",IF(BN$16=1,IF($X20="","",$X20),IF(BM21="","",BM21+1))) ->  | BO20: =IF(BO$16>$Q$18,"",IF(BO$16=1,IF($X20="","",$X20),IF(BN21="","",BN21+1))) ->  | BP20: =IF(BP$16>$Q$18,"",IF(BP$16=1,IF($X20="","",$X20),IF(BO21="","",BO21+1))) ->  | BQ20: =IF(BQ$16>$Q$18,"",IF(BQ$16=1,IF($X20="","",$X20),IF(BP21="","",BP21+1))) ->  | BR20: =IF(BR$16>$Q$18,"",IF(BR$16=1,IF($X20="","",$X20),IF(BQ21="","",BQ21+1))) ->  | BS20: =IF(BS$16>$Q$18,"",IF(BS$16=1,IF($X20="","",$X20),IF(BR21="","",BR21+1))) ->  | BT20: =IF(BT$16>$Q$18,"",IF(BT$16=1,IF($X20="","",$X20),IF(BS21="","",BS21+1))) ->  | BU20: =IF(BU$16>$Q$18,"",IF(BU$16=1,IF($X20="","",$X20),IF(BT21="","",BT21+1))) ->  | BV20: =IF(BV$16>$Q$18,"",IF(BV$16=1,IF($X20="","",$X20),IF(BU21="","",BU21+1))) ->  | BW20: =IF(BW$16>$Q$18,"",IF(BW$16=1,IF($X20="","",$X20),IF(BV21="","",BV21+1))) ->  | BX20: =IF(BX$16>$Q$18,"",IF(BX$16=1,IF($X20="","",$X20),IF(BW21="","",BW21+1))) ->  | BY20: =IF(BY$16>$Q$18,"",IF(BY$16=1,IF($X20="","",$X20),IF(BX21="","",BX21+1))) ->  | BZ20: =IF(BZ$16>$Q$18,"",IF(BZ$16=1,IF($X20="","",$X20),IF(BY21="","",BY21+1))) ->  | CA20: =IF(CA$16>$Q$18,"",IF(CA$16=1,IF($X20="","",$X20),IF(BZ21="","",BZ21+1))) ->  | CB20: =IF(CB$16>$Q$18,"",IF(CB$16=1,IF($X20="","",$X20),IF(CA21="","",CA21+1))) ->  | CC20: =IF(CC$16>$Q$18,"",IF(CC$16=1,IF($X20="","",$X20),IF(CB21="","",CB21+1))) ->  | CD20: =IF(CD$16>$Q$18,"",IF(CD$16=1,IF($X20="","",$X20),IF(CC21="","",CC21+1))) ->  | CE20: =IF(CE$16>$Q$18,"",IF(CE$16=1,IF($X20="","",$X20),IF(CD21="","",CD21+1))) ->  | CF20: =IF(CF$16>$Q$18,"",IF(CF$16=1,IF($X20="","",$X20),IF(CE21="","",CE21+1))) ->  | CG20: =IF(CG$16>$Q$18,"",IF(CG$16=1,IF($X20="","",$X20),IF(CF21="","",CF21+1))) ->  | CH20: =IF(CH$16>$Q$18,"",IF(CH$16=1,IF($X20="","",$X20),IF(CG21="","",CG21+1))) ->  | CI20: =IF(CI$16>$Q$18,"",IF(CI$16=1,IF($X20="","",$X20),IF(CH21="","",CH21+1))) ->  | CJ20: =IF(CJ$16>$Q$18,"",IF(CJ$16=1,IF($X20="","",$X20),IF(CI21="","",CI21+1))) ->  | CK20: =IF(CK$16>$Q$18,"",IF(CK$16=1,IF($X20="","",$X20),IF(CJ21="","",CJ21+1))) ->  | CL20: =IF(CL$16>$Q$18,"",IF(CL$16=1,IF($X20="","",$X20),IF(CK21="","",CK21+1))) ->  | CM20: =IF(CM$16>$Q$18,"",IF(CM$16=1,IF($X20="","",$X20),IF(CL21="","",CL21+1))) ->  | CN20: =IF(CN$16>$Q$18,"",IF(CN$16=1,IF($X20="","",$X20),IF(CM21="","",CM21+1))) ->  | CO20: =IF(CO$16>$Q$18,"",IF(CO$16=1,IF($X20="","",$X20),IF(CN21="","",CN21+1))) ->  | CP20: =IF(CP$16>$Q$18,"",IF(CP$16=1,IF($X20="","",$X20),IF(CO21="","",CO21+1))) ->  | CQ20: =IF(CQ$16>$Q$18,"",IF(CQ$16=1,IF($X20="","",$X20),IF(CP21="","",CP21+1))) ->  | CR20: =IF(CR$16>$Q$18,"",IF(CR$16=1,IF($X20="","",$X20),IF(CQ21="","",CQ21+1))) ->  | CS20: =IF(CS$16>$Q$18,"",IF(CS$16=1,IF($X20="","",$X20),IF(CR21="","",CR21+1))) ->  | CT20: =IF(CT$16>$Q$18,"",IF(CT$16=1,IF($X20="","",$X20),IF(CS21="","",CS21+1))) ->  | CU20: =IF(CU$16>$Q$18,"",IF(CU$16=1,IF($X20="","",$X20),IF(CT21="","",CT21+1))) ->  | CV20: =IF(CV$16>$Q$18,"",IF(CV$16=1,IF($X20="","",$X20),IF(CU21="","",CU21+1))) ->  | CW20: =IF(CW$16>$Q$18,"",IF(CW$16=1,IF($X20="","",$X20),IF(CV21="","",CV21+1))) ->  | CX20: =IF(CX$16>$Q$18,"",IF(CX$16=1,IF($X20="","",$X20),IF(CW21="","",CW21+1))) ->  | CY20: =IF(CY$16>$Q$18,"",IF(CY$16=1,IF($X20="","",$X20),IF(CX21="","",CX21+1))) ->  | CZ20: =IF(CZ$16>$Q$18,"",IF(CZ$16=1,IF($X20="","",$X20),IF(CY21="","",CY21+1))) ->  | DA20: =IF(DA$16>$Q$18,"",IF(DA$16=1,IF($X20="","",$X20),IF(CZ21="","",CZ21+1))) ->  | DB20: =IF(DB$16>$Q$18,"",IF(DB$16=1,IF($X20="","",$X20),IF(DA21="","",DA21+1))) ->  | DC20: =IF(DC$16>$Q$18,"",IF(DC$16=1,IF($X20="","",$X20),IF(DB21="","",DB21+1))) ->  | DD20: =IF(DD$16>$Q$18,"",IF(DD$16=1,IF($X20="","",$X20),IF(DC21="","",DC21+1))) ->  | DE20: =IF(DE$16>$Q$18,"",IF(DE$16=1,IF($X20="","",$X20),IF(DD21="","",DD21+1))) ->  | DF20: =IF(DF$16>$Q$18,"",IF(DF$16=1,IF($X20="","",$X20),IF(DE21="","",DE21+1))) ->  | DG20: =IF(DG$16>$Q$18,"",IF(DG$16=1,IF($X20="","",$X20),IF(DF21="","",DF21+1))) ->  | DH20: =IF(DH$16>$Q$18,"",IF(DH$16=1,IF($X20="","",$X20),IF(DG21="","",DG21+1))) ->  | DI20: =IF(DI$16>$Q$18,"",IF(DI$16=1,IF($X20="","",$X20),IF(DH21="","",DH21+1))) ->  | DJ20: =IF(DJ$16>$Q$18,"",IF(DJ$16=1,IF($X20="","",$X20),IF(DI21="","",DI21+1))) ->  | DK20: =IF(DK$16>$Q$18,"",IF(DK$16=1,IF($X20="","",$X20),IF(DJ21="","",DJ21+1))) ->  | DL20: =IF(DL$16>$Q$18,"",IF(DL$16=1,IF($X20="","",$X20),IF(DK21="","",DK21+1))) ->  | DM20: =IF(DM$16>$Q$18,"",IF(DM$16=1,IF($X20="","",$X20),IF(DL21="","",DL21+1))) ->  | DN20: =IF(DN$16>$Q$18,"",IF(DN$16=1,IF($X20="","",$X20),IF(DM21="","",DM21+1))) ->  | DO20: =IF(DO$16>$Q$18,"",IF(DO$16=1,IF($X20="","",$X20),IF(DN21="","",DN21+1))) ->  | DP20: =IF(DP$16>$Q$18,"",IF(DP$16=1,IF($X20="","",$X20),IF(DO21="","",DO21+1))) ->  | DQ20: =IF(DQ$16>$Q$18,"",IF(DQ$16=1,IF($X20="","",$X20),IF(DP21="","",DP21+1))) ->  | DR20: =IF(DR$16>$Q$18,"",IF(DR$16=1,IF($X20="","",$X20),IF(DQ21="","",DQ21+1))) ->  | DS20: =IF(DS$16>$Q$18,"",IF(DS$16=1,IF($X20="","",$X20),IF(DR21="","",DR21+1))) ->  | DT20: =IF(DT$16>$Q$18,"",IF(DT$16=1,IF($X20="","",$X20),IF(DS21="","",DS21+1))) ->  | DU20: =IF(DU$16>$Q$18,"",IF(DU$16=1,IF($X20="","",$X20),IF(DT21="","",DT21+1))) ->  | DV20: =IF(DV$16>$Q$18,"",IF(DV$16=1,IF($X20="","",$X20),IF(DU21="","",DU21+1))) ->  | DW20: =IF(DW$16>$Q$18,"",IF(DW$16=1,IF($X20="","",$X20),IF(DV21="","",DV21+1))) ->  | DX20: =IF(DX$16>$Q$18,"",IF(DX$16=1,IF($X20="","",$X20),IF(DW21="","",DW21+1))) ->  | DY20: =IF(DY$16>$Q$18,"",IF(DY$16=1,IF($X20="","",$X20),IF(DX21="","",DX21+1))) ->  | DZ20: =IF(DZ$16>$Q$18,"",IF(DZ$16=1,IF($X20="","",$X20),IF(DY21="","",DY21+1))) ->  | EA20: =IF(EA$16>$Q$18,"",IF(EA$16=1,IF($X20="","",$X20),IF(DZ21="","",DZ21+1))) ->  | EB20: =IF(EB$16>$Q$18,"",IF(EB$16=1,IF($X20="","",$X20),IF(EA21="","",EA21+1))) ->  | EC20: =IF(EC$16>$Q$18,"",IF(EC$16=1,IF($X20="","",$X20),IF(EB21="","",EB21+1))) ->  | ED20: =IF(ED$16>$Q$18,"",IF(ED$16=1,IF($X20="","",$X20),IF(EC21="","",EC21+1))) ->  | EE20: =IF(EE$16>$Q$18,"",IF(EE$16=1,IF($X20="","",$X20),IF(ED21="","",ED21+1))) ->  | EF20: =IF(EF$16>$Q$18,"",IF(EF$16=1,IF($X20="","",$X20),IF(EE21="","",EE21+1))) ->  | EG20: =IF(EG$16>$Q$18,"",IF(EG$16=1,IF($X20="","",$X20),IF(EF21="","",EF21+1))) ->  | EH20: =IF(EH$16>$Q$18,"",IF(EH$16=1,IF($X20="","",$X20),IF(EG21="","",EG21+1))) ->  | EI20: =IF(EI$16>$Q$18,"",IF(EI$16=1,IF($X20="","",$X20),IF(EH21="","",EH21+1))) ->  | EJ20: =IF(EJ$16>$Q$18,"",IF(EJ$16=1,IF($X20="","",$X20),IF(EI21="","",EI21+1))) ->  | EK20: =IF(EK$16>$Q$18,"",IF(EK$16=1,IF($X20="","",$X20),IF(EJ21="","",EJ21+1))) ->  | EL20: =IF(EL$16>$Q$18,"",IF(EL$16=1,IF($X20="","",$X20),IF(EK21="","",EK21+1))) ->  | EM20: =IF(EM$16>$Q$18,"",IF(EM$16=1,IF($X20="","",$X20),IF(EL21="","",EL21+1))) ->  | EN20: =IF(EN$16>$Q$18,"",IF(EN$16=1,IF($X20="","",$X20),IF(EM21="","",EM21+1))) ->  | EO20: =IF(EO$16>$Q$18,"",IF(EO$16=1,IF($X20="","",$X20),IF(EN21="","",EN21+1))) ->  | EP20: =IF(EP$16>$Q$18,"",IF(EP$16=1,IF($X20="","",$X20),IF(EO21="","",EO21+1))) ->  | EQ20: =IF(EQ$16>$Q$18,"",IF(EQ$16=1,IF($X20="","",$X20),IF(EP21="","",EP21+1))) ->  | ER20: =IF(ER$16>$Q$18,"",IF(ER$16=1,IF($X20="","",$X20),IF(EQ21="","",EQ21+1))) ->  | ES20: =IF(ES$16>$Q$18,"",IF(ES$16=1,IF($X20="","",$X20),IF(ER21="","",ER21+1))) ->  | ET20: =IF(ET$16>$Q$18,"",IF(ET$16=1,IF($X20="","",$X20),IF(ES21="","",ES21+1))) ->  | EU20: =IF(EU$16>$Q$18,"",IF(EU$16=1,IF($X20="","",$X20),IF(ET21="","",ET21+1))) ->  | EV20: =IF(EV$16>$Q$18,"",IF(EV$16=1,IF($X20="","",$X20),IF(EU21="","",EU21+1))) ->  | EW20: =IF(EW$16>$Q$18,"",IF(EW$16=1,IF($X20="","",$X20),IF(EV21="","",EV21+1))) ->  | EX20: =IF(EX$16>$Q$18,"",IF(EX$16=1,IF($X20="","",$X20),IF(EW21="","",EW21+1))) ->  | EY20: =IF(EY$16>$Q$18,"",IF(EY$16=1,IF($X20="","",$X20),IF(EX21="","",EX21+1))) ->  | EZ20: =IF(EZ$16>$Q$18,"",IF(EZ$16=1,IF($X20="","",$X20),IF(EY21="","",EY21+1))) ->  | FA20: =IF(FA$16>$Q$18,"",IF(FA$16=1,IF($X20="","",$X20),IF(EZ21="","",EZ21+1))) ->  | FB20: =IF(FB$16>$Q$18,"",IF(FB$16=1,IF($X20="","",$X20),IF(FA21="","",FA21+1))) ->  | FC20: =IF(FC$16>$Q$18,"",IF(FC$16=1,IF($X20="","",$X20),IF(FB21="","",FB21+1))) ->  | FD20: =IF(FD$16>$Q$18,"",IF(FD$16=1,IF($X20="","",$X20),IF(FC21="","",FC21+1))) ->  | FE20: =IF(FE$16>$Q$18,"",IF(FE$16=1,IF($X20="","",$X20),IF(FD21="","",FD21+1))) ->  | FF20: =IF(FF$16>$Q$18,"",IF(FF$16=1,IF($X20="","",$X20),IF(FE21="","",FE21+1))) ->  | FG20: =IF(FG$16>$Q$18,"",IF(FG$16=1,IF($X20="","",$X20),IF(FF21="","",FF21+1))) ->  | FH20: =IF(FH$16>$Q$18,"",IF(FH$16=1,IF($X20="","",$X20),IF(FG21="","",FG21+1))) ->  | FI20: =IF(FI$16>$Q$18,"",IF(FI$16=1,IF($X20="","",$X20),IF(FH21="","",FH21+1))) ->  | FJ20: =IF(FJ$16>$Q$18,"",IF(FJ$16=1,IF($X20="","",$X20),IF(FI21="","",FI21+1))) ->  | FK20: =IF(FK$16>$Q$18,"",IF(FK$16=1,IF($X20="","",$X20),IF(FJ21="","",FJ21+1))) ->  | FL20: =IF(FL$16>$Q$18,"",IF(FL$16=1,IF($X20="","",$X20),IF(FK21="","",FK21+1))) ->  | FM20: =IF(FM$16>$Q$18,"",IF(FM$16=1,IF($X20="","",$X20),IF(FL21="","",FL21+1))) ->  | FN20: =IF(FN$16>$Q$18,"",IF(FN$16=1,IF($X20="","",$X20),IF(FM21="","",FM21+1))) ->  | FO20: =IF(FO$16>$Q$18,"",IF(FO$16=1,IF($X20="","",$X20),IF(FN21="","",FN21+1))) ->  | FP20: =IF(FP$16>$Q$18,"",IF(FP$16=1,IF($X20="","",$X20),IF(FO21="","",FO21+1))) ->  | FQ20: =IF(FQ$16>$Q$18,"",IF(FQ$16=1,IF($X20="","",$X20),IF(FP21="","",FP21+1))) ->  | FR20: =IF(FR$16>$Q$18,"",IF(FR$16=1,IF($X20="","",$X20),IF(FQ21="","",FQ21+1))) ->  | FS20: =IF(FS$16>$Q$18,"",IF(FS$16=1,IF($X20="","",$X20),IF(FR21="","",FR21+1))) ->  | FT20: =IF(FT$16>$Q$18,"",IF(FT$16=1,IF($X20="","",$X20),IF(FS21="","",FS21+1))) ->  | FU20: =IF(FU$16>$Q$18,"",IF(FU$16=1,IF($X20="","",$X20),IF(FT21="","",FT21+1))) ->  | FV20: =IF(FV$16>$Q$18,"",IF(FV$16=1,IF($X20="","",$X20),IF(FU21="","",FU21+1))) ->  | FW20: =IF(FW$16>$Q$18,"",IF(FW$16=1,IF($X20="","",$X20),IF(FV21="","",FV21+1))) ->  | FX20: =IF(FX$16>$Q$18,"",IF(FX$16=1,IF($X20="","",$X20),IF(FW21="","",FW21+1))) ->  | FY20: =IF(FY$16>$Q$18,"",IF(FY$16=1,IF($X20="","",$X20),IF(FX21="","",FX21+1))) ->  | FZ20: =IF(FZ$16>$Q$18,"",IF(FZ$16=1,IF($X20="","",$X20),IF(FY21="","",FY21+1))) ->  | GA20: =IF(GA$16>$Q$18,"",IF(GA$16=1,IF($X20="","",$X20),IF(FZ21="","",FZ21+1))) ->  | GB20: =IF(GB$16>$Q$18,"",IF(GB$16=1,IF($X20="","",$X20),IF(GA21="","",GA21+1))) ->  | GC20: =IF(GC$16>$Q$18,"",IF(GC$16=1,IF($X20="","",$X20),IF(GB21="","",GB21+1))) ->  | GD20: =IF(GD$16>$Q$18,"",IF(GD$16=1,IF($X20="","",$X20),IF(GC21="","",GC21+1))) ->  | GE20: =IF(GE$16>$Q$18,"",IF(GE$16=1,IF($X20="","",$X20),IF(GD21="","",GD21+1))) ->  | GF20: =IF(GF$16>$Q$18,"",IF(GF$16=1,IF($X20="","",$X20),IF(GE21="","",GE21+1))) ->  | GG20: =IF(GG$16>$Q$18,"",IF(GG$16=1,IF($X20="","",$X20),IF(GF21="","",GF21+1))) ->  | GH20: =IF(GH$16>$Q$18,"",IF(GH$16=1,IF($X20="","",$X20),IF(GG21="","",GG21+1))) ->  | GI20: =IF(GI$16>$Q$18,"",IF(GI$16=1,IF($X20="","",$X20),IF(GH21="","",GH21+1))) ->  | GJ20: =IF(GJ$16>$Q$18,"",IF(GJ$16=1,IF($X20="","",$X20),IF(GI21="","",GI21+1))) ->  | GK20: =IF(GK$16>$Q$18,"",IF(GK$16=1,IF($X20="","",$X20),IF(GJ21="","",GJ21+1))) ->  | GL20: =IF(GL$16>$Q$18,"",IF(GL$16=1,IF($X20="","",$X20),IF(GK21="","",GK21+1))) ->  | GM20: =IF(GM$16>$Q$18,"",IF(GM$16=1,IF($X20="","",$X20),IF(GL21="","",GL21+1))) ->  | GN20: =IF(GN$16>$Q$18,"",IF(GN$16=1,IF($X20="","",$X20),IF(GM21="","",GM21+1))) ->  | GO20: =IF(GO$16>$Q$18,"",IF(GO$16=1,IF($X20="","",$X20),IF(GN21="","",GN21+1))) ->  | GP20: =IF(GP$16>$Q$18,"",IF(GP$16=1,IF($X20="","",$X20),IF(GO21="","",GO21+1))) ->  | GQ20: =IF(GQ$16>$Q$18,"",IF(GQ$16=1,IF($X20="","",$X20),IF(GP21="","",GP21+1))) ->  | GR20: =IF(GR$16>$Q$18,"",IF(GR$16=1,IF($X20="","",$X20),IF(GQ21="","",GQ21+1))) ->  | GS20: =IF(GS$16>$Q$18,"",IF(GS$16=1,IF($X20="","",$X20),IF(GR21="","",GR21+1))) ->  | GT20: =IF(GT$16>$Q$18,"",IF(GT$16=1,IF($X20="","",$X20),IF(GS21="","",GS21+1))) ->  | GU20: =IF(GU$16>$Q$18,"",IF(GU$16=1,IF($X20="","",$X20),IF(GT21="","",GT21+1))) ->  | GV20: =IF(GV$16>$Q$18,"",IF(GV$16=1,IF($X20="","",$X20),IF(GU21="","",GU21+1))) ->  | GW20: =IF(GW$16>$Q$18,"",IF(GW$16=1,IF($X20="","",$X20),IF(GV21="","",GV21+1))) ->  | GX20: =IF(GX$16>$Q$18,"",IF(GX$16=1,IF($X20="","",$X20),IF(GW21="","",GW21+1))) ->  | GY20: =IF(GY$16>$Q$18,"",IF(GY$16=1,IF($X20="","",$X20),IF(GX21="","",GX21+1))) ->  | GZ20: =IF(GZ$16>$Q$18,"",IF(GZ$16=1,IF($X20="","",$X20),IF(GY21="","",GY21+1))) ->  | HA20: =IF(HA$16>$Q$18,"",IF(HA$16=1,IF($X20="","",$X20),IF(GZ21="","",GZ21+1))) ->  | HB20: =IF(HB$16>$Q$18,"",IF(HB$16=1,IF($X20="","",$X20),IF(HA21="","",HA21+1))) ->  | HC20: =IF(HC$16>$Q$18,"",IF(HC$16=1,IF($X20="","",$X20),IF(HB21="","",HB21+1))) ->  | HD20: =IF(HD$16>$Q$18,"",IF(HD$16=1,IF($X20="","",$X20),IF(HC21="","",HC21+1))) ->  | HE20: =IF(HE$16>$Q$18,"",IF(HE$16=1,IF($X20="","",$X20),IF(HD21="","",HD21+1))) ->  | HF20: =IF(HF$16>$Q$18,"",IF(HF$16=1,IF($X20="","",$X20),IF(HE21="","",HE21+1))) ->  | HG20: =IF(HG$16>$Q$18,"",IF(HG$16=1,IF($X20="","",$X20),IF(HF21="","",HF21+1))) ->  | HH20: =IF(HH$16>$Q$18,"",IF(HH$16=1,IF($X20="","",$X20),IF(HG21="","",HG21+1))) ->  | HI20: =IF(HI$16>$Q$18,"",IF(HI$16=1,IF($X20="","",$X20),IF(HH21="","",HH21+1))) ->  | HJ20: =IF(HJ$16>$Q$18,"",IF(HJ$16=1,IF($X20="","",$X20),IF(HI21="","",HI21+1))) ->  | HK20: =IF(HK$16>$Q$18,"",IF(HK$16=1,IF($X20="","",$X20),IF(HJ21="","",HJ21+1))) -> 
A21: =ROW() -> 21 | G21: =IF($R21="^",IF(COUNTIF(Lists!$13:$13,H21)=1,0,1),0) -> 0 | H21: дата завершения периода расчетов модели | X21: =IF(OR(X20="",AA21=""),"",MAX($Z21:$HL21)) ->  | AA21: =IF(AA20="","",IF($Q$16=Lists!$I$16,AA20,IF($Q$16=Lists!$I$17,AA20+6,IF($Q$16=Lists!$I$18,IF(DAY(AA20)=21,EOMONTH(AA20,0),AA20+9),IF($Q$16=Lists!$I$19,EOMONTH(AA20,0),IF($Q$16=Lists!$I$20,EOMONTH(AA20,2),IF(OR($Q$16=Lists!$I$21,$Q$16=Lists!$I$22),EOMONTH(AA20,11),""))))))) ->  | AB21: =IF(AB20="","",IF($Q$16=Lists!$I$16,AB20,IF($Q$16=Lists!$I$17,AB20+6,IF($Q$16=Lists!$I$18,IF(DAY(AB20)=21,EOMONTH(AB20,0),AB20+9),IF($Q$16=Lists!$I$19,EOMONTH(AB20,0),IF($Q$16=Lists!$I$20,EOMONTH(AB20,2),IF(OR($Q$16=Lists!$I$21,$Q$16=Lists!$I$22),EOMONTH(AB20,11),""))))))) ->  | AC21: =IF(AC20="","",IF($Q$16=Lists!$I$16,AC20,IF($Q$16=Lists!$I$17,AC20+6,IF($Q$16=Lists!$I$18,IF(DAY(AC20)=21,EOMONTH(AC20,0),AC20+9),IF($Q$16=Lists!$I$19,EOMONTH(AC20,0),IF($Q$16=Lists!$I$20,EOMONTH(AC20,2),IF(OR($Q$16=Lists!$I$21,$Q$16=Lists!$I$22),EOMONTH(AC20,11),""))))))) ->  | AD21: =IF(AD20="","",IF($Q$16=Lists!$I$16,AD20,IF($Q$16=Lists!$I$17,AD20+6,IF($Q$16=Lists!$I$18,IF(DAY(AD20)=21,EOMONTH(AD20,0),AD20+9),IF($Q$16=Lists!$I$19,EOMONTH(AD20,0),IF($Q$16=Lists!$I$20,EOMONTH(AD20,2),IF(OR($Q$16=Lists!$I$21,$Q$16=Lists!$I$22),EOMONTH(AD20,11),""))))))) ->  | AE21: =IF(AE20="","",IF($Q$16=Lists!$I$16,AE20,IF($Q$16=Lists!$I$17,AE20+6,IF($Q$16=Lists!$I$18,IF(DAY(AE20)=21,EOMONTH(AE20,0),AE20+9),IF($Q$16=Lists!$I$19,EOMONTH(AE20,0),IF($Q$16=Lists!$I$20,EOMONTH(AE20,2),IF(OR($Q$16=Lists!$I$21,$Q$16=Lists!$I$22),EOMONTH(AE20,11),""))))))) ->  | AF21: =IF(AF20="","",IF($Q$16=Lists!$I$16,AF20,IF($Q$16=Lists!$I$17,AF20+6,IF($Q$16=Lists!$I$18,IF(DAY(AF20)=21,EOMONTH(AF20,0),AF20+9),IF($Q$16=Lists!$I$19,EOMONTH(AF20,0),IF($Q$16=Lists!$I$20,EOMONTH(AF20,2),IF(OR($Q$16=Lists!$I$21,$Q$16=Lists!$I$22),EOMONTH(AF20,11),""))))))) ->  | AG21: =IF(AG20="","",IF($Q$16=Lists!$I$16,AG20,IF($Q$16=Lists!$I$17,AG20+6,IF($Q$16=Lists!$I$18,IF(DAY(AG20)=21,EOMONTH(AG20,0),AG20+9),IF($Q$16=Lists!$I$19,EOMONTH(AG20,0),IF($Q$16=Lists!$I$20,EOMONTH(AG20,2),IF(OR($Q$16=Lists!$I$21,$Q$16=Lists!$I$22),EOMONTH(AG20,11),""))))))) ->  | AH21: =IF(AH20="","",IF($Q$16=Lists!$I$16,AH20,IF($Q$16=Lists!$I$17,AH20+6,IF($Q$16=Lists!$I$18,IF(DAY(AH20)=21,EOMONTH(AH20,0),AH20+9),IF($Q$16=Lists!$I$19,EOMONTH(AH20,0),IF($Q$16=Lists!$I$20,EOMONTH(AH20,2),IF(OR($Q$16=Lists!$I$21,$Q$16=Lists!$I$22),EOMONTH(AH20,11),""))))))) ->  | AI21: =IF(AI20="","",IF($Q$16=Lists!$I$16,AI20,IF($Q$16=Lists!$I$17,AI20+6,IF($Q$16=Lists!$I$18,IF(DAY(AI20)=21,EOMONTH(AI20,0),AI20+9),IF($Q$16=Lists!$I$19,EOMONTH(AI20,0),IF($Q$16=Lists!$I$20,EOMONTH(AI20,2),IF(OR($Q$16=Lists!$I$21,$Q$16=Lists!$I$22),EOMONTH(AI20,11),""))))))) ->  | AJ21: =IF(AJ20="","",IF($Q$16=Lists!$I$16,AJ20,IF($Q$16=Lists!$I$17,AJ20+6,IF($Q$16=Lists!$I$18,IF(DAY(AJ20)=21,EOMONTH(AJ20,0),AJ20+9),IF($Q$16=Lists!$I$19,EOMONTH(AJ20,0),IF($Q$16=Lists!$I$20,EOMONTH(AJ20,2),IF(OR($Q$16=Lists!$I$21,$Q$16=Lists!$I$22),EOMONTH(AJ20,11),""))))))) ->  | AK21: =IF(AK20="","",IF($Q$16=Lists!$I$16,AK20,IF($Q$16=Lists!$I$17,AK20+6,IF($Q$16=Lists!$I$18,IF(DAY(AK20)=21,EOMONTH(AK20,0),AK20+9),IF($Q$16=Lists!$I$19,EOMONTH(AK20,0),IF($Q$16=Lists!$I$20,EOMONTH(AK20,2),IF(OR($Q$16=Lists!$I$21,$Q$16=Lists!$I$22),EOMONTH(AK20,11),""))))))) ->  | AL21: =IF(AL20="","",IF($Q$16=Lists!$I$16,AL20,IF($Q$16=Lists!$I$17,AL20+6,IF($Q$16=Lists!$I$18,IF(DAY(AL20)=21,EOMONTH(AL20,0),AL20+9),IF($Q$16=Lists!$I$19,EOMONTH(AL20,0),IF($Q$16=Lists!$I$20,EOMONTH(AL20,2),IF(OR($Q$16=Lists!$I$21,$Q$16=Lists!$I$22),EOMONTH(AL20,11),""))))))) ->  | AM21: =IF(AM20="","",IF($Q$16=Lists!$I$16,AM20,IF($Q$16=Lists!$I$17,AM20+6,IF($Q$16=Lists!$I$18,IF(DAY(AM20)=21,EOMONTH(AM20,0),AM20+9),IF($Q$16=Lists!$I$19,EOMONTH(AM20,0),IF($Q$16=Lists!$I$20,EOMONTH(AM20,2),IF(OR($Q$16=Lists!$I$21,$Q$16=Lists!$I$22),EOMONTH(AM20,11),""))))))) ->  | AN21: =IF(AN20="","",IF($Q$16=Lists!$I$16,AN20,IF($Q$16=Lists!$I$17,AN20+6,IF($Q$16=Lists!$I$18,IF(DAY(AN20)=21,EOMONTH(AN20,0),AN20+9),IF($Q$16=Lists!$I$19,EOMONTH(AN20,0),IF($Q$16=Lists!$I$20,EOMONTH(AN20,2),IF(OR($Q$16=Lists!$I$21,$Q$16=Lists!$I$22),EOMONTH(AN20,11),""))))))) ->  | AO21: =IF(AO20="","",IF($Q$16=Lists!$I$16,AO20,IF($Q$16=Lists!$I$17,AO20+6,IF($Q$16=Lists!$I$18,IF(DAY(AO20)=21,EOMONTH(AO20,0),AO20+9),IF($Q$16=Lists!$I$19,EOMONTH(AO20,0),IF($Q$16=Lists!$I$20,EOMONTH(AO20,2),IF(OR($Q$16=Lists!$I$21,$Q$16=Lists!$I$22),EOMONTH(AO20,11),""))))))) ->  | AP21: =IF(AP20="","",IF($Q$16=Lists!$I$16,AP20,IF($Q$16=Lists!$I$17,AP20+6,IF($Q$16=Lists!$I$18,IF(DAY(AP20)=21,EOMONTH(AP20,0),AP20+9),IF($Q$16=Lists!$I$19,EOMONTH(AP20,0),IF($Q$16=Lists!$I$20,EOMONTH(AP20,2),IF(OR($Q$16=Lists!$I$21,$Q$16=Lists!$I$22),EOMONTH(AP20,11),""))))))) ->  | AQ21: =IF(AQ20="","",IF($Q$16=Lists!$I$16,AQ20,IF($Q$16=Lists!$I$17,AQ20+6,IF($Q$16=Lists!$I$18,IF(DAY(AQ20)=21,EOMONTH(AQ20,0),AQ20+9),IF($Q$16=Lists!$I$19,EOMONTH(AQ20,0),IF($Q$16=Lists!$I$20,EOMONTH(AQ20,2),IF(OR($Q$16=Lists!$I$21,$Q$16=Lists!$I$22),EOMONTH(AQ20,11),""))))))) ->  | AR21: =IF(AR20="","",IF($Q$16=Lists!$I$16,AR20,IF($Q$16=Lists!$I$17,AR20+6,IF($Q$16=Lists!$I$18,IF(DAY(AR20)=21,EOMONTH(AR20,0),AR20+9),IF($Q$16=Lists!$I$19,EOMONTH(AR20,0),IF($Q$16=Lists!$I$20,EOMONTH(AR20,2),IF(OR($Q$16=Lists!$I$21,$Q$16=Lists!$I$22),EOMONTH(AR20,11),""))))))) ->  | AS21: =IF(AS20="","",IF($Q$16=Lists!$I$16,AS20,IF($Q$16=Lists!$I$17,AS20+6,IF($Q$16=Lists!$I$18,IF(DAY(AS20)=21,EOMONTH(AS20,0),AS20+9),IF($Q$16=Lists!$I$19,EOMONTH(AS20,0),IF($Q$16=Lists!$I$20,EOMONTH(AS20,2),IF(OR($Q$16=Lists!$I$21,$Q$16=Lists!$I$22),EOMONTH(AS20,11),""))))))) ->  | AT21: =IF(AT20="","",IF($Q$16=Lists!$I$16,AT20,IF($Q$16=Lists!$I$17,AT20+6,IF($Q$16=Lists!$I$18,IF(DAY(AT20)=21,EOMONTH(AT20,0),AT20+9),IF($Q$16=Lists!$I$19,EOMONTH(AT20,0),IF($Q$16=Lists!$I$20,EOMONTH(AT20,2),IF(OR($Q$16=Lists!$I$21,$Q$16=Lists!$I$22),EOMONTH(AT20,11),""))))))) ->  | AU21: =IF(AU20="","",IF($Q$16=Lists!$I$16,AU20,IF($Q$16=Lists!$I$17,AU20+6,IF($Q$16=Lists!$I$18,IF(DAY(AU20)=21,EOMONTH(AU20,0),AU20+9),IF($Q$16=Lists!$I$19,EOMONTH(AU20,0),IF($Q$16=Lists!$I$20,EOMONTH(AU20,2),IF(OR($Q$16=Lists!$I$21,$Q$16=Lists!$I$22),EOMONTH(AU20,11),""))))))) ->  | AV21: =IF(AV20="","",IF($Q$16=Lists!$I$16,AV20,IF($Q$16=Lists!$I$17,AV20+6,IF($Q$16=Lists!$I$18,IF(DAY(AV20)=21,EOMONTH(AV20,0),AV20+9),IF($Q$16=Lists!$I$19,EOMONTH(AV20,0),IF($Q$16=Lists!$I$20,EOMONTH(AV20,2),IF(OR($Q$16=Lists!$I$21,$Q$16=Lists!$I$22),EOMONTH(AV20,11),""))))))) ->  | AW21: =IF(AW20="","",IF($Q$16=Lists!$I$16,AW20,IF($Q$16=Lists!$I$17,AW20+6,IF($Q$16=Lists!$I$18,IF(DAY(AW20)=21,EOMONTH(AW20,0),AW20+9),IF($Q$16=Lists!$I$19,EOMONTH(AW20,0),IF($Q$16=Lists!$I$20,EOMONTH(AW20,2),IF(OR($Q$16=Lists!$I$21,$Q$16=Lists!$I$22),EOMONTH(AW20,11),""))))))) ->  | AX21: =IF(AX20="","",IF($Q$16=Lists!$I$16,AX20,IF($Q$16=Lists!$I$17,AX20+6,IF($Q$16=Lists!$I$18,IF(DAY(AX20)=21,EOMONTH(AX20,0),AX20+9),IF($Q$16=Lists!$I$19,EOMONTH(AX20,0),IF($Q$16=Lists!$I$20,EOMONTH(AX20,2),IF(OR($Q$16=Lists!$I$21,$Q$16=Lists!$I$22),EOMONTH(AX20,11),""))))))) ->  | AY21: =IF(AY20="","",IF($Q$16=Lists!$I$16,AY20,IF($Q$16=Lists!$I$17,AY20+6,IF($Q$16=Lists!$I$18,IF(DAY(AY20)=21,EOMONTH(AY20,0),AY20+9),IF($Q$16=Lists!$I$19,EOMONTH(AY20,0),IF($Q$16=Lists!$I$20,EOMONTH(AY20,2),IF(OR($Q$16=Lists!$I$21,$Q$16=Lists!$I$22),EOMONTH(AY20,11),""))))))) ->  | AZ21: =IF(AZ20="","",IF($Q$16=Lists!$I$16,AZ20,IF($Q$16=Lists!$I$17,AZ20+6,IF($Q$16=Lists!$I$18,IF(DAY(AZ20)=21,EOMONTH(AZ20,0),AZ20+9),IF($Q$16=Lists!$I$19,EOMONTH(AZ20,0),IF($Q$16=Lists!$I$20,EOMONTH(AZ20,2),IF(OR($Q$16=Lists!$I$21,$Q$16=Lists!$I$22),EOMONTH(AZ20,11),""))))))) ->  | BA21: =IF(BA20="","",IF($Q$16=Lists!$I$16,BA20,IF($Q$16=Lists!$I$17,BA20+6,IF($Q$16=Lists!$I$18,IF(DAY(BA20)=21,EOMONTH(BA20,0),BA20+9),IF($Q$16=Lists!$I$19,EOMONTH(BA20,0),IF($Q$16=Lists!$I$20,EOMONTH(BA20,2),IF(OR($Q$16=Lists!$I$21,$Q$16=Lists!$I$22),EOMONTH(BA20,11),""))))))) ->  | BB21: =IF(BB20="","",IF($Q$16=Lists!$I$16,BB20,IF($Q$16=Lists!$I$17,BB20+6,IF($Q$16=Lists!$I$18,IF(DAY(BB20)=21,EOMONTH(BB20,0),BB20+9),IF($Q$16=Lists!$I$19,EOMONTH(BB20,0),IF($Q$16=Lists!$I$20,EOMONTH(BB20,2),IF(OR($Q$16=Lists!$I$21,$Q$16=Lists!$I$22),EOMONTH(BB20,11),""))))))) ->  | BC21: =IF(BC20="","",IF($Q$16=Lists!$I$16,BC20,IF($Q$16=Lists!$I$17,BC20+6,IF($Q$16=Lists!$I$18,IF(DAY(BC20)=21,EOMONTH(BC20,0),BC20+9),IF($Q$16=Lists!$I$19,EOMONTH(BC20,0),IF($Q$16=Lists!$I$20,EOMONTH(BC20,2),IF(OR($Q$16=Lists!$I$21,$Q$16=Lists!$I$22),EOMONTH(BC20,11),""))))))) ->  | BD21: =IF(BD20="","",IF($Q$16=Lists!$I$16,BD20,IF($Q$16=Lists!$I$17,BD20+6,IF($Q$16=Lists!$I$18,IF(DAY(BD20)=21,EOMONTH(BD20,0),BD20+9),IF($Q$16=Lists!$I$19,EOMONTH(BD20,0),IF($Q$16=Lists!$I$20,EOMONTH(BD20,2),IF(OR($Q$16=Lists!$I$21,$Q$16=Lists!$I$22),EOMONTH(BD20,11),""))))))) ->  | BE21: =IF(BE20="","",IF($Q$16=Lists!$I$16,BE20,IF($Q$16=Lists!$I$17,BE20+6,IF($Q$16=Lists!$I$18,IF(DAY(BE20)=21,EOMONTH(BE20,0),BE20+9),IF($Q$16=Lists!$I$19,EOMONTH(BE20,0),IF($Q$16=Lists!$I$20,EOMONTH(BE20,2),IF(OR($Q$16=Lists!$I$21,$Q$16=Lists!$I$22),EOMONTH(BE20,11),""))))))) ->  | BF21: =IF(BF20="","",IF($Q$16=Lists!$I$16,BF20,IF($Q$16=Lists!$I$17,BF20+6,IF($Q$16=Lists!$I$18,IF(DAY(BF20)=21,EOMONTH(BF20,0),BF20+9),IF($Q$16=Lists!$I$19,EOMONTH(BF20,0),IF($Q$16=Lists!$I$20,EOMONTH(BF20,2),IF(OR($Q$16=Lists!$I$21,$Q$16=Lists!$I$22),EOMONTH(BF20,11),""))))))) ->  | BG21: =IF(BG20="","",IF($Q$16=Lists!$I$16,BG20,IF($Q$16=Lists!$I$17,BG20+6,IF($Q$16=Lists!$I$18,IF(DAY(BG20)=21,EOMONTH(BG20,0),BG20+9),IF($Q$16=Lists!$I$19,EOMONTH(BG20,0),IF($Q$16=Lists!$I$20,EOMONTH(BG20,2),IF(OR($Q$16=Lists!$I$21,$Q$16=Lists!$I$22),EOMONTH(BG20,11),""))))))) ->  | BH21: =IF(BH20="","",IF($Q$16=Lists!$I$16,BH20,IF($Q$16=Lists!$I$17,BH20+6,IF($Q$16=Lists!$I$18,IF(DAY(BH20)=21,EOMONTH(BH20,0),BH20+9),IF($Q$16=Lists!$I$19,EOMONTH(BH20,0),IF($Q$16=Lists!$I$20,EOMONTH(BH20,2),IF(OR($Q$16=Lists!$I$21,$Q$16=Lists!$I$22),EOMONTH(BH20,11),""))))))) ->  | BI21: =IF(BI20="","",IF($Q$16=Lists!$I$16,BI20,IF($Q$16=Lists!$I$17,BI20+6,IF($Q$16=Lists!$I$18,IF(DAY(BI20)=21,EOMONTH(BI20,0),BI20+9),IF($Q$16=Lists!$I$19,EOMONTH(BI20,0),IF($Q$16=Lists!$I$20,EOMONTH(BI20,2),IF(OR($Q$16=Lists!$I$21,$Q$16=Lists!$I$22),EOMONTH(BI20,11),""))))))) ->  | BJ21: =IF(BJ20="","",IF($Q$16=Lists!$I$16,BJ20,IF($Q$16=Lists!$I$17,BJ20+6,IF($Q$16=Lists!$I$18,IF(DAY(BJ20)=21,EOMONTH(BJ20,0),BJ20+9),IF($Q$16=Lists!$I$19,EOMONTH(BJ20,0),IF($Q$16=Lists!$I$20,EOMONTH(BJ20,2),IF(OR($Q$16=Lists!$I$21,$Q$16=Lists!$I$22),EOMONTH(BJ20,11),""))))))) ->  | BK21: =IF(BK20="","",IF($Q$16=Lists!$I$16,BK20,IF($Q$16=Lists!$I$17,BK20+6,IF($Q$16=Lists!$I$18,IF(DAY(BK20)=21,EOMONTH(BK20,0),BK20+9),IF($Q$16=Lists!$I$19,EOMONTH(BK20,0),IF($Q$16=Lists!$I$20,EOMONTH(BK20,2),IF(OR($Q$16=Lists!$I$21,$Q$16=Lists!$I$22),EOMONTH(BK20,11),""))))))) ->  | BL21: =IF(BL20="","",IF($Q$16=Lists!$I$16,BL20,IF($Q$16=Lists!$I$17,BL20+6,IF($Q$16=Lists!$I$18,IF(DAY(BL20)=21,EOMONTH(BL20,0),BL20+9),IF($Q$16=Lists!$I$19,EOMONTH(BL20,0),IF($Q$16=Lists!$I$20,EOMONTH(BL20,2),IF(OR($Q$16=Lists!$I$21,$Q$16=Lists!$I$22),EOMONTH(BL20,11),""))))))) ->  | BM21: =IF(BM20="","",IF($Q$16=Lists!$I$16,BM20,IF($Q$16=Lists!$I$17,BM20+6,IF($Q$16=Lists!$I$18,IF(DAY(BM20)=21,EOMONTH(BM20,0),BM20+9),IF($Q$16=Lists!$I$19,EOMONTH(BM20,0),IF($Q$16=Lists!$I$20,EOMONTH(BM20,2),IF(OR($Q$16=Lists!$I$21,$Q$16=Lists!$I$22),EOMONTH(BM20,11),""))))))) ->  | BN21: =IF(BN20="","",IF($Q$16=Lists!$I$16,BN20,IF($Q$16=Lists!$I$17,BN20+6,IF($Q$16=Lists!$I$18,IF(DAY(BN20)=21,EOMONTH(BN20,0),BN20+9),IF($Q$16=Lists!$I$19,EOMONTH(BN20,0),IF($Q$16=Lists!$I$20,EOMONTH(BN20,2),IF(OR($Q$16=Lists!$I$21,$Q$16=Lists!$I$22),EOMONTH(BN20,11),""))))))) ->  | BO21: =IF(BO20="","",IF($Q$16=Lists!$I$16,BO20,IF($Q$16=Lists!$I$17,BO20+6,IF($Q$16=Lists!$I$18,IF(DAY(BO20)=21,EOMONTH(BO20,0),BO20+9),IF($Q$16=Lists!$I$19,EOMONTH(BO20,0),IF($Q$16=Lists!$I$20,EOMONTH(BO20,2),IF(OR($Q$16=Lists!$I$21,$Q$16=Lists!$I$22),EOMONTH(BO20,11),""))))))) ->  | BP21: =IF(BP20="","",IF($Q$16=Lists!$I$16,BP20,IF($Q$16=Lists!$I$17,BP20+6,IF($Q$16=Lists!$I$18,IF(DAY(BP20)=21,EOMONTH(BP20,0),BP20+9),IF($Q$16=Lists!$I$19,EOMONTH(BP20,0),IF($Q$16=Lists!$I$20,EOMONTH(BP20,2),IF(OR($Q$16=Lists!$I$21,$Q$16=Lists!$I$22),EOMONTH(BP20,11),""))))))) ->  | BQ21: =IF(BQ20="","",IF($Q$16=Lists!$I$16,BQ20,IF($Q$16=Lists!$I$17,BQ20+6,IF($Q$16=Lists!$I$18,IF(DAY(BQ20)=21,EOMONTH(BQ20,0),BQ20+9),IF($Q$16=Lists!$I$19,EOMONTH(BQ20,0),IF($Q$16=Lists!$I$20,EOMONTH(BQ20,2),IF(OR($Q$16=Lists!$I$21,$Q$16=Lists!$I$22),EOMONTH(BQ20,11),""))))))) ->  | BR21: =IF(BR20="","",IF($Q$16=Lists!$I$16,BR20,IF($Q$16=Lists!$I$17,BR20+6,IF($Q$16=Lists!$I$18,IF(DAY(BR20)=21,EOMONTH(BR20,0),BR20+9),IF($Q$16=Lists!$I$19,EOMONTH(BR20,0),IF($Q$16=Lists!$I$20,EOMONTH(BR20,2),IF(OR($Q$16=Lists!$I$21,$Q$16=Lists!$I$22),EOMONTH(BR20,11),""))))))) ->  | BS21: =IF(BS20="","",IF($Q$16=Lists!$I$16,BS20,IF($Q$16=Lists!$I$17,BS20+6,IF($Q$16=Lists!$I$18,IF(DAY(BS20)=21,EOMONTH(BS20,0),BS20+9),IF($Q$16=Lists!$I$19,EOMONTH(BS20,0),IF($Q$16=Lists!$I$20,EOMONTH(BS20,2),IF(OR($Q$16=Lists!$I$21,$Q$16=Lists!$I$22),EOMONTH(BS20,11),""))))))) ->  | BT21: =IF(BT20="","",IF($Q$16=Lists!$I$16,BT20,IF($Q$16=Lists!$I$17,BT20+6,IF($Q$16=Lists!$I$18,IF(DAY(BT20)=21,EOMONTH(BT20,0),BT20+9),IF($Q$16=Lists!$I$19,EOMONTH(BT20,0),IF($Q$16=Lists!$I$20,EOMONTH(BT20,2),IF(OR($Q$16=Lists!$I$21,$Q$16=Lists!$I$22),EOMONTH(BT20,11),""))))))) ->  | BU21: =IF(BU20="","",IF($Q$16=Lists!$I$16,BU20,IF($Q$16=Lists!$I$17,BU20+6,IF($Q$16=Lists!$I$18,IF(DAY(BU20)=21,EOMONTH(BU20,0),BU20+9),IF($Q$16=Lists!$I$19,EOMONTH(BU20,0),IF($Q$16=Lists!$I$20,EOMONTH(BU20,2),IF(OR($Q$16=Lists!$I$21,$Q$16=Lists!$I$22),EOMONTH(BU20,11),""))))))) ->  | BV21: =IF(BV20="","",IF($Q$16=Lists!$I$16,BV20,IF($Q$16=Lists!$I$17,BV20+6,IF($Q$16=Lists!$I$18,IF(DAY(BV20)=21,EOMONTH(BV20,0),BV20+9),IF($Q$16=Lists!$I$19,EOMONTH(BV20,0),IF($Q$16=Lists!$I$20,EOMONTH(BV20,2),IF(OR($Q$16=Lists!$I$21,$Q$16=Lists!$I$22),EOMONTH(BV20,11),""))))))) ->  | BW21: =IF(BW20="","",IF($Q$16=Lists!$I$16,BW20,IF($Q$16=Lists!$I$17,BW20+6,IF($Q$16=Lists!$I$18,IF(DAY(BW20)=21,EOMONTH(BW20,0),BW20+9),IF($Q$16=Lists!$I$19,EOMONTH(BW20,0),IF($Q$16=Lists!$I$20,EOMONTH(BW20,2),IF(OR($Q$16=Lists!$I$21,$Q$16=Lists!$I$22),EOMONTH(BW20,11),""))))))) ->  | BX21: =IF(BX20="","",IF($Q$16=Lists!$I$16,BX20,IF($Q$16=Lists!$I$17,BX20+6,IF($Q$16=Lists!$I$18,IF(DAY(BX20)=21,EOMONTH(BX20,0),BX20+9),IF($Q$16=Lists!$I$19,EOMONTH(BX20,0),IF($Q$16=Lists!$I$20,EOMONTH(BX20,2),IF(OR($Q$16=Lists!$I$21,$Q$16=Lists!$I$22),EOMONTH(BX20,11),""))))))) ->  | BY21: =IF(BY20="","",IF($Q$16=Lists!$I$16,BY20,IF($Q$16=Lists!$I$17,BY20+6,IF($Q$16=Lists!$I$18,IF(DAY(BY20)=21,EOMONTH(BY20,0),BY20+9),IF($Q$16=Lists!$I$19,EOMONTH(BY20,0),IF($Q$16=Lists!$I$20,EOMONTH(BY20,2),IF(OR($Q$16=Lists!$I$21,$Q$16=Lists!$I$22),EOMONTH(BY20,11),""))))))) ->  | BZ21: =IF(BZ20="","",IF($Q$16=Lists!$I$16,BZ20,IF($Q$16=Lists!$I$17,BZ20+6,IF($Q$16=Lists!$I$18,IF(DAY(BZ20)=21,EOMONTH(BZ20,0),BZ20+9),IF($Q$16=Lists!$I$19,EOMONTH(BZ20,0),IF($Q$16=Lists!$I$20,EOMONTH(BZ20,2),IF(OR($Q$16=Lists!$I$21,$Q$16=Lists!$I$22),EOMONTH(BZ20,11),""))))))) ->  | CA21: =IF(CA20="","",IF($Q$16=Lists!$I$16,CA20,IF($Q$16=Lists!$I$17,CA20+6,IF($Q$16=Lists!$I$18,IF(DAY(CA20)=21,EOMONTH(CA20,0),CA20+9),IF($Q$16=Lists!$I$19,EOMONTH(CA20,0),IF($Q$16=Lists!$I$20,EOMONTH(CA20,2),IF(OR($Q$16=Lists!$I$21,$Q$16=Lists!$I$22),EOMONTH(CA20,11),""))))))) ->  | CB21: =IF(CB20="","",IF($Q$16=Lists!$I$16,CB20,IF($Q$16=Lists!$I$17,CB20+6,IF($Q$16=Lists!$I$18,IF(DAY(CB20)=21,EOMONTH(CB20,0),CB20+9),IF($Q$16=Lists!$I$19,EOMONTH(CB20,0),IF($Q$16=Lists!$I$20,EOMONTH(CB20,2),IF(OR($Q$16=Lists!$I$21,$Q$16=Lists!$I$22),EOMONTH(CB20,11),""))))))) ->  | CC21: =IF(CC20="","",IF($Q$16=Lists!$I$16,CC20,IF($Q$16=Lists!$I$17,CC20+6,IF($Q$16=Lists!$I$18,IF(DAY(CC20)=21,EOMONTH(CC20,0),CC20+9),IF($Q$16=Lists!$I$19,EOMONTH(CC20,0),IF($Q$16=Lists!$I$20,EOMONTH(CC20,2),IF(OR($Q$16=Lists!$I$21,$Q$16=Lists!$I$22),EOMONTH(CC20,11),""))))))) ->  | CD21: =IF(CD20="","",IF($Q$16=Lists!$I$16,CD20,IF($Q$16=Lists!$I$17,CD20+6,IF($Q$16=Lists!$I$18,IF(DAY(CD20)=21,EOMONTH(CD20,0),CD20+9),IF($Q$16=Lists!$I$19,EOMONTH(CD20,0),IF($Q$16=Lists!$I$20,EOMONTH(CD20,2),IF(OR($Q$16=Lists!$I$21,$Q$16=Lists!$I$22),EOMONTH(CD20,11),""))))))) ->  | CE21: =IF(CE20="","",IF($Q$16=Lists!$I$16,CE20,IF($Q$16=Lists!$I$17,CE20+6,IF($Q$16=Lists!$I$18,IF(DAY(CE20)=21,EOMONTH(CE20,0),CE20+9),IF($Q$16=Lists!$I$19,EOMONTH(CE20,0),IF($Q$16=Lists!$I$20,EOMONTH(CE20,2),IF(OR($Q$16=Lists!$I$21,$Q$16=Lists!$I$22),EOMONTH(CE20,11),""))))))) ->  | CF21: =IF(CF20="","",IF($Q$16=Lists!$I$16,CF20,IF($Q$16=Lists!$I$17,CF20+6,IF($Q$16=Lists!$I$18,IF(DAY(CF20)=21,EOMONTH(CF20,0),CF20+9),IF($Q$16=Lists!$I$19,EOMONTH(CF20,0),IF($Q$16=Lists!$I$20,EOMONTH(CF20,2),IF(OR($Q$16=Lists!$I$21,$Q$16=Lists!$I$22),EOMONTH(CF20,11),""))))))) ->  | CG21: =IF(CG20="","",IF($Q$16=Lists!$I$16,CG20,IF($Q$16=Lists!$I$17,CG20+6,IF($Q$16=Lists!$I$18,IF(DAY(CG20)=21,EOMONTH(CG20,0),CG20+9),IF($Q$16=Lists!$I$19,EOMONTH(CG20,0),IF($Q$16=Lists!$I$20,EOMONTH(CG20,2),IF(OR($Q$16=Lists!$I$21,$Q$16=Lists!$I$22),EOMONTH(CG20,11),""))))))) ->  | CH21: =IF(CH20="","",IF($Q$16=Lists!$I$16,CH20,IF($Q$16=Lists!$I$17,CH20+6,IF($Q$16=Lists!$I$18,IF(DAY(CH20)=21,EOMONTH(CH20,0),CH20+9),IF($Q$16=Lists!$I$19,EOMONTH(CH20,0),IF($Q$16=Lists!$I$20,EOMONTH(CH20,2),IF(OR($Q$16=Lists!$I$21,$Q$16=Lists!$I$22),EOMONTH(CH20,11),""))))))) ->  | CI21: =IF(CI20="","",IF($Q$16=Lists!$I$16,CI20,IF($Q$16=Lists!$I$17,CI20+6,IF($Q$16=Lists!$I$18,IF(DAY(CI20)=21,EOMONTH(CI20,0),CI20+9),IF($Q$16=Lists!$I$19,EOMONTH(CI20,0),IF($Q$16=Lists!$I$20,EOMONTH(CI20,2),IF(OR($Q$16=Lists!$I$21,$Q$16=Lists!$I$22),EOMONTH(CI20,11),""))))))) ->  | CJ21: =IF(CJ20="","",IF($Q$16=Lists!$I$16,CJ20,IF($Q$16=Lists!$I$17,CJ20+6,IF($Q$16=Lists!$I$18,IF(DAY(CJ20)=21,EOMONTH(CJ20,0),CJ20+9),IF($Q$16=Lists!$I$19,EOMONTH(CJ20,0),IF($Q$16=Lists!$I$20,EOMONTH(CJ20,2),IF(OR($Q$16=Lists!$I$21,$Q$16=Lists!$I$22),EOMONTH(CJ20,11),""))))))) ->  | CK21: =IF(CK20="","",IF($Q$16=Lists!$I$16,CK20,IF($Q$16=Lists!$I$17,CK20+6,IF($Q$16=Lists!$I$18,IF(DAY(CK20)=21,EOMONTH(CK20,0),CK20+9),IF($Q$16=Lists!$I$19,EOMONTH(CK20,0),IF($Q$16=Lists!$I$20,EOMONTH(CK20,2),IF(OR($Q$16=Lists!$I$21,$Q$16=Lists!$I$22),EOMONTH(CK20,11),""))))))) ->  | CL21: =IF(CL20="","",IF($Q$16=Lists!$I$16,CL20,IF($Q$16=Lists!$I$17,CL20+6,IF($Q$16=Lists!$I$18,IF(DAY(CL20)=21,EOMONTH(CL20,0),CL20+9),IF($Q$16=Lists!$I$19,EOMONTH(CL20,0),IF($Q$16=Lists!$I$20,EOMONTH(CL20,2),IF(OR($Q$16=Lists!$I$21,$Q$16=Lists!$I$22),EOMONTH(CL20,11),""))))))) ->  | CM21: =IF(CM20="","",IF($Q$16=Lists!$I$16,CM20,IF($Q$16=Lists!$I$17,CM20+6,IF($Q$16=Lists!$I$18,IF(DAY(CM20)=21,EOMONTH(CM20,0),CM20+9),IF($Q$16=Lists!$I$19,EOMONTH(CM20,0),IF($Q$16=Lists!$I$20,EOMONTH(CM20,2),IF(OR($Q$16=Lists!$I$21,$Q$16=Lists!$I$22),EOMONTH(CM20,11),""))))))) ->  | CN21: =IF(CN20="","",IF($Q$16=Lists!$I$16,CN20,IF($Q$16=Lists!$I$17,CN20+6,IF($Q$16=Lists!$I$18,IF(DAY(CN20)=21,EOMONTH(CN20,0),CN20+9),IF($Q$16=Lists!$I$19,EOMONTH(CN20,0),IF($Q$16=Lists!$I$20,EOMONTH(CN20,2),IF(OR($Q$16=Lists!$I$21,$Q$16=Lists!$I$22),EOMONTH(CN20,11),""))))))) ->  | CO21: =IF(CO20="","",IF($Q$16=Lists!$I$16,CO20,IF($Q$16=Lists!$I$17,CO20+6,IF($Q$16=Lists!$I$18,IF(DAY(CO20)=21,EOMONTH(CO20,0),CO20+9),IF($Q$16=Lists!$I$19,EOMONTH(CO20,0),IF($Q$16=Lists!$I$20,EOMONTH(CO20,2),IF(OR($Q$16=Lists!$I$21,$Q$16=Lists!$I$22),EOMONTH(CO20,11),""))))))) ->  | CP21: =IF(CP20="","",IF($Q$16=Lists!$I$16,CP20,IF($Q$16=Lists!$I$17,CP20+6,IF($Q$16=Lists!$I$18,IF(DAY(CP20)=21,EOMONTH(CP20,0),CP20+9),IF($Q$16=Lists!$I$19,EOMONTH(CP20,0),IF($Q$16=Lists!$I$20,EOMONTH(CP20,2),IF(OR($Q$16=Lists!$I$21,$Q$16=Lists!$I$22),EOMONTH(CP20,11),""))))))) ->  | CQ21: =IF(CQ20="","",IF($Q$16=Lists!$I$16,CQ20,IF($Q$16=Lists!$I$17,CQ20+6,IF($Q$16=Lists!$I$18,IF(DAY(CQ20)=21,EOMONTH(CQ20,0),CQ20+9),IF($Q$16=Lists!$I$19,EOMONTH(CQ20,0),IF($Q$16=Lists!$I$20,EOMONTH(CQ20,2),IF(OR($Q$16=Lists!$I$21,$Q$16=Lists!$I$22),EOMONTH(CQ20,11),""))))))) ->  | CR21: =IF(CR20="","",IF($Q$16=Lists!$I$16,CR20,IF($Q$16=Lists!$I$17,CR20+6,IF($Q$16=Lists!$I$18,IF(DAY(CR20)=21,EOMONTH(CR20,0),CR20+9),IF($Q$16=Lists!$I$19,EOMONTH(CR20,0),IF($Q$16=Lists!$I$20,EOMONTH(CR20,2),IF(OR($Q$16=Lists!$I$21,$Q$16=Lists!$I$22),EOMONTH(CR20,11),""))))))) ->  | CS21: =IF(CS20="","",IF($Q$16=Lists!$I$16,CS20,IF($Q$16=Lists!$I$17,CS20+6,IF($Q$16=Lists!$I$18,IF(DAY(CS20)=21,EOMONTH(CS20,0),CS20+9),IF($Q$16=Lists!$I$19,EOMONTH(CS20,0),IF($Q$16=Lists!$I$20,EOMONTH(CS20,2),IF(OR($Q$16=Lists!$I$21,$Q$16=Lists!$I$22),EOMONTH(CS20,11),""))))))) ->  | CT21: =IF(CT20="","",IF($Q$16=Lists!$I$16,CT20,IF($Q$16=Lists!$I$17,CT20+6,IF($Q$16=Lists!$I$18,IF(DAY(CT20)=21,EOMONTH(CT20,0),CT20+9),IF($Q$16=Lists!$I$19,EOMONTH(CT20,0),IF($Q$16=Lists!$I$20,EOMONTH(CT20,2),IF(OR($Q$16=Lists!$I$21,$Q$16=Lists!$I$22),EOMONTH(CT20,11),""))))))) ->  | CU21: =IF(CU20="","",IF($Q$16=Lists!$I$16,CU20,IF($Q$16=Lists!$I$17,CU20+6,IF($Q$16=Lists!$I$18,IF(DAY(CU20)=21,EOMONTH(CU20,0),CU20+9),IF($Q$16=Lists!$I$19,EOMONTH(CU20,0),IF($Q$16=Lists!$I$20,EOMONTH(CU20,2),IF(OR($Q$16=Lists!$I$21,$Q$16=Lists!$I$22),EOMONTH(CU20,11),""))))))) ->  | CV21: =IF(CV20="","",IF($Q$16=Lists!$I$16,CV20,IF($Q$16=Lists!$I$17,CV20+6,IF($Q$16=Lists!$I$18,IF(DAY(CV20)=21,EOMONTH(CV20,0),CV20+9),IF($Q$16=Lists!$I$19,EOMONTH(CV20,0),IF($Q$16=Lists!$I$20,EOMONTH(CV20,2),IF(OR($Q$16=Lists!$I$21,$Q$16=Lists!$I$22),EOMONTH(CV20,11),""))))))) ->  | CW21: =IF(CW20="","",IF($Q$16=Lists!$I$16,CW20,IF($Q$16=Lists!$I$17,CW20+6,IF($Q$16=Lists!$I$18,IF(DAY(CW20)=21,EOMONTH(CW20,0),CW20+9),IF($Q$16=Lists!$I$19,EOMONTH(CW20,0),IF($Q$16=Lists!$I$20,EOMONTH(CW20,2),IF(OR($Q$16=Lists!$I$21,$Q$16=Lists!$I$22),EOMONTH(CW20,11),""))))))) ->  | CX21: =IF(CX20="","",IF($Q$16=Lists!$I$16,CX20,IF($Q$16=Lists!$I$17,CX20+6,IF($Q$16=Lists!$I$18,IF(DAY(CX20)=21,EOMONTH(CX20,0),CX20+9),IF($Q$16=Lists!$I$19,EOMONTH(CX20,0),IF($Q$16=Lists!$I$20,EOMONTH(CX20,2),IF(OR($Q$16=Lists!$I$21,$Q$16=Lists!$I$22),EOMONTH(CX20,11),""))))))) ->  | CY21: =IF(CY20="","",IF($Q$16=Lists!$I$16,CY20,IF($Q$16=Lists!$I$17,CY20+6,IF($Q$16=Lists!$I$18,IF(DAY(CY20)=21,EOMONTH(CY20,0),CY20+9),IF($Q$16=Lists!$I$19,EOMONTH(CY20,0),IF($Q$16=Lists!$I$20,EOMONTH(CY20,2),IF(OR($Q$16=Lists!$I$21,$Q$16=Lists!$I$22),EOMONTH(CY20,11),""))))))) ->  | CZ21: =IF(CZ20="","",IF($Q$16=Lists!$I$16,CZ20,IF($Q$16=Lists!$I$17,CZ20+6,IF($Q$16=Lists!$I$18,IF(DAY(CZ20)=21,EOMONTH(CZ20,0),CZ20+9),IF($Q$16=Lists!$I$19,EOMONTH(CZ20,0),IF($Q$16=Lists!$I$20,EOMONTH(CZ20,2),IF(OR($Q$16=Lists!$I$21,$Q$16=Lists!$I$22),EOMONTH(CZ20,11),""))))))) ->  | DA21: =IF(DA20="","",IF($Q$16=Lists!$I$16,DA20,IF($Q$16=Lists!$I$17,DA20+6,IF($Q$16=Lists!$I$18,IF(DAY(DA20)=21,EOMONTH(DA20,0),DA20+9),IF($Q$16=Lists!$I$19,EOMONTH(DA20,0),IF($Q$16=Lists!$I$20,EOMONTH(DA20,2),IF(OR($Q$16=Lists!$I$21,$Q$16=Lists!$I$22),EOMONTH(DA20,11),""))))))) ->  | DB21: =IF(DB20="","",IF($Q$16=Lists!$I$16,DB20,IF($Q$16=Lists!$I$17,DB20+6,IF($Q$16=Lists!$I$18,IF(DAY(DB20)=21,EOMONTH(DB20,0),DB20+9),IF($Q$16=Lists!$I$19,EOMONTH(DB20,0),IF($Q$16=Lists!$I$20,EOMONTH(DB20,2),IF(OR($Q$16=Lists!$I$21,$Q$16=Lists!$I$22),EOMONTH(DB20,11),""))))))) ->  | DC21: =IF(DC20="","",IF($Q$16=Lists!$I$16,DC20,IF($Q$16=Lists!$I$17,DC20+6,IF($Q$16=Lists!$I$18,IF(DAY(DC20)=21,EOMONTH(DC20,0),DC20+9),IF($Q$16=Lists!$I$19,EOMONTH(DC20,0),IF($Q$16=Lists!$I$20,EOMONTH(DC20,2),IF(OR($Q$16=Lists!$I$21,$Q$16=Lists!$I$22),EOMONTH(DC20,11),""))))))) ->  | DD21: =IF(DD20="","",IF($Q$16=Lists!$I$16,DD20,IF($Q$16=Lists!$I$17,DD20+6,IF($Q$16=Lists!$I$18,IF(DAY(DD20)=21,EOMONTH(DD20,0),DD20+9),IF($Q$16=Lists!$I$19,EOMONTH(DD20,0),IF($Q$16=Lists!$I$20,EOMONTH(DD20,2),IF(OR($Q$16=Lists!$I$21,$Q$16=Lists!$I$22),EOMONTH(DD20,11),""))))))) ->  | DE21: =IF(DE20="","",IF($Q$16=Lists!$I$16,DE20,IF($Q$16=Lists!$I$17,DE20+6,IF($Q$16=Lists!$I$18,IF(DAY(DE20)=21,EOMONTH(DE20,0),DE20+9),IF($Q$16=Lists!$I$19,EOMONTH(DE20,0),IF($Q$16=Lists!$I$20,EOMONTH(DE20,2),IF(OR($Q$16=Lists!$I$21,$Q$16=Lists!$I$22),EOMONTH(DE20,11),""))))))) ->  | DF21: =IF(DF20="","",IF($Q$16=Lists!$I$16,DF20,IF($Q$16=Lists!$I$17,DF20+6,IF($Q$16=Lists!$I$18,IF(DAY(DF20)=21,EOMONTH(DF20,0),DF20+9),IF($Q$16=Lists!$I$19,EOMONTH(DF20,0),IF($Q$16=Lists!$I$20,EOMONTH(DF20,2),IF(OR($Q$16=Lists!$I$21,$Q$16=Lists!$I$22),EOMONTH(DF20,11),""))))))) ->  | DG21: =IF(DG20="","",IF($Q$16=Lists!$I$16,DG20,IF($Q$16=Lists!$I$17,DG20+6,IF($Q$16=Lists!$I$18,IF(DAY(DG20)=21,EOMONTH(DG20,0),DG20+9),IF($Q$16=Lists!$I$19,EOMONTH(DG20,0),IF($Q$16=Lists!$I$20,EOMONTH(DG20,2),IF(OR($Q$16=Lists!$I$21,$Q$16=Lists!$I$22),EOMONTH(DG20,11),""))))))) ->  | DH21: =IF(DH20="","",IF($Q$16=Lists!$I$16,DH20,IF($Q$16=Lists!$I$17,DH20+6,IF($Q$16=Lists!$I$18,IF(DAY(DH20)=21,EOMONTH(DH20,0),DH20+9),IF($Q$16=Lists!$I$19,EOMONTH(DH20,0),IF($Q$16=Lists!$I$20,EOMONTH(DH20,2),IF(OR($Q$16=Lists!$I$21,$Q$16=Lists!$I$22),EOMONTH(DH20,11),""))))))) ->  | DI21: =IF(DI20="","",IF($Q$16=Lists!$I$16,DI20,IF($Q$16=Lists!$I$17,DI20+6,IF($Q$16=Lists!$I$18,IF(DAY(DI20)=21,EOMONTH(DI20,0),DI20+9),IF($Q$16=Lists!$I$19,EOMONTH(DI20,0),IF($Q$16=Lists!$I$20,EOMONTH(DI20,2),IF(OR($Q$16=Lists!$I$21,$Q$16=Lists!$I$22),EOMONTH(DI20,11),""))))))) ->  | DJ21: =IF(DJ20="","",IF($Q$16=Lists!$I$16,DJ20,IF($Q$16=Lists!$I$17,DJ20+6,IF($Q$16=Lists!$I$18,IF(DAY(DJ20)=21,EOMONTH(DJ20,0),DJ20+9),IF($Q$16=Lists!$I$19,EOMONTH(DJ20,0),IF($Q$16=Lists!$I$20,EOMONTH(DJ20,2),IF(OR($Q$16=Lists!$I$21,$Q$16=Lists!$I$22),EOMONTH(DJ20,11),""))))))) ->  | DK21: =IF(DK20="","",IF($Q$16=Lists!$I$16,DK20,IF($Q$16=Lists!$I$17,DK20+6,IF($Q$16=Lists!$I$18,IF(DAY(DK20)=21,EOMONTH(DK20,0),DK20+9),IF($Q$16=Lists!$I$19,EOMONTH(DK20,0),IF($Q$16=Lists!$I$20,EOMONTH(DK20,2),IF(OR($Q$16=Lists!$I$21,$Q$16=Lists!$I$22),EOMONTH(DK20,11),""))))))) ->  | DL21: =IF(DL20="","",IF($Q$16=Lists!$I$16,DL20,IF($Q$16=Lists!$I$17,DL20+6,IF($Q$16=Lists!$I$18,IF(DAY(DL20)=21,EOMONTH(DL20,0),DL20+9),IF($Q$16=Lists!$I$19,EOMONTH(DL20,0),IF($Q$16=Lists!$I$20,EOMONTH(DL20,2),IF(OR($Q$16=Lists!$I$21,$Q$16=Lists!$I$22),EOMONTH(DL20,11),""))))))) ->  | DM21: =IF(DM20="","",IF($Q$16=Lists!$I$16,DM20,IF($Q$16=Lists!$I$17,DM20+6,IF($Q$16=Lists!$I$18,IF(DAY(DM20)=21,EOMONTH(DM20,0),DM20+9),IF($Q$16=Lists!$I$19,EOMONTH(DM20,0),IF($Q$16=Lists!$I$20,EOMONTH(DM20,2),IF(OR($Q$16=Lists!$I$21,$Q$16=Lists!$I$22),EOMONTH(DM20,11),""))))))) ->  | DN21: =IF(DN20="","",IF($Q$16=Lists!$I$16,DN20,IF($Q$16=Lists!$I$17,DN20+6,IF($Q$16=Lists!$I$18,IF(DAY(DN20)=21,EOMONTH(DN20,0),DN20+9),IF($Q$16=Lists!$I$19,EOMONTH(DN20,0),IF($Q$16=Lists!$I$20,EOMONTH(DN20,2),IF(OR($Q$16=Lists!$I$21,$Q$16=Lists!$I$22),EOMONTH(DN20,11),""))))))) ->  | DO21: =IF(DO20="","",IF($Q$16=Lists!$I$16,DO20,IF($Q$16=Lists!$I$17,DO20+6,IF($Q$16=Lists!$I$18,IF(DAY(DO20)=21,EOMONTH(DO20,0),DO20+9),IF($Q$16=Lists!$I$19,EOMONTH(DO20,0),IF($Q$16=Lists!$I$20,EOMONTH(DO20,2),IF(OR($Q$16=Lists!$I$21,$Q$16=Lists!$I$22),EOMONTH(DO20,11),""))))))) ->  | DP21: =IF(DP20="","",IF($Q$16=Lists!$I$16,DP20,IF($Q$16=Lists!$I$17,DP20+6,IF($Q$16=Lists!$I$18,IF(DAY(DP20)=21,EOMONTH(DP20,0),DP20+9),IF($Q$16=Lists!$I$19,EOMONTH(DP20,0),IF($Q$16=Lists!$I$20,EOMONTH(DP20,2),IF(OR($Q$16=Lists!$I$21,$Q$16=Lists!$I$22),EOMONTH(DP20,11),""))))))) ->  | DQ21: =IF(DQ20="","",IF($Q$16=Lists!$I$16,DQ20,IF($Q$16=Lists!$I$17,DQ20+6,IF($Q$16=Lists!$I$18,IF(DAY(DQ20)=21,EOMONTH(DQ20,0),DQ20+9),IF($Q$16=Lists!$I$19,EOMONTH(DQ20,0),IF($Q$16=Lists!$I$20,EOMONTH(DQ20,2),IF(OR($Q$16=Lists!$I$21,$Q$16=Lists!$I$22),EOMONTH(DQ20,11),""))))))) ->  | DR21: =IF(DR20="","",IF($Q$16=Lists!$I$16,DR20,IF($Q$16=Lists!$I$17,DR20+6,IF($Q$16=Lists!$I$18,IF(DAY(DR20)=21,EOMONTH(DR20,0),DR20+9),IF($Q$16=Lists!$I$19,EOMONTH(DR20,0),IF($Q$16=Lists!$I$20,EOMONTH(DR20,2),IF(OR($Q$16=Lists!$I$21,$Q$16=Lists!$I$22),EOMONTH(DR20,11),""))))))) ->  | DS21: =IF(DS20="","",IF($Q$16=Lists!$I$16,DS20,IF($Q$16=Lists!$I$17,DS20+6,IF($Q$16=Lists!$I$18,IF(DAY(DS20)=21,EOMONTH(DS20,0),DS20+9),IF($Q$16=Lists!$I$19,EOMONTH(DS20,0),IF($Q$16=Lists!$I$20,EOMONTH(DS20,2),IF(OR($Q$16=Lists!$I$21,$Q$16=Lists!$I$22),EOMONTH(DS20,11),""))))))) ->  | DT21: =IF(DT20="","",IF($Q$16=Lists!$I$16,DT20,IF($Q$16=Lists!$I$17,DT20+6,IF($Q$16=Lists!$I$18,IF(DAY(DT20)=21,EOMONTH(DT20,0),DT20+9),IF($Q$16=Lists!$I$19,EOMONTH(DT20,0),IF($Q$16=Lists!$I$20,EOMONTH(DT20,2),IF(OR($Q$16=Lists!$I$21,$Q$16=Lists!$I$22),EOMONTH(DT20,11),""))))))) ->  | DU21: =IF(DU20="","",IF($Q$16=Lists!$I$16,DU20,IF($Q$16=Lists!$I$17,DU20+6,IF($Q$16=Lists!$I$18,IF(DAY(DU20)=21,EOMONTH(DU20,0),DU20+9),IF($Q$16=Lists!$I$19,EOMONTH(DU20,0),IF($Q$16=Lists!$I$20,EOMONTH(DU20,2),IF(OR($Q$16=Lists!$I$21,$Q$16=Lists!$I$22),EOMONTH(DU20,11),""))))))) ->  | DV21: =IF(DV20="","",IF($Q$16=Lists!$I$16,DV20,IF($Q$16=Lists!$I$17,DV20+6,IF($Q$16=Lists!$I$18,IF(DAY(DV20)=21,EOMONTH(DV20,0),DV20+9),IF($Q$16=Lists!$I$19,EOMONTH(DV20,0),IF($Q$16=Lists!$I$20,EOMONTH(DV20,2),IF(OR($Q$16=Lists!$I$21,$Q$16=Lists!$I$22),EOMONTH(DV20,11),""))))))) ->  | DW21: =IF(DW20="","",IF($Q$16=Lists!$I$16,DW20,IF($Q$16=Lists!$I$17,DW20+6,IF($Q$16=Lists!$I$18,IF(DAY(DW20)=21,EOMONTH(DW20,0),DW20+9),IF($Q$16=Lists!$I$19,EOMONTH(DW20,0),IF($Q$16=Lists!$I$20,EOMONTH(DW20,2),IF(OR($Q$16=Lists!$I$21,$Q$16=Lists!$I$22),EOMONTH(DW20,11),""))))))) ->  | DX21: =IF(DX20="","",IF($Q$16=Lists!$I$16,DX20,IF($Q$16=Lists!$I$17,DX20+6,IF($Q$16=Lists!$I$18,IF(DAY(DX20)=21,EOMONTH(DX20,0),DX20+9),IF($Q$16=Lists!$I$19,EOMONTH(DX20,0),IF($Q$16=Lists!$I$20,EOMONTH(DX20,2),IF(OR($Q$16=Lists!$I$21,$Q$16=Lists!$I$22),EOMONTH(DX20,11),""))))))) ->  | DY21: =IF(DY20="","",IF($Q$16=Lists!$I$16,DY20,IF($Q$16=Lists!$I$17,DY20+6,IF($Q$16=Lists!$I$18,IF(DAY(DY20)=21,EOMONTH(DY20,0),DY20+9),IF($Q$16=Lists!$I$19,EOMONTH(DY20,0),IF($Q$16=Lists!$I$20,EOMONTH(DY20,2),IF(OR($Q$16=Lists!$I$21,$Q$16=Lists!$I$22),EOMONTH(DY20,11),""))))))) ->  | DZ21: =IF(DZ20="","",IF($Q$16=Lists!$I$16,DZ20,IF($Q$16=Lists!$I$17,DZ20+6,IF($Q$16=Lists!$I$18,IF(DAY(DZ20)=21,EOMONTH(DZ20,0),DZ20+9),IF($Q$16=Lists!$I$19,EOMONTH(DZ20,0),IF($Q$16=Lists!$I$20,EOMONTH(DZ20,2),IF(OR($Q$16=Lists!$I$21,$Q$16=Lists!$I$22),EOMONTH(DZ20,11),""))))))) ->  | EA21: =IF(EA20="","",IF($Q$16=Lists!$I$16,EA20,IF($Q$16=Lists!$I$17,EA20+6,IF($Q$16=Lists!$I$18,IF(DAY(EA20)=21,EOMONTH(EA20,0),EA20+9),IF($Q$16=Lists!$I$19,EOMONTH(EA20,0),IF($Q$16=Lists!$I$20,EOMONTH(EA20,2),IF(OR($Q$16=Lists!$I$21,$Q$16=Lists!$I$22),EOMONTH(EA20,11),""))))))) ->  | EB21: =IF(EB20="","",IF($Q$16=Lists!$I$16,EB20,IF($Q$16=Lists!$I$17,EB20+6,IF($Q$16=Lists!$I$18,IF(DAY(EB20)=21,EOMONTH(EB20,0),EB20+9),IF($Q$16=Lists!$I$19,EOMONTH(EB20,0),IF($Q$16=Lists!$I$20,EOMONTH(EB20,2),IF(OR($Q$16=Lists!$I$21,$Q$16=Lists!$I$22),EOMONTH(EB20,11),""))))))) ->  | EC21: =IF(EC20="","",IF($Q$16=Lists!$I$16,EC20,IF($Q$16=Lists!$I$17,EC20+6,IF($Q$16=Lists!$I$18,IF(DAY(EC20)=21,EOMONTH(EC20,0),EC20+9),IF($Q$16=Lists!$I$19,EOMONTH(EC20,0),IF($Q$16=Lists!$I$20,EOMONTH(EC20,2),IF(OR($Q$16=Lists!$I$21,$Q$16=Lists!$I$22),EOMONTH(EC20,11),""))))))) ->  | ED21: =IF(ED20="","",IF($Q$16=Lists!$I$16,ED20,IF($Q$16=Lists!$I$17,ED20+6,IF($Q$16=Lists!$I$18,IF(DAY(ED20)=21,EOMONTH(ED20,0),ED20+9),IF($Q$16=Lists!$I$19,EOMONTH(ED20,0),IF($Q$16=Lists!$I$20,EOMONTH(ED20,2),IF(OR($Q$16=Lists!$I$21,$Q$16=Lists!$I$22),EOMONTH(ED20,11),""))))))) ->  | EE21: =IF(EE20="","",IF($Q$16=Lists!$I$16,EE20,IF($Q$16=Lists!$I$17,EE20+6,IF($Q$16=Lists!$I$18,IF(DAY(EE20)=21,EOMONTH(EE20,0),EE20+9),IF($Q$16=Lists!$I$19,EOMONTH(EE20,0),IF($Q$16=Lists!$I$20,EOMONTH(EE20,2),IF(OR($Q$16=Lists!$I$21,$Q$16=Lists!$I$22),EOMONTH(EE20,11),""))))))) ->  | EF21: =IF(EF20="","",IF($Q$16=Lists!$I$16,EF20,IF($Q$16=Lists!$I$17,EF20+6,IF($Q$16=Lists!$I$18,IF(DAY(EF20)=21,EOMONTH(EF20,0),EF20+9),IF($Q$16=Lists!$I$19,EOMONTH(EF20,0),IF($Q$16=Lists!$I$20,EOMONTH(EF20,2),IF(OR($Q$16=Lists!$I$21,$Q$16=Lists!$I$22),EOMONTH(EF20,11),""))))))) ->  | EG21: =IF(EG20="","",IF($Q$16=Lists!$I$16,EG20,IF($Q$16=Lists!$I$17,EG20+6,IF($Q$16=Lists!$I$18,IF(DAY(EG20)=21,EOMONTH(EG20,0),EG20+9),IF($Q$16=Lists!$I$19,EOMONTH(EG20,0),IF($Q$16=Lists!$I$20,EOMONTH(EG20,2),IF(OR($Q$16=Lists!$I$21,$Q$16=Lists!$I$22),EOMONTH(EG20,11),""))))))) ->  | EH21: =IF(EH20="","",IF($Q$16=Lists!$I$16,EH20,IF($Q$16=Lists!$I$17,EH20+6,IF($Q$16=Lists!$I$18,IF(DAY(EH20)=21,EOMONTH(EH20,0),EH20+9),IF($Q$16=Lists!$I$19,EOMONTH(EH20,0),IF($Q$16=Lists!$I$20,EOMONTH(EH20,2),IF(OR($Q$16=Lists!$I$21,$Q$16=Lists!$I$22),EOMONTH(EH20,11),""))))))) ->  | EI21: =IF(EI20="","",IF($Q$16=Lists!$I$16,EI20,IF($Q$16=Lists!$I$17,EI20+6,IF($Q$16=Lists!$I$18,IF(DAY(EI20)=21,EOMONTH(EI20,0),EI20+9),IF($Q$16=Lists!$I$19,EOMONTH(EI20,0),IF($Q$16=Lists!$I$20,EOMONTH(EI20,2),IF(OR($Q$16=Lists!$I$21,$Q$16=Lists!$I$22),EOMONTH(EI20,11),""))))))) ->  | EJ21: =IF(EJ20="","",IF($Q$16=Lists!$I$16,EJ20,IF($Q$16=Lists!$I$17,EJ20+6,IF($Q$16=Lists!$I$18,IF(DAY(EJ20)=21,EOMONTH(EJ20,0),EJ20+9),IF($Q$16=Lists!$I$19,EOMONTH(EJ20,0),IF($Q$16=Lists!$I$20,EOMONTH(EJ20,2),IF(OR($Q$16=Lists!$I$21,$Q$16=Lists!$I$22),EOMONTH(EJ20,11),""))))))) ->  | EK21: =IF(EK20="","",IF($Q$16=Lists!$I$16,EK20,IF($Q$16=Lists!$I$17,EK20+6,IF($Q$16=Lists!$I$18,IF(DAY(EK20)=21,EOMONTH(EK20,0),EK20+9),IF($Q$16=Lists!$I$19,EOMONTH(EK20,0),IF($Q$16=Lists!$I$20,EOMONTH(EK20,2),IF(OR($Q$16=Lists!$I$21,$Q$16=Lists!$I$22),EOMONTH(EK20,11),""))))))) ->  | EL21: =IF(EL20="","",IF($Q$16=Lists!$I$16,EL20,IF($Q$16=Lists!$I$17,EL20+6,IF($Q$16=Lists!$I$18,IF(DAY(EL20)=21,EOMONTH(EL20,0),EL20+9),IF($Q$16=Lists!$I$19,EOMONTH(EL20,0),IF($Q$16=Lists!$I$20,EOMONTH(EL20,2),IF(OR($Q$16=Lists!$I$21,$Q$16=Lists!$I$22),EOMONTH(EL20,11),""))))))) ->  | EM21: =IF(EM20="","",IF($Q$16=Lists!$I$16,EM20,IF($Q$16=Lists!$I$17,EM20+6,IF($Q$16=Lists!$I$18,IF(DAY(EM20)=21,EOMONTH(EM20,0),EM20+9),IF($Q$16=Lists!$I$19,EOMONTH(EM20,0),IF($Q$16=Lists!$I$20,EOMONTH(EM20,2),IF(OR($Q$16=Lists!$I$21,$Q$16=Lists!$I$22),EOMONTH(EM20,11),""))))))) ->  | EN21: =IF(EN20="","",IF($Q$16=Lists!$I$16,EN20,IF($Q$16=Lists!$I$17,EN20+6,IF($Q$16=Lists!$I$18,IF(DAY(EN20)=21,EOMONTH(EN20,0),EN20+9),IF($Q$16=Lists!$I$19,EOMONTH(EN20,0),IF($Q$16=Lists!$I$20,EOMONTH(EN20,2),IF(OR($Q$16=Lists!$I$21,$Q$16=Lists!$I$22),EOMONTH(EN20,11),""))))))) ->  | EO21: =IF(EO20="","",IF($Q$16=Lists!$I$16,EO20,IF($Q$16=Lists!$I$17,EO20+6,IF($Q$16=Lists!$I$18,IF(DAY(EO20)=21,EOMONTH(EO20,0),EO20+9),IF($Q$16=Lists!$I$19,EOMONTH(EO20,0),IF($Q$16=Lists!$I$20,EOMONTH(EO20,2),IF(OR($Q$16=Lists!$I$21,$Q$16=Lists!$I$22),EOMONTH(EO20,11),""))))))) ->  | EP21: =IF(EP20="","",IF($Q$16=Lists!$I$16,EP20,IF($Q$16=Lists!$I$17,EP20+6,IF($Q$16=Lists!$I$18,IF(DAY(EP20)=21,EOMONTH(EP20,0),EP20+9),IF($Q$16=Lists!$I$19,EOMONTH(EP20,0),IF($Q$16=Lists!$I$20,EOMONTH(EP20,2),IF(OR($Q$16=Lists!$I$21,$Q$16=Lists!$I$22),EOMONTH(EP20,11),""))))))) ->  | EQ21: =IF(EQ20="","",IF($Q$16=Lists!$I$16,EQ20,IF($Q$16=Lists!$I$17,EQ20+6,IF($Q$16=Lists!$I$18,IF(DAY(EQ20)=21,EOMONTH(EQ20,0),EQ20+9),IF($Q$16=Lists!$I$19,EOMONTH(EQ20,0),IF($Q$16=Lists!$I$20,EOMONTH(EQ20,2),IF(OR($Q$16=Lists!$I$21,$Q$16=Lists!$I$22),EOMONTH(EQ20,11),""))))))) ->  | ER21: =IF(ER20="","",IF($Q$16=Lists!$I$16,ER20,IF($Q$16=Lists!$I$17,ER20+6,IF($Q$16=Lists!$I$18,IF(DAY(ER20)=21,EOMONTH(ER20,0),ER20+9),IF($Q$16=Lists!$I$19,EOMONTH(ER20,0),IF($Q$16=Lists!$I$20,EOMONTH(ER20,2),IF(OR($Q$16=Lists!$I$21,$Q$16=Lists!$I$22),EOMONTH(ER20,11),""))))))) ->  | ES21: =IF(ES20="","",IF($Q$16=Lists!$I$16,ES20,IF($Q$16=Lists!$I$17,ES20+6,IF($Q$16=Lists!$I$18,IF(DAY(ES20)=21,EOMONTH(ES20,0),ES20+9),IF($Q$16=Lists!$I$19,EOMONTH(ES20,0),IF($Q$16=Lists!$I$20,EOMONTH(ES20,2),IF(OR($Q$16=Lists!$I$21,$Q$16=Lists!$I$22),EOMONTH(ES20,11),""))))))) ->  | ET21: =IF(ET20="","",IF($Q$16=Lists!$I$16,ET20,IF($Q$16=Lists!$I$17,ET20+6,IF($Q$16=Lists!$I$18,IF(DAY(ET20)=21,EOMONTH(ET20,0),ET20+9),IF($Q$16=Lists!$I$19,EOMONTH(ET20,0),IF($Q$16=Lists!$I$20,EOMONTH(ET20,2),IF(OR($Q$16=Lists!$I$21,$Q$16=Lists!$I$22),EOMONTH(ET20,11),""))))))) ->  | EU21: =IF(EU20="","",IF($Q$16=Lists!$I$16,EU20,IF($Q$16=Lists!$I$17,EU20+6,IF($Q$16=Lists!$I$18,IF(DAY(EU20)=21,EOMONTH(EU20,0),EU20+9),IF($Q$16=Lists!$I$19,EOMONTH(EU20,0),IF($Q$16=Lists!$I$20,EOMONTH(EU20,2),IF(OR($Q$16=Lists!$I$21,$Q$16=Lists!$I$22),EOMONTH(EU20,11),""))))))) ->  | EV21: =IF(EV20="","",IF($Q$16=Lists!$I$16,EV20,IF($Q$16=Lists!$I$17,EV20+6,IF($Q$16=Lists!$I$18,IF(DAY(EV20)=21,EOMONTH(EV20,0),EV20+9),IF($Q$16=Lists!$I$19,EOMONTH(EV20,0),IF($Q$16=Lists!$I$20,EOMONTH(EV20,2),IF(OR($Q$16=Lists!$I$21,$Q$16=Lists!$I$22),EOMONTH(EV20,11),""))))))) ->  | EW21: =IF(EW20="","",IF($Q$16=Lists!$I$16,EW20,IF($Q$16=Lists!$I$17,EW20+6,IF($Q$16=Lists!$I$18,IF(DAY(EW20)=21,EOMONTH(EW20,0),EW20+9),IF($Q$16=Lists!$I$19,EOMONTH(EW20,0),IF($Q$16=Lists!$I$20,EOMONTH(EW20,2),IF(OR($Q$16=Lists!$I$21,$Q$16=Lists!$I$22),EOMONTH(EW20,11),""))))))) ->  | EX21: =IF(EX20="","",IF($Q$16=Lists!$I$16,EX20,IF($Q$16=Lists!$I$17,EX20+6,IF($Q$16=Lists!$I$18,IF(DAY(EX20)=21,EOMONTH(EX20,0),EX20+9),IF($Q$16=Lists!$I$19,EOMONTH(EX20,0),IF($Q$16=Lists!$I$20,EOMONTH(EX20,2),IF(OR($Q$16=Lists!$I$21,$Q$16=Lists!$I$22),EOMONTH(EX20,11),""))))))) ->  | EY21: =IF(EY20="","",IF($Q$16=Lists!$I$16,EY20,IF($Q$16=Lists!$I$17,EY20+6,IF($Q$16=Lists!$I$18,IF(DAY(EY20)=21,EOMONTH(EY20,0),EY20+9),IF($Q$16=Lists!$I$19,EOMONTH(EY20,0),IF($Q$16=Lists!$I$20,EOMONTH(EY20,2),IF(OR($Q$16=Lists!$I$21,$Q$16=Lists!$I$22),EOMONTH(EY20,11),""))))))) ->  | EZ21: =IF(EZ20="","",IF($Q$16=Lists!$I$16,EZ20,IF($Q$16=Lists!$I$17,EZ20+6,IF($Q$16=Lists!$I$18,IF(DAY(EZ20)=21,EOMONTH(EZ20,0),EZ20+9),IF($Q$16=Lists!$I$19,EOMONTH(EZ20,0),IF($Q$16=Lists!$I$20,EOMONTH(EZ20,2),IF(OR($Q$16=Lists!$I$21,$Q$16=Lists!$I$22),EOMONTH(EZ20,11),""))))))) ->  | FA21: =IF(FA20="","",IF($Q$16=Lists!$I$16,FA20,IF($Q$16=Lists!$I$17,FA20+6,IF($Q$16=Lists!$I$18,IF(DAY(FA20)=21,EOMONTH(FA20,0),FA20+9),IF($Q$16=Lists!$I$19,EOMONTH(FA20,0),IF($Q$16=Lists!$I$20,EOMONTH(FA20,2),IF(OR($Q$16=Lists!$I$21,$Q$16=Lists!$I$22),EOMONTH(FA20,11),""))))))) ->  | FB21: =IF(FB20="","",IF($Q$16=Lists!$I$16,FB20,IF($Q$16=Lists!$I$17,FB20+6,IF($Q$16=Lists!$I$18,IF(DAY(FB20)=21,EOMONTH(FB20,0),FB20+9),IF($Q$16=Lists!$I$19,EOMONTH(FB20,0),IF($Q$16=Lists!$I$20,EOMONTH(FB20,2),IF(OR($Q$16=Lists!$I$21,$Q$16=Lists!$I$22),EOMONTH(FB20,11),""))))))) ->  | FC21: =IF(FC20="","",IF($Q$16=Lists!$I$16,FC20,IF($Q$16=Lists!$I$17,FC20+6,IF($Q$16=Lists!$I$18,IF(DAY(FC20)=21,EOMONTH(FC20,0),FC20+9),IF($Q$16=Lists!$I$19,EOMONTH(FC20,0),IF($Q$16=Lists!$I$20,EOMONTH(FC20,2),IF(OR($Q$16=Lists!$I$21,$Q$16=Lists!$I$22),EOMONTH(FC20,11),""))))))) ->  | FD21: =IF(FD20="","",IF($Q$16=Lists!$I$16,FD20,IF($Q$16=Lists!$I$17,FD20+6,IF($Q$16=Lists!$I$18,IF(DAY(FD20)=21,EOMONTH(FD20,0),FD20+9),IF($Q$16=Lists!$I$19,EOMONTH(FD20,0),IF($Q$16=Lists!$I$20,EOMONTH(FD20,2),IF(OR($Q$16=Lists!$I$21,$Q$16=Lists!$I$22),EOMONTH(FD20,11),""))))))) ->  | FE21: =IF(FE20="","",IF($Q$16=Lists!$I$16,FE20,IF($Q$16=Lists!$I$17,FE20+6,IF($Q$16=Lists!$I$18,IF(DAY(FE20)=21,EOMONTH(FE20,0),FE20+9),IF($Q$16=Lists!$I$19,EOMONTH(FE20,0),IF($Q$16=Lists!$I$20,EOMONTH(FE20,2),IF(OR($Q$16=Lists!$I$21,$Q$16=Lists!$I$22),EOMONTH(FE20,11),""))))))) ->  | FF21: =IF(FF20="","",IF($Q$16=Lists!$I$16,FF20,IF($Q$16=Lists!$I$17,FF20+6,IF($Q$16=Lists!$I$18,IF(DAY(FF20)=21,EOMONTH(FF20,0),FF20+9),IF($Q$16=Lists!$I$19,EOMONTH(FF20,0),IF($Q$16=Lists!$I$20,EOMONTH(FF20,2),IF(OR($Q$16=Lists!$I$21,$Q$16=Lists!$I$22),EOMONTH(FF20,11),""))))))) ->  | FG21: =IF(FG20="","",IF($Q$16=Lists!$I$16,FG20,IF($Q$16=Lists!$I$17,FG20+6,IF($Q$16=Lists!$I$18,IF(DAY(FG20)=21,EOMONTH(FG20,0),FG20+9),IF($Q$16=Lists!$I$19,EOMONTH(FG20,0),IF($Q$16=Lists!$I$20,EOMONTH(FG20,2),IF(OR($Q$16=Lists!$I$21,$Q$16=Lists!$I$22),EOMONTH(FG20,11),""))))))) ->  | FH21: =IF(FH20="","",IF($Q$16=Lists!$I$16,FH20,IF($Q$16=Lists!$I$17,FH20+6,IF($Q$16=Lists!$I$18,IF(DAY(FH20)=21,EOMONTH(FH20,0),FH20+9),IF($Q$16=Lists!$I$19,EOMONTH(FH20,0),IF($Q$16=Lists!$I$20,EOMONTH(FH20,2),IF(OR($Q$16=Lists!$I$21,$Q$16=Lists!$I$22),EOMONTH(FH20,11),""))))))) ->  | FI21: =IF(FI20="","",IF($Q$16=Lists!$I$16,FI20,IF($Q$16=Lists!$I$17,FI20+6,IF($Q$16=Lists!$I$18,IF(DAY(FI20)=21,EOMONTH(FI20,0),FI20+9),IF($Q$16=Lists!$I$19,EOMONTH(FI20,0),IF($Q$16=Lists!$I$20,EOMONTH(FI20,2),IF(OR($Q$16=Lists!$I$21,$Q$16=Lists!$I$22),EOMONTH(FI20,11),""))))))) ->  | FJ21: =IF(FJ20="","",IF($Q$16=Lists!$I$16,FJ20,IF($Q$16=Lists!$I$17,FJ20+6,IF($Q$16=Lists!$I$18,IF(DAY(FJ20)=21,EOMONTH(FJ20,0),FJ20+9),IF($Q$16=Lists!$I$19,EOMONTH(FJ20,0),IF($Q$16=Lists!$I$20,EOMONTH(FJ20,2),IF(OR($Q$16=Lists!$I$21,$Q$16=Lists!$I$22),EOMONTH(FJ20,11),""))))))) ->  | FK21: =IF(FK20="","",IF($Q$16=Lists!$I$16,FK20,IF($Q$16=Lists!$I$17,FK20+6,IF($Q$16=Lists!$I$18,IF(DAY(FK20)=21,EOMONTH(FK20,0),FK20+9),IF($Q$16=Lists!$I$19,EOMONTH(FK20,0),IF($Q$16=Lists!$I$20,EOMONTH(FK20,2),IF(OR($Q$16=Lists!$I$21,$Q$16=Lists!$I$22),EOMONTH(FK20,11),""))))))) ->  | FL21: =IF(FL20="","",IF($Q$16=Lists!$I$16,FL20,IF($Q$16=Lists!$I$17,FL20+6,IF($Q$16=Lists!$I$18,IF(DAY(FL20)=21,EOMONTH(FL20,0),FL20+9),IF($Q$16=Lists!$I$19,EOMONTH(FL20,0),IF($Q$16=Lists!$I$20,EOMONTH(FL20,2),IF(OR($Q$16=Lists!$I$21,$Q$16=Lists!$I$22),EOMONTH(FL20,11),""))))))) ->  | FM21: =IF(FM20="","",IF($Q$16=Lists!$I$16,FM20,IF($Q$16=Lists!$I$17,FM20+6,IF($Q$16=Lists!$I$18,IF(DAY(FM20)=21,EOMONTH(FM20,0),FM20+9),IF($Q$16=Lists!$I$19,EOMONTH(FM20,0),IF($Q$16=Lists!$I$20,EOMONTH(FM20,2),IF(OR($Q$16=Lists!$I$21,$Q$16=Lists!$I$22),EOMONTH(FM20,11),""))))))) ->  | FN21: =IF(FN20="","",IF($Q$16=Lists!$I$16,FN20,IF($Q$16=Lists!$I$17,FN20+6,IF($Q$16=Lists!$I$18,IF(DAY(FN20)=21,EOMONTH(FN20,0),FN20+9),IF($Q$16=Lists!$I$19,EOMONTH(FN20,0),IF($Q$16=Lists!$I$20,EOMONTH(FN20,2),IF(OR($Q$16=Lists!$I$21,$Q$16=Lists!$I$22),EOMONTH(FN20,11),""))))))) ->  | FO21: =IF(FO20="","",IF($Q$16=Lists!$I$16,FO20,IF($Q$16=Lists!$I$17,FO20+6,IF($Q$16=Lists!$I$18,IF(DAY(FO20)=21,EOMONTH(FO20,0),FO20+9),IF($Q$16=Lists!$I$19,EOMONTH(FO20,0),IF($Q$16=Lists!$I$20,EOMONTH(FO20,2),IF(OR($Q$16=Lists!$I$21,$Q$16=Lists!$I$22),EOMONTH(FO20,11),""))))))) ->  | FP21: =IF(FP20="","",IF($Q$16=Lists!$I$16,FP20,IF($Q$16=Lists!$I$17,FP20+6,IF($Q$16=Lists!$I$18,IF(DAY(FP20)=21,EOMONTH(FP20,0),FP20+9),IF($Q$16=Lists!$I$19,EOMONTH(FP20,0),IF($Q$16=Lists!$I$20,EOMONTH(FP20,2),IF(OR($Q$16=Lists!$I$21,$Q$16=Lists!$I$22),EOMONTH(FP20,11),""))))))) ->  | FQ21: =IF(FQ20="","",IF($Q$16=Lists!$I$16,FQ20,IF($Q$16=Lists!$I$17,FQ20+6,IF($Q$16=Lists!$I$18,IF(DAY(FQ20)=21,EOMONTH(FQ20,0),FQ20+9),IF($Q$16=Lists!$I$19,EOMONTH(FQ20,0),IF($Q$16=Lists!$I$20,EOMONTH(FQ20,2),IF(OR($Q$16=Lists!$I$21,$Q$16=Lists!$I$22),EOMONTH(FQ20,11),""))))))) ->  | FR21: =IF(FR20="","",IF($Q$16=Lists!$I$16,FR20,IF($Q$16=Lists!$I$17,FR20+6,IF($Q$16=Lists!$I$18,IF(DAY(FR20)=21,EOMONTH(FR20,0),FR20+9),IF($Q$16=Lists!$I$19,EOMONTH(FR20,0),IF($Q$16=Lists!$I$20,EOMONTH(FR20,2),IF(OR($Q$16=Lists!$I$21,$Q$16=Lists!$I$22),EOMONTH(FR20,11),""))))))) ->  | FS21: =IF(FS20="","",IF($Q$16=Lists!$I$16,FS20,IF($Q$16=Lists!$I$17,FS20+6,IF($Q$16=Lists!$I$18,IF(DAY(FS20)=21,EOMONTH(FS20,0),FS20+9),IF($Q$16=Lists!$I$19,EOMONTH(FS20,0),IF($Q$16=Lists!$I$20,EOMONTH(FS20,2),IF(OR($Q$16=Lists!$I$21,$Q$16=Lists!$I$22),EOMONTH(FS20,11),""))))))) ->  | FT21: =IF(FT20="","",IF($Q$16=Lists!$I$16,FT20,IF($Q$16=Lists!$I$17,FT20+6,IF($Q$16=Lists!$I$18,IF(DAY(FT20)=21,EOMONTH(FT20,0),FT20+9),IF($Q$16=Lists!$I$19,EOMONTH(FT20,0),IF($Q$16=Lists!$I$20,EOMONTH(FT20,2),IF(OR($Q$16=Lists!$I$21,$Q$16=Lists!$I$22),EOMONTH(FT20,11),""))))))) ->  | FU21: =IF(FU20="","",IF($Q$16=Lists!$I$16,FU20,IF($Q$16=Lists!$I$17,FU20+6,IF($Q$16=Lists!$I$18,IF(DAY(FU20)=21,EOMONTH(FU20,0),FU20+9),IF($Q$16=Lists!$I$19,EOMONTH(FU20,0),IF($Q$16=Lists!$I$20,EOMONTH(FU20,2),IF(OR($Q$16=Lists!$I$21,$Q$16=Lists!$I$22),EOMONTH(FU20,11),""))))))) ->  | FV21: =IF(FV20="","",IF($Q$16=Lists!$I$16,FV20,IF($Q$16=Lists!$I$17,FV20+6,IF($Q$16=Lists!$I$18,IF(DAY(FV20)=21,EOMONTH(FV20,0),FV20+9),IF($Q$16=Lists!$I$19,EOMONTH(FV20,0),IF($Q$16=Lists!$I$20,EOMONTH(FV20,2),IF(OR($Q$16=Lists!$I$21,$Q$16=Lists!$I$22),EOMONTH(FV20,11),""))))))) ->  | FW21: =IF(FW20="","",IF($Q$16=Lists!$I$16,FW20,IF($Q$16=Lists!$I$17,FW20+6,IF($Q$16=Lists!$I$18,IF(DAY(FW20)=21,EOMONTH(FW20,0),FW20+9),IF($Q$16=Lists!$I$19,EOMONTH(FW20,0),IF($Q$16=Lists!$I$20,EOMONTH(FW20,2),IF(OR($Q$16=Lists!$I$21,$Q$16=Lists!$I$22),EOMONTH(FW20,11),""))))))) ->  | FX21: =IF(FX20="","",IF($Q$16=Lists!$I$16,FX20,IF($Q$16=Lists!$I$17,FX20+6,IF($Q$16=Lists!$I$18,IF(DAY(FX20)=21,EOMONTH(FX20,0),FX20+9),IF($Q$16=Lists!$I$19,EOMONTH(FX20,0),IF($Q$16=Lists!$I$20,EOMONTH(FX20,2),IF(OR($Q$16=Lists!$I$21,$Q$16=Lists!$I$22),EOMONTH(FX20,11),""))))))) ->  | FY21: =IF(FY20="","",IF($Q$16=Lists!$I$16,FY20,IF($Q$16=Lists!$I$17,FY20+6,IF($Q$16=Lists!$I$18,IF(DAY(FY20)=21,EOMONTH(FY20,0),FY20+9),IF($Q$16=Lists!$I$19,EOMONTH(FY20,0),IF($Q$16=Lists!$I$20,EOMONTH(FY20,2),IF(OR($Q$16=Lists!$I$21,$Q$16=Lists!$I$22),EOMONTH(FY20,11),""))))))) ->  | FZ21: =IF(FZ20="","",IF($Q$16=Lists!$I$16,FZ20,IF($Q$16=Lists!$I$17,FZ20+6,IF($Q$16=Lists!$I$18,IF(DAY(FZ20)=21,EOMONTH(FZ20,0),FZ20+9),IF($Q$16=Lists!$I$19,EOMONTH(FZ20,0),IF($Q$16=Lists!$I$20,EOMONTH(FZ20,2),IF(OR($Q$16=Lists!$I$21,$Q$16=Lists!$I$22),EOMONTH(FZ20,11),""))))))) ->  | GA21: =IF(GA20="","",IF($Q$16=Lists!$I$16,GA20,IF($Q$16=Lists!$I$17,GA20+6,IF($Q$16=Lists!$I$18,IF(DAY(GA20)=21,EOMONTH(GA20,0),GA20+9),IF($Q$16=Lists!$I$19,EOMONTH(GA20,0),IF($Q$16=Lists!$I$20,EOMONTH(GA20,2),IF(OR($Q$16=Lists!$I$21,$Q$16=Lists!$I$22),EOMONTH(GA20,11),""))))))) ->  | GB21: =IF(GB20="","",IF($Q$16=Lists!$I$16,GB20,IF($Q$16=Lists!$I$17,GB20+6,IF($Q$16=Lists!$I$18,IF(DAY(GB20)=21,EOMONTH(GB20,0),GB20+9),IF($Q$16=Lists!$I$19,EOMONTH(GB20,0),IF($Q$16=Lists!$I$20,EOMONTH(GB20,2),IF(OR($Q$16=Lists!$I$21,$Q$16=Lists!$I$22),EOMONTH(GB20,11),""))))))) ->  | GC21: =IF(GC20="","",IF($Q$16=Lists!$I$16,GC20,IF($Q$16=Lists!$I$17,GC20+6,IF($Q$16=Lists!$I$18,IF(DAY(GC20)=21,EOMONTH(GC20,0),GC20+9),IF($Q$16=Lists!$I$19,EOMONTH(GC20,0),IF($Q$16=Lists!$I$20,EOMONTH(GC20,2),IF(OR($Q$16=Lists!$I$21,$Q$16=Lists!$I$22),EOMONTH(GC20,11),""))))))) ->  | GD21: =IF(GD20="","",IF($Q$16=Lists!$I$16,GD20,IF($Q$16=Lists!$I$17,GD20+6,IF($Q$16=Lists!$I$18,IF(DAY(GD20)=21,EOMONTH(GD20,0),GD20+9),IF($Q$16=Lists!$I$19,EOMONTH(GD20,0),IF($Q$16=Lists!$I$20,EOMONTH(GD20,2),IF(OR($Q$16=Lists!$I$21,$Q$16=Lists!$I$22),EOMONTH(GD20,11),""))))))) ->  | GE21: =IF(GE20="","",IF($Q$16=Lists!$I$16,GE20,IF($Q$16=Lists!$I$17,GE20+6,IF($Q$16=Lists!$I$18,IF(DAY(GE20)=21,EOMONTH(GE20,0),GE20+9),IF($Q$16=Lists!$I$19,EOMONTH(GE20,0),IF($Q$16=Lists!$I$20,EOMONTH(GE20,2),IF(OR($Q$16=Lists!$I$21,$Q$16=Lists!$I$22),EOMONTH(GE20,11),""))))))) ->  | GF21: =IF(GF20="","",IF($Q$16=Lists!$I$16,GF20,IF($Q$16=Lists!$I$17,GF20+6,IF($Q$16=Lists!$I$18,IF(DAY(GF20)=21,EOMONTH(GF20,0),GF20+9),IF($Q$16=Lists!$I$19,EOMONTH(GF20,0),IF($Q$16=Lists!$I$20,EOMONTH(GF20,2),IF(OR($Q$16=Lists!$I$21,$Q$16=Lists!$I$22),EOMONTH(GF20,11),""))))))) ->  | GG21: =IF(GG20="","",IF($Q$16=Lists!$I$16,GG20,IF($Q$16=Lists!$I$17,GG20+6,IF($Q$16=Lists!$I$18,IF(DAY(GG20)=21,EOMONTH(GG20,0),GG20+9),IF($Q$16=Lists!$I$19,EOMONTH(GG20,0),IF($Q$16=Lists!$I$20,EOMONTH(GG20,2),IF(OR($Q$16=Lists!$I$21,$Q$16=Lists!$I$22),EOMONTH(GG20,11),""))))))) ->  | GH21: =IF(GH20="","",IF($Q$16=Lists!$I$16,GH20,IF($Q$16=Lists!$I$17,GH20+6,IF($Q$16=Lists!$I$18,IF(DAY(GH20)=21,EOMONTH(GH20,0),GH20+9),IF($Q$16=Lists!$I$19,EOMONTH(GH20,0),IF($Q$16=Lists!$I$20,EOMONTH(GH20,2),IF(OR($Q$16=Lists!$I$21,$Q$16=Lists!$I$22),EOMONTH(GH20,11),""))))))) ->  | GI21: =IF(GI20="","",IF($Q$16=Lists!$I$16,GI20,IF($Q$16=Lists!$I$17,GI20+6,IF($Q$16=Lists!$I$18,IF(DAY(GI20)=21,EOMONTH(GI20,0),GI20+9),IF($Q$16=Lists!$I$19,EOMONTH(GI20,0),IF($Q$16=Lists!$I$20,EOMONTH(GI20,2),IF(OR($Q$16=Lists!$I$21,$Q$16=Lists!$I$22),EOMONTH(GI20,11),""))))))) ->  | GJ21: =IF(GJ20="","",IF($Q$16=Lists!$I$16,GJ20,IF($Q$16=Lists!$I$17,GJ20+6,IF($Q$16=Lists!$I$18,IF(DAY(GJ20)=21,EOMONTH(GJ20,0),GJ20+9),IF($Q$16=Lists!$I$19,EOMONTH(GJ20,0),IF($Q$16=Lists!$I$20,EOMONTH(GJ20,2),IF(OR($Q$16=Lists!$I$21,$Q$16=Lists!$I$22),EOMONTH(GJ20,11),""))))))) ->  | GK21: =IF(GK20="","",IF($Q$16=Lists!$I$16,GK20,IF($Q$16=Lists!$I$17,GK20+6,IF($Q$16=Lists!$I$18,IF(DAY(GK20)=21,EOMONTH(GK20,0),GK20+9),IF($Q$16=Lists!$I$19,EOMONTH(GK20,0),IF($Q$16=Lists!$I$20,EOMONTH(GK20,2),IF(OR($Q$16=Lists!$I$21,$Q$16=Lists!$I$22),EOMONTH(GK20,11),""))))))) ->  | GL21: =IF(GL20="","",IF($Q$16=Lists!$I$16,GL20,IF($Q$16=Lists!$I$17,GL20+6,IF($Q$16=Lists!$I$18,IF(DAY(GL20)=21,EOMONTH(GL20,0),GL20+9),IF($Q$16=Lists!$I$19,EOMONTH(GL20,0),IF($Q$16=Lists!$I$20,EOMONTH(GL20,2),IF(OR($Q$16=Lists!$I$21,$Q$16=Lists!$I$22),EOMONTH(GL20,11),""))))))) ->  | GM21: =IF(GM20="","",IF($Q$16=Lists!$I$16,GM20,IF($Q$16=Lists!$I$17,GM20+6,IF($Q$16=Lists!$I$18,IF(DAY(GM20)=21,EOMONTH(GM20,0),GM20+9),IF($Q$16=Lists!$I$19,EOMONTH(GM20,0),IF($Q$16=Lists!$I$20,EOMONTH(GM20,2),IF(OR($Q$16=Lists!$I$21,$Q$16=Lists!$I$22),EOMONTH(GM20,11),""))))))) ->  | GN21: =IF(GN20="","",IF($Q$16=Lists!$I$16,GN20,IF($Q$16=Lists!$I$17,GN20+6,IF($Q$16=Lists!$I$18,IF(DAY(GN20)=21,EOMONTH(GN20,0),GN20+9),IF($Q$16=Lists!$I$19,EOMONTH(GN20,0),IF($Q$16=Lists!$I$20,EOMONTH(GN20,2),IF(OR($Q$16=Lists!$I$21,$Q$16=Lists!$I$22),EOMONTH(GN20,11),""))))))) ->  | GO21: =IF(GO20="","",IF($Q$16=Lists!$I$16,GO20,IF($Q$16=Lists!$I$17,GO20+6,IF($Q$16=Lists!$I$18,IF(DAY(GO20)=21,EOMONTH(GO20,0),GO20+9),IF($Q$16=Lists!$I$19,EOMONTH(GO20,0),IF($Q$16=Lists!$I$20,EOMONTH(GO20,2),IF(OR($Q$16=Lists!$I$21,$Q$16=Lists!$I$22),EOMONTH(GO20,11),""))))))) ->  | GP21: =IF(GP20="","",IF($Q$16=Lists!$I$16,GP20,IF($Q$16=Lists!$I$17,GP20+6,IF($Q$16=Lists!$I$18,IF(DAY(GP20)=21,EOMONTH(GP20,0),GP20+9),IF($Q$16=Lists!$I$19,EOMONTH(GP20,0),IF($Q$16=Lists!$I$20,EOMONTH(GP20,2),IF(OR($Q$16=Lists!$I$21,$Q$16=Lists!$I$22),EOMONTH(GP20,11),""))))))) ->  | GQ21: =IF(GQ20="","",IF($Q$16=Lists!$I$16,GQ20,IF($Q$16=Lists!$I$17,GQ20+6,IF($Q$16=Lists!$I$18,IF(DAY(GQ20)=21,EOMONTH(GQ20,0),GQ20+9),IF($Q$16=Lists!$I$19,EOMONTH(GQ20,0),IF($Q$16=Lists!$I$20,EOMONTH(GQ20,2),IF(OR($Q$16=Lists!$I$21,$Q$16=Lists!$I$22),EOMONTH(GQ20,11),""))))))) ->  | GR21: =IF(GR20="","",IF($Q$16=Lists!$I$16,GR20,IF($Q$16=Lists!$I$17,GR20+6,IF($Q$16=Lists!$I$18,IF(DAY(GR20)=21,EOMONTH(GR20,0),GR20+9),IF($Q$16=Lists!$I$19,EOMONTH(GR20,0),IF($Q$16=Lists!$I$20,EOMONTH(GR20,2),IF(OR($Q$16=Lists!$I$21,$Q$16=Lists!$I$22),EOMONTH(GR20,11),""))))))) ->  | GS21: =IF(GS20="","",IF($Q$16=Lists!$I$16,GS20,IF($Q$16=Lists!$I$17,GS20+6,IF($Q$16=Lists!$I$18,IF(DAY(GS20)=21,EOMONTH(GS20,0),GS20+9),IF($Q$16=Lists!$I$19,EOMONTH(GS20,0),IF($Q$16=Lists!$I$20,EOMONTH(GS20,2),IF(OR($Q$16=Lists!$I$21,$Q$16=Lists!$I$22),EOMONTH(GS20,11),""))))))) ->  | GT21: =IF(GT20="","",IF($Q$16=Lists!$I$16,GT20,IF($Q$16=Lists!$I$17,GT20+6,IF($Q$16=Lists!$I$18,IF(DAY(GT20)=21,EOMONTH(GT20,0),GT20+9),IF($Q$16=Lists!$I$19,EOMONTH(GT20,0),IF($Q$16=Lists!$I$20,EOMONTH(GT20,2),IF(OR($Q$16=Lists!$I$21,$Q$16=Lists!$I$22),EOMONTH(GT20,11),""))))))) ->  | GU21: =IF(GU20="","",IF($Q$16=Lists!$I$16,GU20,IF($Q$16=Lists!$I$17,GU20+6,IF($Q$16=Lists!$I$18,IF(DAY(GU20)=21,EOMONTH(GU20,0),GU20+9),IF($Q$16=Lists!$I$19,EOMONTH(GU20,0),IF($Q$16=Lists!$I$20,EOMONTH(GU20,2),IF(OR($Q$16=Lists!$I$21,$Q$16=Lists!$I$22),EOMONTH(GU20,11),""))))))) ->  | GV21: =IF(GV20="","",IF($Q$16=Lists!$I$16,GV20,IF($Q$16=Lists!$I$17,GV20+6,IF($Q$16=Lists!$I$18,IF(DAY(GV20)=21,EOMONTH(GV20,0),GV20+9),IF($Q$16=Lists!$I$19,EOMONTH(GV20,0),IF($Q$16=Lists!$I$20,EOMONTH(GV20,2),IF(OR($Q$16=Lists!$I$21,$Q$16=Lists!$I$22),EOMONTH(GV20,11),""))))))) ->  | GW21: =IF(GW20="","",IF($Q$16=Lists!$I$16,GW20,IF($Q$16=Lists!$I$17,GW20+6,IF($Q$16=Lists!$I$18,IF(DAY(GW20)=21,EOMONTH(GW20,0),GW20+9),IF($Q$16=Lists!$I$19,EOMONTH(GW20,0),IF($Q$16=Lists!$I$20,EOMONTH(GW20,2),IF(OR($Q$16=Lists!$I$21,$Q$16=Lists!$I$22),EOMONTH(GW20,11),""))))))) ->  | GX21: =IF(GX20="","",IF($Q$16=Lists!$I$16,GX20,IF($Q$16=Lists!$I$17,GX20+6,IF($Q$16=Lists!$I$18,IF(DAY(GX20)=21,EOMONTH(GX20,0),GX20+9),IF($Q$16=Lists!$I$19,EOMONTH(GX20,0),IF($Q$16=Lists!$I$20,EOMONTH(GX20,2),IF(OR($Q$16=Lists!$I$21,$Q$16=Lists!$I$22),EOMONTH(GX20,11),""))))))) ->  | GY21: =IF(GY20="","",IF($Q$16=Lists!$I$16,GY20,IF($Q$16=Lists!$I$17,GY20+6,IF($Q$16=Lists!$I$18,IF(DAY(GY20)=21,EOMONTH(GY20,0),GY20+9),IF($Q$16=Lists!$I$19,EOMONTH(GY20,0),IF($Q$16=Lists!$I$20,EOMONTH(GY20,2),IF(OR($Q$16=Lists!$I$21,$Q$16=Lists!$I$22),EOMONTH(GY20,11),""))))))) ->  | GZ21: =IF(GZ20="","",IF($Q$16=Lists!$I$16,GZ20,IF($Q$16=Lists!$I$17,GZ20+6,IF($Q$16=Lists!$I$18,IF(DAY(GZ20)=21,EOMONTH(GZ20,0),GZ20+9),IF($Q$16=Lists!$I$19,EOMONTH(GZ20,0),IF($Q$16=Lists!$I$20,EOMONTH(GZ20,2),IF(OR($Q$16=Lists!$I$21,$Q$16=Lists!$I$22),EOMONTH(GZ20,11),""))))))) ->  | HA21: =IF(HA20="","",IF($Q$16=Lists!$I$16,HA20,IF($Q$16=Lists!$I$17,HA20+6,IF($Q$16=Lists!$I$18,IF(DAY(HA20)=21,EOMONTH(HA20,0),HA20+9),IF($Q$16=Lists!$I$19,EOMONTH(HA20,0),IF($Q$16=Lists!$I$20,EOMONTH(HA20,2),IF(OR($Q$16=Lists!$I$21,$Q$16=Lists!$I$22),EOMONTH(HA20,11),""))))))) ->  | HB21: =IF(HB20="","",IF($Q$16=Lists!$I$16,HB20,IF($Q$16=Lists!$I$17,HB20+6,IF($Q$16=Lists!$I$18,IF(DAY(HB20)=21,EOMONTH(HB20,0),HB20+9),IF($Q$16=Lists!$I$19,EOMONTH(HB20,0),IF($Q$16=Lists!$I$20,EOMONTH(HB20,2),IF(OR($Q$16=Lists!$I$21,$Q$16=Lists!$I$22),EOMONTH(HB20,11),""))))))) ->  | HC21: =IF(HC20="","",IF($Q$16=Lists!$I$16,HC20,IF($Q$16=Lists!$I$17,HC20+6,IF($Q$16=Lists!$I$18,IF(DAY(HC20)=21,EOMONTH(HC20,0),HC20+9),IF($Q$16=Lists!$I$19,EOMONTH(HC20,0),IF($Q$16=Lists!$I$20,EOMONTH(HC20,2),IF(OR($Q$16=Lists!$I$21,$Q$16=Lists!$I$22),EOMONTH(HC20,11),""))))))) ->  | HD21: =IF(HD20="","",IF($Q$16=Lists!$I$16,HD20,IF($Q$16=Lists!$I$17,HD20+6,IF($Q$16=Lists!$I$18,IF(DAY(HD20)=21,EOMONTH(HD20,0),HD20+9),IF($Q$16=Lists!$I$19,EOMONTH(HD20,0),IF($Q$16=Lists!$I$20,EOMONTH(HD20,2),IF(OR($Q$16=Lists!$I$21,$Q$16=Lists!$I$22),EOMONTH(HD20,11),""))))))) ->  | HE21: =IF(HE20="","",IF($Q$16=Lists!$I$16,HE20,IF($Q$16=Lists!$I$17,HE20+6,IF($Q$16=Lists!$I$18,IF(DAY(HE20)=21,EOMONTH(HE20,0),HE20+9),IF($Q$16=Lists!$I$19,EOMONTH(HE20,0),IF($Q$16=Lists!$I$20,EOMONTH(HE20,2),IF(OR($Q$16=Lists!$I$21,$Q$16=Lists!$I$22),EOMONTH(HE20,11),""))))))) ->  | HF21: =IF(HF20="","",IF($Q$16=Lists!$I$16,HF20,IF($Q$16=Lists!$I$17,HF20+6,IF($Q$16=Lists!$I$18,IF(DAY(HF20)=21,EOMONTH(HF20,0),HF20+9),IF($Q$16=Lists!$I$19,EOMONTH(HF20,0),IF($Q$16=Lists!$I$20,EOMONTH(HF20,2),IF(OR($Q$16=Lists!$I$21,$Q$16=Lists!$I$22),EOMONTH(HF20,11),""))))))) ->  | HG21: =IF(HG20="","",IF($Q$16=Lists!$I$16,HG20,IF($Q$16=Lists!$I$17,HG20+6,IF($Q$16=Lists!$I$18,IF(DAY(HG20)=21,EOMONTH(HG20,0),HG20+9),IF($Q$16=Lists!$I$19,EOMONTH(HG20,0),IF($Q$16=Lists!$I$20,EOMONTH(HG20,2),IF(OR($Q$16=Lists!$I$21,$Q$16=Lists!$I$22),EOMONTH(HG20,11),""))))))) ->  | HH21: =IF(HH20="","",IF($Q$16=Lists!$I$16,HH20,IF($Q$16=Lists!$I$17,HH20+6,IF($Q$16=Lists!$I$18,IF(DAY(HH20)=21,EOMONTH(HH20,0),HH20+9),IF($Q$16=Lists!$I$19,EOMONTH(HH20,0),IF($Q$16=Lists!$I$20,EOMONTH(HH20,2),IF(OR($Q$16=Lists!$I$21,$Q$16=Lists!$I$22),EOMONTH(HH20,11),""))))))) ->  | HI21: =IF(HI20="","",IF($Q$16=Lists!$I$16,HI20,IF($Q$16=Lists!$I$17,HI20+6,IF($Q$16=Lists!$I$18,IF(DAY(HI20)=21,EOMONTH(HI20,0),HI20+9),IF($Q$16=Lists!$I$19,EOMONTH(HI20,0),IF($Q$16=Lists!$I$20,EOMONTH(HI20,2),IF(OR($Q$16=Lists!$I$21,$Q$16=Lists!$I$22),EOMONTH(HI20,11),""))))))) ->  | HJ21: =IF(HJ20="","",IF($Q$16=Lists!$I$16,HJ20,IF($Q$16=Lists!$I$17,HJ20+6,IF($Q$16=Lists!$I$18,IF(DAY(HJ20)=21,EOMONTH(HJ20,0),HJ20+9),IF($Q$16=Lists!$I$19,EOMONTH(HJ20,0),IF($Q$16=Lists!$I$20,EOMONTH(HJ20,2),IF(OR($Q$16=Lists!$I$21,$Q$16=Lists!$I$22),EOMONTH(HJ20,11),""))))))) ->  | HK21: =IF(HK20="","",IF($Q$16=Lists!$I$16,HK20,IF($Q$16=Lists!$I$17,HK20+6,IF($Q$16=Lists!$I$18,IF(DAY(HK20)=21,EOMONTH(HK20,0),HK20+9),IF($Q$16=Lists!$I$19,EOMONTH(HK20,0),IF($Q$16=Lists!$I$20,EOMONTH(HK20,2),IF(OR($Q$16=Lists!$I$21,$Q$16=Lists!$I$22),EOMONTH(HK20,11),""))))))) -> 
